Transaction Date,Local Authority Department,BENEFICIARY,Purpose,Amount,Non Recoverable,Merchant Category,
01-12-2022,Adults & Health,Voiceability,Private Contractors Payment - Other,15625,0,COMMERCIAL SUPPLIER,
01-12-2022,Adults & Health,T J Building Services,Private Contractors Payment - Other,7559.3,0,VENDOR,
01-12-2022,Housing Revenue Account,Chiltern Costs Consultants,Legal Fees,420,0,NON COMMERCIAL SUPPLIER,
01-12-2022,Children and Young People,Blackwater Electrical Supplies,Building Alterations And Materials,304.08,0,VENDOR,
01-12-2022,Adults & Health,Independence Brokerage Services CIC,Consultancy Fees,1310.39,0,COMMERCIAL SUPPLIER,
01-12-2022,Marketing,The Pearls of Islam,Events,1300,0,NON COMMERCIAL SUPPLIER,
01-12-2022,Adults & Health,London Care Plc,Respite Care - Private Contractors Payment,38.32,0,COMMERCIAL SUPPLIER,
01-12-2022,Adults & Health,London Care Plc,Home Care - Private Contractors Payment,298.58,0,COMMERCIAL SUPPLIER,
01-12-2022,Adults & Health,London Care Plc,Home Care - Private Contractors Payment,19.16,0,COMMERCIAL SUPPLIER,
01-12-2022,Adults & Health,London Care Plc,Home Care - Private Contractors Payment,76.64,0,COMMERCIAL SUPPLIER,
01-12-2022,Adults & Health,London Care Plc,Daycare - Private Contractors Payment,32.57,0,COMMERCIAL SUPPLIER,
01-12-2022,Adults & Health,London Care Plc,Home Care - Private Contractors Payment,67.06,0,COMMERCIAL SUPPLIER,
01-12-2022,Adults & Health,London Care Plc,Home Care - Private Contractors Payment,38.32,0,COMMERCIAL SUPPLIER,
01-12-2022,Adults & Health,London Care Plc,Daycare - Private Contractors Payment,38.32,0,COMMERCIAL SUPPLIER,
01-12-2022,Adults & Health,London Care Plc,Daycare - Private Contractors Payment,67.06,0,COMMERCIAL SUPPLIER,
01-12-2022,Adults & Health,London Care Plc,Home Care - Private Contractors Payment,268.87,0,COMMERCIAL SUPPLIER,
01-12-2022,Adults & Health,London Care Plc,Home Care - Private Contractors Payment,350.3,0,COMMERCIAL SUPPLIER,
01-12-2022,Adults & Health,London Care Plc,Home Care - Private Contractors Payment,40.23,0,COMMERCIAL SUPPLIER,
01-12-2022,Adults & Health,London Care Plc,Home Care - Private Contractors Payment,158.39,0,COMMERCIAL SUPPLIER,
01-12-2022,Adults & Health,London Care Plc,Home Care - Private Contractors Payment,23.95,0,COMMERCIAL SUPPLIER,
01-12-2022,Adults & Health,London Care Plc,Respite Care - Private Contractors Payment,38.32,0,COMMERCIAL SUPPLIER,
01-12-2022,Adults & Health,London Care Plc,Home Care - Private Contractors Payment,19.16,0,COMMERCIAL SUPPLIER,
01-12-2022,Adults & Health,London Care Plc,Home Care - Private Contractors Payment,234.71,0,COMMERCIAL SUPPLIER,
01-12-2022,Adults & Health,London Care Plc,Home Care - Private Contractors Payment,57.48,0,COMMERCIAL SUPPLIER,
01-12-2022,Adults & Health,London Care Plc,Home Care - Private Contractors Payment,57.48,0,COMMERCIAL SUPPLIER,
01-12-2022,Adults & Health,London Care Plc,Home Care - Private Contractors Payment,71.85,0,COMMERCIAL SUPPLIER,
01-12-2022,Adults & Health,London Care Plc,Home Care - Private Contractors Payment,301.77,0,COMMERCIAL SUPPLIER,
01-12-2022,Adults & Health,London Care Plc,Home Care - Private Contractors Payment,91.01,0,COMMERCIAL SUPPLIER,
01-12-2022,Adults & Health,London Care Plc,Home Care - Private Contractors Payment,76.64,0,COMMERCIAL SUPPLIER,
01-12-2022,Adults & Health,London Care Plc,Home Care - Private Contractors Payment,737.66,0,COMMERCIAL SUPPLIER,
01-12-2022,Adults & Health,London Care Plc,Home Care - Private Contractors Payment,38.32,0,COMMERCIAL SUPPLIER,
01-12-2022,Adults & Health,London Care Plc,Home Care - Private Contractors Payment,234.71,0,COMMERCIAL SUPPLIER,
01-12-2022,Adults & Health,London Care Plc,Home Care - Private Contractors Payment,129.33,0,COMMERCIAL SUPPLIER,
01-12-2022,Adults & Health,London Care Plc,Daycare - Private Contractors Payment,38.32,0,COMMERCIAL SUPPLIER,
01-12-2022,Adults & Health,London Care Plc,Home Care - Private Contractors Payment,335.3,0,COMMERCIAL SUPPLIER,
01-12-2022,Adults & Health,London Care Plc,Daycare - Private Contractors Payment,134.12,0,COMMERCIAL SUPPLIER,
01-12-2022,Adults & Health,London Care Plc,Daycare - Private Contractors Payment,67.06,0,COMMERCIAL SUPPLIER,
01-12-2022,Adults & Health,London Care Plc,Home Care - Private Contractors Payment,134.12,0,COMMERCIAL SUPPLIER,
01-12-2022,Adults & Health,London Care Plc,Daycare - Private Contractors Payment,76.64,0,COMMERCIAL SUPPLIER,
01-12-2022,Adults & Health,London Care Plc,Home Care - Private Contractors Payment,19.16,0,COMMERCIAL SUPPLIER,
01-12-2022,Adults & Health,London Care Plc,Home Care - Private Contractors Payment,138.91,0,COMMERCIAL SUPPLIER,
01-12-2022,Adults & Health,London Care Plc,Daycare - Private Contractors Payment,191.6,0,COMMERCIAL SUPPLIER,
01-12-2022,Adults & Health,London Care Plc,Home Care - Private Contractors Payment,435.89,0,COMMERCIAL SUPPLIER,
01-12-2022,Adults & Health,London Care Plc,Home Care - Private Contractors Payment,737.66,0,COMMERCIAL SUPPLIER,
01-12-2022,Adults & Health,London Care Plc,Home Care - Private Contractors Payment,167.65,0,COMMERCIAL SUPPLIER,
01-12-2022,Adults & Health,London Care Plc,Home Care - Private Contractors Payment,234.71,0,COMMERCIAL SUPPLIER,
01-12-2022,Adults & Health,London Care Plc,Respite Care - Private Contractors Payment,57.48,0,COMMERCIAL SUPPLIER,
01-12-2022,Adults & Health,London Care Plc,Daycare - Private Contractors Payment,38.32,0,COMMERCIAL SUPPLIER,
01-12-2022,Adults & Health,London Care Plc,Home Care - Private Contractors Payment,28.74,0,COMMERCIAL SUPPLIER,
01-12-2022,Adults & Health,London Care Plc,Home Care - Private Contractors Payment,234.71,0,COMMERCIAL SUPPLIER,
01-12-2022,Adults & Health,London Care Plc,Home Care - Private Contractors Payment,253.87,0,COMMERCIAL SUPPLIER,
01-12-2022,Adults & Health,London Care Plc,Home Care - Private Contractors Payment,134.12,0,COMMERCIAL SUPPLIER,
01-12-2022,Adults & Health,London Care Plc,Respite Care - Private Contractors Payment,95.8,0,COMMERCIAL SUPPLIER,
01-12-2022,Adults & Health,London Care Plc,Home Care - Private Contractors Payment,167.65,0,COMMERCIAL SUPPLIER,
01-12-2022,Adults & Health,London Care Plc,Daycare - Private Contractors Payment,28.74,0,COMMERCIAL SUPPLIER,
01-12-2022,Adults & Health,London Care Plc,Home Care - Private Contractors Payment,234.71,0,COMMERCIAL SUPPLIER,
01-12-2022,Adults & Health,London Care Plc,Home Care - Private Contractors Payment,234.71,0,COMMERCIAL SUPPLIER,
01-12-2022,Adults & Health,London Care Plc,Home Care - Private Contractors Payment,167.65,0,COMMERCIAL SUPPLIER,
01-12-2022,Adults & Health,London Care Plc,Home Care - Private Contractors Payment,28.74,0,COMMERCIAL SUPPLIER,
01-12-2022,Adults & Health,London Care Plc,Home Care - Private Contractors Payment,57.48,0,COMMERCIAL SUPPLIER,
01-12-2022,Adults & Health,London Care Plc,Home Care - Private Contractors Payment,435.89,0,COMMERCIAL SUPPLIER,
01-12-2022,Adults & Health,London Care Plc,Home Care - Private Contractors Payment,100.59,0,COMMERCIAL SUPPLIER,
01-12-2022,Adults & Health,London Care Plc,Home Care - Private Contractors Payment,67.06,0,COMMERCIAL SUPPLIER,
01-12-2022,Adults & Health,London Care Plc,Daycare - Private Contractors Payment,76.64,0,COMMERCIAL SUPPLIER,
01-12-2022,Adults & Health,London Care Plc,Home Care - Private Contractors Payment,100.59,0,COMMERCIAL SUPPLIER,
01-12-2022,Adults & Health,London Care Plc,Home Care - Private Contractors Payment,38.32,0,COMMERCIAL SUPPLIER,
01-12-2022,Adults & Health,London Care Plc,Home Care - Private Contractors Payment,268.24,0,COMMERCIAL SUPPLIER,
01-12-2022,Adults & Health,London Care Plc,Daycare - Private Contractors Payment,38.32,0,COMMERCIAL SUPPLIER,
01-12-2022,Adults & Health,London Care Plc,Home Care - Private Contractors Payment,234.71,0,COMMERCIAL SUPPLIER,
01-12-2022,Adults & Health,London Care Plc,Home Care - Private Contractors Payment,100.59,0,COMMERCIAL SUPPLIER,
01-12-2022,Adults & Health,London Care Plc,Home Care - Private Contractors Payment,435.89,0,COMMERCIAL SUPPLIER,
01-12-2022,Adults & Health,London Care Plc,Home Care - Private Contractors Payment,43.11,0,COMMERCIAL SUPPLIER,
01-12-2022,Adults & Health,London Care Plc,Home Care - Private Contractors Payment,43.11,0,COMMERCIAL SUPPLIER,
01-12-2022,Adults & Health,London Care Plc,Daycare - Private Contractors Payment,76.64,0,COMMERCIAL SUPPLIER,
01-12-2022,Adults & Health,London Care Plc,Daycare - Private Contractors Payment,47.9,0,COMMERCIAL SUPPLIER,
01-12-2022,Adults & Health,London Care Plc,Home Care - Private Contractors Payment,124.54,0,COMMERCIAL SUPPLIER,
01-12-2022,Adults & Health,London Care Plc,Home Care - Private Contractors Payment,234.71,0,COMMERCIAL SUPPLIER,
01-12-2022,Adults & Health,London Care Plc,Home Care - Private Contractors Payment,28.74,0,COMMERCIAL SUPPLIER,
01-12-2022,Adults & Health,London Care Plc,Daycare - Private Contractors Payment,57.48,0,COMMERCIAL SUPPLIER,
01-12-2022,Adults & Health,London Care Plc,Home Care - Private Contractors Payment,368.83,0,COMMERCIAL SUPPLIER,
01-12-2022,Adults & Health,London Care Plc,Home Care - Private Contractors Payment,201.18,0,COMMERCIAL SUPPLIER,
01-12-2022,Adults & Health,London Care Plc,Home Care - Private Contractors Payment,134.12,0,COMMERCIAL SUPPLIER,
01-12-2022,Adults & Health,London Care Plc,Daycare - Private Contractors Payment,191.6,0,COMMERCIAL SUPPLIER,
01-12-2022,Adults & Health,London Care Plc,Daycare - Private Contractors Payment,38.32,0,COMMERCIAL SUPPLIER,
01-12-2022,Adults & Health,London Care Plc,Home Care - Private Contractors Payment,100.59,0,COMMERCIAL SUPPLIER,
01-12-2022,Adults & Health,London Care Plc,Home Care - Private Contractors Payment,38.32,0,COMMERCIAL SUPPLIER,
01-12-2022,Adults & Health,London Care Plc,Home Care - Private Contractors Payment,76.31,0,COMMERCIAL SUPPLIER,
01-12-2022,Adults & Health,London Care Plc,Home Care - Private Contractors Payment,201.18,0,COMMERCIAL SUPPLIER,
01-12-2022,Adults & Health,London Care Plc,Home Care - Private Contractors Payment,67.06,0,COMMERCIAL SUPPLIER,
01-12-2022,Adults & Health,London Care Plc,Home Care - Private Contractors Payment,57.48,0,COMMERCIAL SUPPLIER,
01-12-2022,Adults & Health,London Care Plc,Home Care - Private Contractors Payment,201.18,0,COMMERCIAL SUPPLIER,
01-12-2022,Adults & Health,London Care Plc,Daycare - Private Contractors Payment,114.96,0,COMMERCIAL SUPPLIER,
01-12-2022,Adults & Health,London Care Plc,Home Care - Private Contractors Payment,28.74,0,COMMERCIAL SUPPLIER,
01-12-2022,Adults & Health,London Care Plc,Home Care - Private Contractors Payment,447.37,0,COMMERCIAL SUPPLIER,
01-12-2022,Adults & Health,London Care Plc,Home Care - Private Contractors Payment,249.71,0,COMMERCIAL SUPPLIER,
01-12-2022,Adults & Health,London Care Plc,Daycare - Private Contractors Payment,76.64,0,COMMERCIAL SUPPLIER,
01-12-2022,Adults & Health,London Care Plc,Home Care - Private Contractors Payment,21.08,0,COMMERCIAL SUPPLIER,
01-12-2022,Adults & Health,London Care Plc,Home Care - Private Contractors Payment,58.12,0,COMMERCIAL SUPPLIER,
01-12-2022,Adults & Health,London Care Plc,Home Care - Private Contractors Payment,286.76,0,COMMERCIAL SUPPLIER,
01-12-2022,Adults & Health,London Care Plc,Home Care - Private Contractors Payment,167.65,0,COMMERCIAL SUPPLIER,
01-12-2022,Adults & Health,London Care Plc,Home Care - Private Contractors Payment,416.73,0,COMMERCIAL SUPPLIER,
01-12-2022,Adults & Health,London Care Plc,Home Care - Private Contractors Payment,167.65,0,COMMERCIAL SUPPLIER,
01-12-2022,Adults & Health,London Care Plc,Home Care - Private Contractors Payment,38.32,0,COMMERCIAL SUPPLIER,
01-12-2022,Adults & Health,London Care Plc,Daycare - Private Contractors Payment,19.16,0,COMMERCIAL SUPPLIER,
01-12-2022,Adults & Health,London Care Plc,Home Care - Private Contractors Payment,244.29,0,COMMERCIAL SUPPLIER,
01-12-2022,Adults & Health,London Care Plc,Home Care - Private Contractors Payment,225.13,0,COMMERCIAL SUPPLIER,
01-12-2022,Adults & Health,London Care Plc,Home Care - Private Contractors Payment,52.69,0,COMMERCIAL SUPPLIER,
01-12-2022,Adults & Health,London Care Plc,Home Care - Private Contractors Payment,114.96,0,COMMERCIAL SUPPLIER,
01-12-2022,Adults & Health,London Care Plc,Home Care - Private Contractors Payment,201.18,0,COMMERCIAL SUPPLIER,
01-12-2022,Adults & Health,London Care Plc,Respite Care - Private Contractors Payment,95.8,0,COMMERCIAL SUPPLIER,
01-12-2022,Adults & Health,London Care Plc,Home Care - Private Contractors Payment,19.16,0,COMMERCIAL SUPPLIER,
01-12-2022,Adults & Health,London Care Plc,Home Care - Private Contractors Payment,19.16,0,COMMERCIAL SUPPLIER,
01-12-2022,Adults & Health,London Care Plc,Home Care - Private Contractors Payment,62.27,0,COMMERCIAL SUPPLIER,
01-12-2022,Adults & Health,London Care Plc,Daycare - Private Contractors Payment,57.48,0,COMMERCIAL SUPPLIER,
01-12-2022,Adults & Health,London Care Plc,Daycare - Private Contractors Payment,38.32,0,COMMERCIAL SUPPLIER,
01-12-2022,Adults & Health,London Care Plc,Home Care - Private Contractors Payment,95.8,0,COMMERCIAL SUPPLIER,
01-12-2022,Adults & Health,London Care Plc,Home Care - Private Contractors Payment,158.07,0,COMMERCIAL SUPPLIER,
01-12-2022,Adults & Health,London Care Plc,Home Care - Private Contractors Payment,860.09,0,COMMERCIAL SUPPLIER,
01-12-2022,Adults & Health,London Care Plc,Home Care - Private Contractors Payment,216.18,0,COMMERCIAL SUPPLIER,
01-12-2022,Adults & Health,London Care Plc,Home Care - Private Contractors Payment,433.33,0,COMMERCIAL SUPPLIER,
01-12-2022,Adults & Health,London Care Plc,Home Care - Private Contractors Payment,28.74,0,COMMERCIAL SUPPLIER,
01-12-2022,Adults & Health,London Care Plc,Daycare - Private Contractors Payment,38.32,0,COMMERCIAL SUPPLIER,
01-12-2022,Adults & Health,London Care Plc,Home Care - Private Contractors Payment,167.65,0,COMMERCIAL SUPPLIER,
01-12-2022,Adults & Health,London Care Plc,Home Care - Private Contractors Payment,19.16,0,COMMERCIAL SUPPLIER,
01-12-2022,Adults & Health,London Care Plc,Daycare - Private Contractors Payment,38.32,0,COMMERCIAL SUPPLIER,
01-12-2022,Adults & Health,London Care Plc,Home Care - Private Contractors Payment,100.59,0,COMMERCIAL SUPPLIER,
01-12-2022,Adults & Health,London Care Plc,Home Care - Private Contractors Payment,301.77,0,COMMERCIAL SUPPLIER,
01-12-2022,Adults & Health,London Care Plc,Home Care - Private Contractors Payment,201.18,0,COMMERCIAL SUPPLIER,
01-12-2022,Adults & Health,London Care Plc,Daycare - Private Contractors Payment,76.64,0,COMMERCIAL SUPPLIER,
01-12-2022,Adults & Health,London Care Plc,Home Care - Private Contractors Payment,28.74,0,COMMERCIAL SUPPLIER,
01-12-2022,Adults & Health,London Care Plc,Home Care - Private Contractors Payment,52.69,0,COMMERCIAL SUPPLIER,
01-12-2022,Adults & Health,London Care Plc,Home Care - Private Contractors Payment,201.18,0,COMMERCIAL SUPPLIER,
01-12-2022,Adults & Health,London Care Plc,Home Care - Private Contractors Payment,28.74,0,COMMERCIAL SUPPLIER,
01-12-2022,Adults & Health,London Care Plc,Home Care - Private Contractors Payment,158.07,0,COMMERCIAL SUPPLIER,
01-12-2022,Adults & Health,London Care Plc,Daycare - Private Contractors Payment,95.8,0,COMMERCIAL SUPPLIER,
01-12-2022,Adults & Health,London Care Plc,Daycare - Private Contractors Payment,47.9,0,COMMERCIAL SUPPLIER,
01-12-2022,Adults & Health,London Care Plc,Home Care - Private Contractors Payment,201.18,0,COMMERCIAL SUPPLIER,
01-12-2022,Adults & Health,London Care Plc,Home Care - Private Contractors Payment,67.06,0,COMMERCIAL SUPPLIER,
01-12-2022,Adults & Health,London Care Plc,Home Care - Private Contractors Payment,38.32,0,COMMERCIAL SUPPLIER,
01-12-2022,Adults & Health,London Care Plc,Home Care - Private Contractors Payment,43.11,0,COMMERCIAL SUPPLIER,
01-12-2022,Adults & Health,London Care Plc,Home Care - Private Contractors Payment,234.71,0,COMMERCIAL SUPPLIER,
01-12-2022,Adults & Health,London Care Plc,Home Care - Private Contractors Payment,19.16,0,COMMERCIAL SUPPLIER,
01-12-2022,Adults & Health,London Care Plc,Home Care - Private Contractors Payment,301.77,0,COMMERCIAL SUPPLIER,
01-12-2022,Adults & Health,London Care Plc,Home Care - Private Contractors Payment,19.16,0,COMMERCIAL SUPPLIER,
01-12-2022,Adults & Health,London Care Plc,Home Care - Private Contractors Payment,335.3,0,COMMERCIAL SUPPLIER,
01-12-2022,Adults & Health,London Care Plc,Home Care - Private Contractors Payment,138.91,0,COMMERCIAL SUPPLIER,
01-12-2022,Adults & Health,London Care Plc,Home Care - Private Contractors Payment,19.16,0,COMMERCIAL SUPPLIER,
01-12-2022,Adults & Health,London Care Plc,Home Care - Private Contractors Payment,234.71,0,COMMERCIAL SUPPLIER,
01-12-2022,Adults & Health,London Care Plc,Home Care - Private Contractors Payment,134.12,0,COMMERCIAL SUPPLIER,
01-12-2022,Adults & Health,London Care Plc,Home Care - Private Contractors Payment,19.16,0,COMMERCIAL SUPPLIER,
01-12-2022,Adults & Health,London Care Plc,Home Care - Private Contractors Payment,95.8,0,COMMERCIAL SUPPLIER,
01-12-2022,Adults & Health,London Care Plc,Daycare - Private Contractors Payment,38.32,0,COMMERCIAL SUPPLIER,
01-12-2022,Adults & Health,London Care Plc,Daycare - Private Contractors Payment,38.32,0,COMMERCIAL SUPPLIER,
01-12-2022,Adults & Health,London Care Plc,Home Care - Private Contractors Payment,43.11,0,COMMERCIAL SUPPLIER,
01-12-2022,Adults & Health,London Care Plc,Home Care - Private Contractors Payment,19.16,0,COMMERCIAL SUPPLIER,
01-12-2022,Adults & Health,London Care Plc,Home Care - Private Contractors Payment,38.32,0,COMMERCIAL SUPPLIER,
01-12-2022,Adults & Health,London Care Plc,Reablement,95.8,0,COMMERCIAL SUPPLIER,
01-12-2022,Adults & Health,London Care Plc,Home Care - Private Contractors Payment,100.59,0,COMMERCIAL SUPPLIER,
01-12-2022,Adults & Health,London Care Plc,Home Care - Private Contractors Payment,95.8,0,COMMERCIAL SUPPLIER,
01-12-2022,Adults & Health,London Care Plc,Home Care - Private Contractors Payment,301.77,0,COMMERCIAL SUPPLIER,
01-12-2022,Adults & Health,London Care Plc,Home Care - Private Contractors Payment,201.18,0,COMMERCIAL SUPPLIER,
01-12-2022,Adults & Health,London Care Plc,Home Care - Private Contractors Payment,28.74,0,COMMERCIAL SUPPLIER,
01-12-2022,Adults & Health,London Care Plc,Home Care - Private Contractors Payment,156.79,0,COMMERCIAL SUPPLIER,
01-12-2022,Adults & Health,London Care Plc,Home Care - Private Contractors Payment,335.3,0,COMMERCIAL SUPPLIER,
01-12-2022,Adults & Health,London Care Plc,Daycare - Private Contractors Payment,19.16,0,COMMERCIAL SUPPLIER,
01-12-2022,Adults & Health,London Care Plc,Home Care - Private Contractors Payment,124.54,0,COMMERCIAL SUPPLIER,
01-12-2022,Adults & Health,London Care Plc,Home Care - Private Contractors Payment,507.74,0,COMMERCIAL SUPPLIER,
01-12-2022,Adults & Health,London Care Plc,Home Care - Private Contractors Payment,167.65,0,COMMERCIAL SUPPLIER,
01-12-2022,Adults & Health,London Care Plc,Home Care - Private Contractors Payment,167.65,0,COMMERCIAL SUPPLIER,
01-12-2022,Adults & Health,London Care Plc,Home Care - Private Contractors Payment,129.33,0,COMMERCIAL SUPPLIER,
01-12-2022,Adults & Health,London Care Plc,Home Care - Private Contractors Payment,38.32,0,COMMERCIAL SUPPLIER,
01-12-2022,Adults & Health,London Care Plc,Home Care - Private Contractors Payment,129.33,0,COMMERCIAL SUPPLIER,
01-12-2022,Adults & Health,London Care Plc,Home Care - Private Contractors Payment,26.5,0,COMMERCIAL SUPPLIER,
01-12-2022,Adults & Health,London Care Plc,Home Care - Private Contractors Payment,148.49,0,COMMERCIAL SUPPLIER,
01-12-2022,Adults & Health,London Care Plc,Daycare - Private Contractors Payment,28.74,0,COMMERCIAL SUPPLIER,
01-12-2022,Adults & Health,London Care Plc,Reablement,134.12,0,COMMERCIAL SUPPLIER,
01-12-2022,Adults & Health,London Care Plc,Daycare - Private Contractors Payment,38.32,0,COMMERCIAL SUPPLIER,
01-12-2022,Adults & Health,London Care Plc,Home Care - Private Contractors Payment,38.32,0,COMMERCIAL SUPPLIER,
01-12-2022,Adults & Health,London Care Plc,Home Care - Private Contractors Payment,19.16,0,COMMERCIAL SUPPLIER,
01-12-2022,Adults & Health,London Care Plc,Home Care - Private Contractors Payment,172.44,0,COMMERCIAL SUPPLIER,
01-12-2022,Adults & Health,London Care Plc,Daycare - Private Contractors Payment,76.64,0,COMMERCIAL SUPPLIER,
01-12-2022,Adults & Health,London Care Plc,Daycare - Private Contractors Payment,95.8,0,COMMERCIAL SUPPLIER,
01-12-2022,Adults & Health,London Care Plc,Home Care - Private Contractors Payment,19.16,0,COMMERCIAL SUPPLIER,
01-12-2022,Adults & Health,London Care Plc,Home Care - Private Contractors Payment,229.92,0,COMMERCIAL SUPPLIER,
01-12-2022,Adults & Health,London Care Plc,Home Care - Private Contractors Payment,201.18,0,COMMERCIAL SUPPLIER,
01-12-2022,Adults & Health,London Care Plc,Home Care - Private Contractors Payment,214.42,0,COMMERCIAL SUPPLIER,
01-12-2022,Adults & Health,London Care Plc,Home Care - Private Contractors Payment,201.18,0,COMMERCIAL SUPPLIER,
01-12-2022,Adults & Health,London Care Plc,Home Care - Private Contractors Payment,38.32,0,COMMERCIAL SUPPLIER,
01-12-2022,Adults & Health,London Care Plc,Home Care - Private Contractors Payment,172.44,0,COMMERCIAL SUPPLIER,
01-12-2022,Adults & Health,London Care Plc,Respite Care - Private Contractors Payment,57.48,0,COMMERCIAL SUPPLIER,
01-12-2022,Adults & Health,London Care Plc,Home Care - Private Contractors Payment,182.65,0,COMMERCIAL SUPPLIER,
01-12-2022,Adults & Health,London Care Plc,Daycare - Private Contractors Payment,38.32,0,COMMERCIAL SUPPLIER,
01-12-2022,Adults & Health,London Care Plc,Home Care - Private Contractors Payment,99.31,0,COMMERCIAL SUPPLIER,
01-12-2022,Adults & Health,London Care Plc,Home Care - Private Contractors Payment,268.24,0,COMMERCIAL SUPPLIER,
01-12-2022,Adults & Health,London Care Plc,Daycare - Private Contractors Payment,114.96,0,COMMERCIAL SUPPLIER,
01-12-2022,Adults & Health,London Care Plc,Home Care - Private Contractors Payment,28.74,0,COMMERCIAL SUPPLIER,
01-12-2022,Adults & Health,London Care Plc,Daycare - Private Contractors Payment,76.64,0,COMMERCIAL SUPPLIER,
01-12-2022,Adults & Health,London Care Plc,Home Care - Private Contractors Payment,38.32,0,COMMERCIAL SUPPLIER,
01-12-2022,Adults & Health,London Care Plc,Home Care - Private Contractors Payment,234.71,0,COMMERCIAL SUPPLIER,
01-12-2022,Adults & Health,London Care Plc,Home Care - Private Contractors Payment,407.15,0,COMMERCIAL SUPPLIER,
01-12-2022,Adults & Health,London Care Plc,Home Care - Private Contractors Payment,138.91,0,COMMERCIAL SUPPLIER,
01-12-2022,Adults & Health,London Care Plc,Daycare - Private Contractors Payment,76.64,0,COMMERCIAL SUPPLIER,
01-12-2022,Adults & Health,London Care Plc,Home Care - Private Contractors Payment,234.71,0,COMMERCIAL SUPPLIER,
01-12-2022,Adults & Health,London Care Plc,Respite Care - Private Contractors Payment,229.92,0,COMMERCIAL SUPPLIER,
01-12-2022,Adults & Health,London Care Plc,Daycare - Private Contractors Payment,28.74,0,COMMERCIAL SUPPLIER,
01-12-2022,Adults & Health,London Care Plc,Home Care - Private Contractors Payment,38.32,0,COMMERCIAL SUPPLIER,
01-12-2022,Adults & Health,London Care Plc,Home Care - Private Contractors Payment,38.32,0,COMMERCIAL SUPPLIER,
01-12-2022,Adults & Health,London Care Plc,Home Care - Private Contractors Payment,38.32,0,COMMERCIAL SUPPLIER,
01-12-2022,Adults & Health,London Care Plc,Home Care - Private Contractors Payment,95.8,0,COMMERCIAL SUPPLIER,
01-12-2022,Adults & Health,London Care Plc,Respite Care - Private Contractors Payment,38.32,0,COMMERCIAL SUPPLIER,
01-12-2022,Adults & Health,London Care Plc,Home Care - Private Contractors Payment,167.65,0,COMMERCIAL SUPPLIER,
01-12-2022,Adults & Health,London Care Plc,Home Care - Private Contractors Payment,57.48,0,COMMERCIAL SUPPLIER,
01-12-2022,Adults & Health,London Care Plc,Daycare - Private Contractors Payment,19.16,0,COMMERCIAL SUPPLIER,
01-12-2022,Adults & Health,London Care Plc,Home Care - Private Contractors Payment,38.32,0,COMMERCIAL SUPPLIER,
01-12-2022,Adults & Health,London Care Plc,Home Care - Private Contractors Payment,253.87,0,COMMERCIAL SUPPLIER,
01-12-2022,Adults & Health,London Care Plc,Home Care - Private Contractors Payment,114.96,0,COMMERCIAL SUPPLIER,
01-12-2022,Adults & Health,London Care Plc,Home Care - Private Contractors Payment,268.24,0,COMMERCIAL SUPPLIER,
01-12-2022,Adults & Health,London Care Plc,Home Care - Private Contractors Payment,167.65,0,COMMERCIAL SUPPLIER,
01-12-2022,Adults & Health,London Care Plc,Daycare - Private Contractors Payment,38.32,0,COMMERCIAL SUPPLIER,
01-12-2022,Adults & Health,London Care Plc,Home Care - Private Contractors Payment,12.13,0,COMMERCIAL SUPPLIER,
01-12-2022,Adults & Health,London Care Plc,Daycare - Private Contractors Payment,38.32,0,COMMERCIAL SUPPLIER,
01-12-2022,Adults & Health,London Care Plc,Home Care - Private Contractors Payment,100.59,0,COMMERCIAL SUPPLIER,
01-12-2022,Adults & Health,London Care Plc,Home Care - Private Contractors Payment,234.71,0,COMMERCIAL SUPPLIER,
01-12-2022,Adults & Health,London Care Plc,Daycare - Private Contractors Payment,76.64,0,COMMERCIAL SUPPLIER,
01-12-2022,Adults & Health,London Care Plc,Home Care - Private Contractors Payment,167.65,0,COMMERCIAL SUPPLIER,
01-12-2022,Adults & Health,London Care Plc,Home Care - Private Contractors Payment,268.24,0,COMMERCIAL SUPPLIER,
01-12-2022,Adults & Health,London Care Plc,Daycare - Private Contractors Payment,57.48,0,COMMERCIAL SUPPLIER,
01-12-2022,Adults & Health,London Care Plc,Home Care - Private Contractors Payment,234.71,0,COMMERCIAL SUPPLIER,
01-12-2022,Adults & Health,London Care Plc,Home Care - Private Contractors Payment,19.16,0,COMMERCIAL SUPPLIER,
01-12-2022,Adults & Health,London Care Plc,Home Care - Private Contractors Payment,38.32,0,COMMERCIAL SUPPLIER,
01-12-2022,Adults & Health,London Care Plc,Home Care - Private Contractors Payment,57.48,0,COMMERCIAL SUPPLIER,
01-12-2022,Adults & Health,London Care Plc,Home Care - Private Contractors Payment,86.22,0,COMMERCIAL SUPPLIER,
01-12-2022,Adults & Health,London Care Plc,Home Care - Private Contractors Payment,28.74,0,COMMERCIAL SUPPLIER,
01-12-2022,Adults & Health,London Care Plc,Home Care - Private Contractors Payment,28.74,0,COMMERCIAL SUPPLIER,
01-12-2022,Adults & Health,London Care Plc,Reablement,28.74,0,COMMERCIAL SUPPLIER,
01-12-2022,Adults & Health,London Care Plc,Home Care - Private Contractors Payment,28.74,0,COMMERCIAL SUPPLIER,
01-12-2022,Adults & Health,London Care Plc,Daycare - Private Contractors Payment,76.64,0,COMMERCIAL SUPPLIER,
01-12-2022,Adults & Health,London Care Plc,Home Care - Private Contractors Payment,167.65,0,COMMERCIAL SUPPLIER,
01-12-2022,Adults & Health,London Care Plc,Home Care - Private Contractors Payment,19.16,0,COMMERCIAL SUPPLIER,
01-12-2022,Adults & Health,London Care Plc,Daycare - Private Contractors Payment,191.6,0,COMMERCIAL SUPPLIER,
01-12-2022,Adults & Health,London Care Plc,Home Care - Private Contractors Payment,19.16,0,COMMERCIAL SUPPLIER,
01-12-2022,Adults & Health,London Care Plc,Home Care - Private Contractors Payment,67.06,0,COMMERCIAL SUPPLIER,
01-12-2022,Adults & Health,London Care Plc,Home Care - Private Contractors Payment,182.02,0,COMMERCIAL SUPPLIER,
01-12-2022,Adults & Health,London Care Plc,Home Care - Private Contractors Payment,114.96,0,COMMERCIAL SUPPLIER,
01-12-2022,Adults & Health,London Care Plc,Daycare - Private Contractors Payment,28.74,0,COMMERCIAL SUPPLIER,
01-12-2022,Adults & Health,London Care Plc,Home Care - Private Contractors Payment,335.3,0,COMMERCIAL SUPPLIER,
01-12-2022,Adults & Health,London Care Plc,Home Care - Private Contractors Payment,38.32,0,COMMERCIAL SUPPLIER,
01-12-2022,Adults & Health,London Care Plc,Home Care - Private Contractors Payment,234.71,0,COMMERCIAL SUPPLIER,
01-12-2022,Adults & Health,London Care Plc,Daycare - Private Contractors Payment,95.8,0,COMMERCIAL SUPPLIER,
01-12-2022,Adults & Health,London Care Plc,Home Care - Private Contractors Payment,167.65,0,COMMERCIAL SUPPLIER,
01-12-2022,Adults & Health,London Care Plc,Home Care - Private Contractors Payment,167.65,0,COMMERCIAL SUPPLIER,
01-12-2022,Adults & Health,London Care Plc,Home Care - Private Contractors Payment,167.65,0,COMMERCIAL SUPPLIER,
01-12-2022,Adults & Health,London Care Plc,Home Care - Private Contractors Payment,50.77,0,COMMERCIAL SUPPLIER,
01-12-2022,Adults & Health,London Care Plc,Home Care - Private Contractors Payment,82.06,0,COMMERCIAL SUPPLIER,
01-12-2022,Adults & Health,London Care Plc,Home Care - Private Contractors Payment,4.79,0,COMMERCIAL SUPPLIER,
01-12-2022,Adults & Health,London Care Plc,Home Care - Private Contractors Payment,105.38,0,COMMERCIAL SUPPLIER,
01-12-2022,Adults & Health,London Care Plc,Home Care - Private Contractors Payment,53.32,0,COMMERCIAL SUPPLIER,
01-12-2022,Adults & Health,London Care Plc,Home Care - Private Contractors Payment,167.65,0,COMMERCIAL SUPPLIER,
01-12-2022,Adults & Health,London Care Plc,Home Care - Private Contractors Payment,19.16,0,COMMERCIAL SUPPLIER,
01-12-2022,Adults & Health,London Care Plc,Home Care - Private Contractors Payment,440.68,0,COMMERCIAL SUPPLIER,
01-12-2022,Adults & Health,London Care Plc,Home Care - Private Contractors Payment,100.59,0,COMMERCIAL SUPPLIER,
01-12-2022,Adults & Health,London Care Plc,Home Care - Private Contractors Payment,201.18,0,COMMERCIAL SUPPLIER,
01-12-2022,Adults & Health,London Care Plc,Daycare - Private Contractors Payment,76.64,0,COMMERCIAL SUPPLIER,
01-12-2022,Adults & Health,London Care Plc,Home Care - Private Contractors Payment,57.48,0,COMMERCIAL SUPPLIER,
01-12-2022,Adults & Health,London Care Plc,Home Care - Private Contractors Payment,234.71,0,COMMERCIAL SUPPLIER,
01-12-2022,Adults & Health,London Care Plc,Daycare - Private Contractors Payment,28.74,0,COMMERCIAL SUPPLIER,
01-12-2022,Adults & Health,London Care Plc,Respite Care - Private Contractors Payment,76.64,0,COMMERCIAL SUPPLIER,
01-12-2022,Adults & Health,London Care Plc,Home Care - Private Contractors Payment,38.32,0,COMMERCIAL SUPPLIER,
01-12-2022,Adults & Health,London Care Plc,Daycare - Private Contractors Payment,19.16,0,COMMERCIAL SUPPLIER,
01-12-2022,Adults & Health,London Care Plc,Home Care - Private Contractors Payment,335.3,0,COMMERCIAL SUPPLIER,
01-12-2022,Adults & Health,London Care Plc,Home Care - Private Contractors Payment,201.18,0,COMMERCIAL SUPPLIER,
01-12-2022,Adults & Health,London Care Plc,Home Care - Private Contractors Payment,19.16,0,COMMERCIAL SUPPLIER,
01-12-2022,Adults & Health,London Care Plc,Home Care - Private Contractors Payment,201.18,0,COMMERCIAL SUPPLIER,
01-12-2022,Adults & Health,London Care Plc,Home Care - Private Contractors Payment,301.77,0,COMMERCIAL SUPPLIER,
01-12-2022,Adults & Health,London Care Plc,Home Care - Private Contractors Payment,335.3,0,COMMERCIAL SUPPLIER,
01-12-2022,Adults & Health,London Care Plc,Home Care - Private Contractors Payment,172.44,0,COMMERCIAL SUPPLIER,
01-12-2022,Adults & Health,London Care Plc,Home Care - Private Contractors Payment,704.13,0,COMMERCIAL SUPPLIER,
01-12-2022,Adults & Health,London Care Plc,Home Care - Private Contractors Payment,301.77,0,COMMERCIAL SUPPLIER,
01-12-2022,Adults & Health,London Care Plc,Home Care - Private Contractors Payment,28.74,0,COMMERCIAL SUPPLIER,
01-12-2022,Adults & Health,London Care Plc,Home Care - Private Contractors Payment,38.32,0,COMMERCIAL SUPPLIER,
01-12-2022,Adults & Health,London Care Plc,Home Care - Private Contractors Payment,167.65,0,COMMERCIAL SUPPLIER,
01-12-2022,Adults & Health,London Care Plc,Home Care - Private Contractors Payment,57.48,0,COMMERCIAL SUPPLIER,
01-12-2022,Adults & Health,London Care Plc,Daycare - Private Contractors Payment,65.78,0,COMMERCIAL SUPPLIER,
01-12-2022,Adults & Health,London Care Plc,Home Care - Private Contractors Payment,440.68,0,COMMERCIAL SUPPLIER,
01-12-2022,Adults & Health,London Care Plc,Home Care - Private Contractors Payment,383.83,0,COMMERCIAL SUPPLIER,
01-12-2022,Adults & Health,London Care Plc,Home Care - Private Contractors Payment,19.16,0,COMMERCIAL SUPPLIER,
01-12-2022,Adults & Health,London Care Plc,Home Care - Private Contractors Payment,58.13,0,COMMERCIAL SUPPLIER,
01-12-2022,Adults & Health,London Care Plc,Home Care - Private Contractors Payment,350.3,0,COMMERCIAL SUPPLIER,
01-12-2022,Adults & Health,London Care Plc,Home Care - Private Contractors Payment,517.95,0,COMMERCIAL SUPPLIER,
01-12-2022,Adults & Health,London Care Plc,Home Care - Private Contractors Payment,19.16,0,COMMERCIAL SUPPLIER,
01-12-2022,Adults & Health,London Care Plc,Home Care - Private Contractors Payment,253.32,0,COMMERCIAL SUPPLIER,
01-12-2022,Adults & Health,London Care Plc,Reablement,71.85,0,COMMERCIAL SUPPLIER,
01-12-2022,Adults & Health,London Care Plc,Home Care - Private Contractors Payment,19.16,0,COMMERCIAL SUPPLIER,
01-12-2022,Adults & Health,London Care Plc,Home Care - Private Contractors Payment,253.87,0,COMMERCIAL SUPPLIER,
01-12-2022,Adults & Health,London Care Plc,Home Care - Private Contractors Payment,234.71,0,COMMERCIAL SUPPLIER,
01-12-2022,Adults & Health,London Care Plc,Home Care - Private Contractors Payment,201.18,0,COMMERCIAL SUPPLIER,
01-12-2022,Adults & Health,London Care Plc,Daycare - Private Contractors Payment,38.32,0,COMMERCIAL SUPPLIER,
01-12-2022,Adults & Health,London Care Plc,Home Care - Private Contractors Payment,86.22,0,COMMERCIAL SUPPLIER,
01-12-2022,Adults & Health,London Care Plc,Home Care - Private Contractors Payment,268.24,0,COMMERCIAL SUPPLIER,
01-12-2022,Adults & Health,London Care Plc,Home Care - Private Contractors Payment,38.32,0,COMMERCIAL SUPPLIER,
01-12-2022,Adults & Health,London Care Plc,Daycare - Private Contractors Payment,76.64,0,COMMERCIAL SUPPLIER,
01-12-2022,Adults & Health,London Care Plc,Daycare - Private Contractors Payment,38.32,0,COMMERCIAL SUPPLIER,
01-12-2022,Adults & Health,London Care Plc,Home Care - Private Contractors Payment,737.66,0,COMMERCIAL SUPPLIER,
01-12-2022,Adults & Health,London Care Plc,Home Care - Private Contractors Payment,38.32,0,COMMERCIAL SUPPLIER,
01-12-2022,Adults & Health,London Care Plc,Home Care - Private Contractors Payment,76.64,0,COMMERCIAL SUPPLIER,
01-12-2022,Adults & Health,London Care Plc,Home Care - Private Contractors Payment,335.3,0,COMMERCIAL SUPPLIER,
01-12-2022,Adults & Health,London Care Plc,Home Care - Private Contractors Payment,38.32,0,COMMERCIAL SUPPLIER,
01-12-2022,Adults & Health,London Care Plc,Home Care - Private Contractors Payment,253.87,0,COMMERCIAL SUPPLIER,
01-12-2022,Adults & Health,London Care Plc,Daycare - Private Contractors Payment,19.16,0,COMMERCIAL SUPPLIER,
01-12-2022,Adults & Health,London Care Plc,Home Care - Private Contractors Payment,19.16,0,COMMERCIAL SUPPLIER,
01-12-2022,Adults & Health,London Care Plc,Home Care - Private Contractors Payment,28.74,0,COMMERCIAL SUPPLIER,
01-12-2022,Adults & Health,London Care Plc,Home Care - Private Contractors Payment,19.16,0,COMMERCIAL SUPPLIER,
01-12-2022,Adults & Health,London Care Plc,Home Care - Private Contractors Payment,296.98,0,COMMERCIAL SUPPLIER,
01-12-2022,Adults & Health,London Care Plc,Home Care - Private Contractors Payment,95.8,0,COMMERCIAL SUPPLIER,
01-12-2022,Adults & Health,London Care Plc,Home Care - Private Contractors Payment,234.71,0,COMMERCIAL SUPPLIER,
01-12-2022,Adults & Health,London Care Plc,Daycare - Private Contractors Payment,38.32,0,COMMERCIAL SUPPLIER,
01-12-2022,Adults & Health,London Care Plc,Home Care - Private Contractors Payment,43.11,0,COMMERCIAL SUPPLIER,
01-12-2022,Adults & Health,London Care Plc,Home Care - Private Contractors Payment,172.44,0,COMMERCIAL SUPPLIER,
01-12-2022,Adults & Health,London Care Plc,Reablement,67.06,0,COMMERCIAL SUPPLIER,
01-12-2022,Adults & Health,London Care Plc,Home Care - Private Contractors Payment,28.74,0,COMMERCIAL SUPPLIER,
01-12-2022,Adults & Health,London Care Plc,Home Care - Private Contractors Payment,19.16,0,COMMERCIAL SUPPLIER,
01-12-2022,Adults & Health,London Care Plc,Home Care - Private Contractors Payment,134.12,0,COMMERCIAL SUPPLIER,
01-12-2022,Adults & Health,London Care Plc,Home Care - Private Contractors Payment,350.3,0,COMMERCIAL SUPPLIER,
01-12-2022,Adults & Health,London Care Plc,Reablement,134.12,0,COMMERCIAL SUPPLIER,
01-12-2022,Adults & Health,London Care Plc,Daycare - Private Contractors Payment,28.74,0,COMMERCIAL SUPPLIER,
01-12-2022,Adults & Health,London Care Plc,Home Care - Private Contractors Payment,122.94,0,COMMERCIAL SUPPLIER,
01-12-2022,Adults & Health,London Care Plc,Daycare - Private Contractors Payment,57.48,0,COMMERCIAL SUPPLIER,
01-12-2022,Adults & Health,London Care Plc,Home Care - Private Contractors Payment,335.3,0,COMMERCIAL SUPPLIER,
01-12-2022,Adults & Health,London Care Plc,Home Care - Private Contractors Payment,67.06,0,COMMERCIAL SUPPLIER,
01-12-2022,Adults & Health,London Care Plc,Home Care - Private Contractors Payment,416.73,0,COMMERCIAL SUPPLIER,
01-12-2022,Adults & Health,London Care Plc,Daycare - Private Contractors Payment,114.96,0,COMMERCIAL SUPPLIER,
01-12-2022,Adults & Health,London Care Plc,Respite Care - Private Contractors Payment,229.92,0,COMMERCIAL SUPPLIER,
01-12-2022,Adults & Health,London Care Plc,Daycare - Private Contractors Payment,76.64,0,COMMERCIAL SUPPLIER,
01-12-2022,Adults & Health,London Care Plc,Home Care - Private Contractors Payment,654.45,0,COMMERCIAL SUPPLIER,
01-12-2022,Adults & Health,London Care Plc,Daycare - Private Contractors Payment,1.92,0,COMMERCIAL SUPPLIER,
01-12-2022,Adults & Health,London Care Plc,Home Care - Private Contractors Payment,19.16,0,COMMERCIAL SUPPLIER,
01-12-2022,Adults & Health,London Care Plc,Daycare - Private Contractors Payment,114.96,0,COMMERCIAL SUPPLIER,
01-12-2022,Adults & Health,London Care Plc,Home Care - Private Contractors Payment,301.77,0,COMMERCIAL SUPPLIER,
01-12-2022,Adults & Health,London Care Plc,Home Care - Private Contractors Payment,19.16,0,COMMERCIAL SUPPLIER,
01-12-2022,Adults & Health,London Care Plc,Home Care - Private Contractors Payment,28.74,0,COMMERCIAL SUPPLIER,
01-12-2022,Adults & Health,London Care Plc,Home Care - Private Contractors Payment,134.12,0,COMMERCIAL SUPPLIER,
01-12-2022,Adults & Health,London Care Plc,Daycare - Private Contractors Payment,57.48,0,COMMERCIAL SUPPLIER,
01-12-2022,Adults & Health,London Care Plc,Home Care - Private Contractors Payment,704.13,0,COMMERCIAL SUPPLIER,
01-12-2022,Adults & Health,London Care Plc,Respite Care - Private Contractors Payment,57.48,0,COMMERCIAL SUPPLIER,
01-12-2022,Adults & Health,London Care Plc,Home Care - Private Contractors Payment,114.96,0,COMMERCIAL SUPPLIER,
01-12-2022,Adults & Health,London Care Plc,Home Care - Private Contractors Payment,100.59,0,COMMERCIAL SUPPLIER,
01-12-2022,Adults & Health,London Care Plc,Respite Care - Private Contractors Payment,229.92,0,COMMERCIAL SUPPLIER,
01-12-2022,Adults & Health,London Care Plc,Home Care - Private Contractors Payment,19.16,0,COMMERCIAL SUPPLIER,
01-12-2022,Adults & Health,London Care Plc,Home Care - Private Contractors Payment,167.65,0,COMMERCIAL SUPPLIER,
01-12-2022,Adults & Health,London Care Plc,Home Care - Private Contractors Payment,704.13,0,COMMERCIAL SUPPLIER,
01-12-2022,Adults & Health,London Care Plc,Home Care - Private Contractors Payment,19.16,0,COMMERCIAL SUPPLIER,
01-12-2022,Adults & Health,London Care Plc,Home Care - Private Contractors Payment,234.71,0,COMMERCIAL SUPPLIER,
01-12-2022,Adults & Health,London Care Plc,Home Care - Private Contractors Payment,19.16,0,COMMERCIAL SUPPLIER,
01-12-2022,Adults & Health,London Care Plc,Daycare - Private Contractors Payment,76.64,0,COMMERCIAL SUPPLIER,
01-12-2022,Adults & Health,London Care Plc,Daycare - Private Contractors Payment,38.32,0,COMMERCIAL SUPPLIER,
01-12-2022,Adults & Health,London Care Plc,Home Care - Private Contractors Payment,234.71,0,COMMERCIAL SUPPLIER,
01-12-2022,Adults & Health,London Care Plc,Daycare - Private Contractors Payment,95.8,0,COMMERCIAL SUPPLIER,
01-12-2022,Adults & Health,London Care Plc,Home Care - Private Contractors Payment,81.43,0,COMMERCIAL SUPPLIER,
01-12-2022,Adults & Health,London Care Plc,Home Care - Private Contractors Payment,536.48,0,COMMERCIAL SUPPLIER,
01-12-2022,Adults & Health,London Care Plc,Home Care - Private Contractors Payment,19.16,0,COMMERCIAL SUPPLIER,
01-12-2022,Adults & Health,London Care Plc,Home Care - Private Contractors Payment,19.16,0,COMMERCIAL SUPPLIER,
01-12-2022,Adults & Health,London Care Plc,Home Care - Private Contractors Payment,95.8,0,COMMERCIAL SUPPLIER,
01-12-2022,Adults & Health,London Care Plc,Home Care - Private Contractors Payment,9.58,0,COMMERCIAL SUPPLIER,
01-12-2022,Adults & Health,London Care Plc,Home Care - Private Contractors Payment,19.16,0,COMMERCIAL SUPPLIER,
01-12-2022,Adults & Health,London Care Plc,Home Care - Private Contractors Payment,100.59,0,COMMERCIAL SUPPLIER,
01-12-2022,Adults & Health,London Care Plc,Home Care - Private Contractors Payment,145.29,0,COMMERCIAL SUPPLIER,
01-12-2022,Adults & Health,London Care Plc,Daycare - Private Contractors Payment,38.32,0,COMMERCIAL SUPPLIER,
01-12-2022,Adults & Health,London Care Plc,Home Care - Private Contractors Payment,19.16,0,COMMERCIAL SUPPLIER,
01-12-2022,Adults & Health,London Care Plc,Daycare - Private Contractors Payment,4.79,0,COMMERCIAL SUPPLIER,
01-12-2022,Adults & Health,London Care Plc,Home Care - Private Contractors Payment,19.16,0,COMMERCIAL SUPPLIER,
01-12-2022,Adults & Health,London Care Plc,Home Care - Private Contractors Payment,215.55,0,COMMERCIAL SUPPLIER,
01-12-2022,Adults & Health,London Care Plc,Home Care - Private Contractors Payment,149.12,0,COMMERCIAL SUPPLIER,
01-12-2022,Adults & Health,London Care Plc,Daycare - Private Contractors Payment,38.32,0,COMMERCIAL SUPPLIER,
01-12-2022,Adults & Health,London Care Plc,Home Care - Private Contractors Payment,28.74,0,COMMERCIAL SUPPLIER,
01-12-2022,Adults & Health,London Care Plc,Daycare - Private Contractors Payment,57.48,0,COMMERCIAL SUPPLIER,
01-12-2022,Adults & Health,London Care Plc,Home Care - Private Contractors Payment,335.3,0,COMMERCIAL SUPPLIER,
01-12-2022,Adults & Health,London Care Plc,Home Care - Private Contractors Payment,13.4,0,COMMERCIAL SUPPLIER,
01-12-2022,Adults & Health,London Care Plc,Home Care - Private Contractors Payment,167.65,0,COMMERCIAL SUPPLIER,
01-12-2022,Adults & Health,London Care Plc,Home Care - Private Contractors Payment,67.06,0,COMMERCIAL SUPPLIER,
01-12-2022,Adults & Health,London Care Plc,Home Care - Private Contractors Payment,134.12,0,COMMERCIAL SUPPLIER,
01-12-2022,Adults & Health,London Care Plc,Home Care - Private Contractors Payment,172.44,0,COMMERCIAL SUPPLIER,
01-12-2022,Adults & Health,London Care Plc,Home Care - Private Contractors Payment,167.65,0,COMMERCIAL SUPPLIER,
01-12-2022,Adults & Health,London Care Plc,Home Care - Private Contractors Payment,100.59,0,COMMERCIAL SUPPLIER,
01-12-2022,Adults & Health,London Care Plc,Home Care - Private Contractors Payment,234.71,0,COMMERCIAL SUPPLIER,
01-12-2022,Adults & Health,London Care Plc,Home Care - Private Contractors Payment,100.59,0,COMMERCIAL SUPPLIER,
01-12-2022,Adults & Health,London Care Plc,Home Care - Private Contractors Payment,134.12,0,COMMERCIAL SUPPLIER,
01-12-2022,Adults & Health,London Care Plc,Home Care - Private Contractors Payment,38.32,0,COMMERCIAL SUPPLIER,
01-12-2022,Adults & Health,London Care Plc,Home Care - Private Contractors Payment,67.06,0,COMMERCIAL SUPPLIER,
01-12-2022,Adults & Health,London Care Plc,Home Care - Private Contractors Payment,62.6,0,COMMERCIAL SUPPLIER,
01-12-2022,Adults & Health,London Care Plc,Home Care - Private Contractors Payment,167.65,0,COMMERCIAL SUPPLIER,
01-12-2022,Adults & Health,London Care Plc,Home Care - Private Contractors Payment,335.3,0,COMMERCIAL SUPPLIER,
01-12-2022,Adults & Health,London Care Plc,Daycare - Private Contractors Payment,38.32,0,COMMERCIAL SUPPLIER,
01-12-2022,Adults & Health,London Care Plc,Home Care - Private Contractors Payment,38.32,0,COMMERCIAL SUPPLIER,
01-12-2022,Adults & Health,London Care Plc,Home Care - Private Contractors Payment,234.71,0,COMMERCIAL SUPPLIER,
01-12-2022,Adults & Health,London Care Plc,Respite Care - Private Contractors Payment,76.64,0,COMMERCIAL SUPPLIER,
01-12-2022,Adults & Health,London Care Plc,Home Care - Private Contractors Payment,28.74,0,COMMERCIAL SUPPLIER,
01-12-2022,Adults & Health,London Care Plc,Home Care - Private Contractors Payment,67.06,0,COMMERCIAL SUPPLIER,
01-12-2022,Adults & Health,London Care Plc,Respite Care - Private Contractors Payment,229.92,0,COMMERCIAL SUPPLIER,
01-12-2022,Adults & Health,London Care Plc,Home Care - Private Contractors Payment,373.62,0,COMMERCIAL SUPPLIER,
01-12-2022,Adults & Health,London Care Plc,Home Care - Private Contractors Payment,301.77,0,COMMERCIAL SUPPLIER,
01-12-2022,Adults & Health,London Care Plc,Home Care - Private Contractors Payment,71.85,0,COMMERCIAL SUPPLIER,
01-12-2022,Adults & Health,London Care Plc,Home Care - Private Contractors Payment,28.74,0,COMMERCIAL SUPPLIER,
01-12-2022,Adults & Health,London Care Plc,Home Care - Private Contractors Payment,167.65,0,COMMERCIAL SUPPLIER,
01-12-2022,Adults & Health,London Care Plc,Daycare - Private Contractors Payment,134.12,0,COMMERCIAL SUPPLIER,
01-12-2022,Adults & Health,London Care Plc,Home Care - Private Contractors Payment,201.18,0,COMMERCIAL SUPPLIER,
01-12-2022,Adults & Health,London Care Plc,Daycare - Private Contractors Payment,114.96,0,COMMERCIAL SUPPLIER,
01-12-2022,Adults & Health,London Care Plc,Home Care - Private Contractors Payment,129.33,0,COMMERCIAL SUPPLIER,
01-12-2022,Adults & Health,London Care Plc,Home Care - Private Contractors Payment,119.75,0,COMMERCIAL SUPPLIER,
01-12-2022,Adults & Health,London Care Plc,Home Care - Private Contractors Payment,704.13,0,COMMERCIAL SUPPLIER,
01-12-2022,Adults & Health,London Care Plc,Home Care - Private Contractors Payment,134.12,0,COMMERCIAL SUPPLIER,
01-12-2022,Adults & Health,London Care Plc,Home Care - Private Contractors Payment,76.64,0,COMMERCIAL SUPPLIER,
01-12-2022,Adults & Health,London Care Plc,Home Care - Private Contractors Payment,32.24,0,COMMERCIAL SUPPLIER,
01-12-2022,Adults & Health,London Care Plc,Daycare - Private Contractors Payment,38.32,0,COMMERCIAL SUPPLIER,
01-12-2022,Adults & Health,London Care Plc,Home Care - Private Contractors Payment,435.89,0,COMMERCIAL SUPPLIER,
01-12-2022,Adults & Health,London Care Plc,Respite Care - Private Contractors Payment,95.8,0,COMMERCIAL SUPPLIER,
01-12-2022,Adults & Health,London Care Plc,Home Care - Private Contractors Payment,28.74,0,COMMERCIAL SUPPLIER,
01-12-2022,Adults & Health,London Care Plc,Home Care - Private Contractors Payment,167.65,0,COMMERCIAL SUPPLIER,
01-12-2022,Adults & Health,London Care Plc,Home Care - Private Contractors Payment,134.12,0,COMMERCIAL SUPPLIER,
01-12-2022,Adults & Health,London Care Plc,Home Care - Private Contractors Payment,182.02,0,COMMERCIAL SUPPLIER,
01-12-2022,Adults & Health,London Care Plc,Home Care - Private Contractors Payment,38.32,0,COMMERCIAL SUPPLIER,
01-12-2022,Adults & Health,London Care Plc,Home Care - Private Contractors Payment,100.59,0,COMMERCIAL SUPPLIER,
01-12-2022,Adults & Health,London Care Plc,Home Care - Private Contractors Payment,234.71,0,COMMERCIAL SUPPLIER,
01-12-2022,Adults & Health,London Care Plc,Daycare - Private Contractors Payment,38.32,0,COMMERCIAL SUPPLIER,
01-12-2022,Adults & Health,London Care Plc,Home Care - Private Contractors Payment,38.32,0,COMMERCIAL SUPPLIER,
01-12-2022,Adults & Health,London Care Plc,Home Care - Private Contractors Payment,28.74,0,COMMERCIAL SUPPLIER,
01-12-2022,Adults & Health,London Care Plc,Home Care - Private Contractors Payment,19.16,0,COMMERCIAL SUPPLIER,
01-12-2022,Adults & Health,London Care Plc,Daycare - Private Contractors Payment,67.06,0,COMMERCIAL SUPPLIER,
01-12-2022,Adults & Health,London Care Plc,Home Care - Private Contractors Payment,435.89,0,COMMERCIAL SUPPLIER,
01-12-2022,Adults & Health,London Care Plc,Home Care - Private Contractors Payment,234.71,0,COMMERCIAL SUPPLIER,
01-12-2022,Adults & Health,London Care Plc,Home Care - Private Contractors Payment,19.16,0,COMMERCIAL SUPPLIER,
01-12-2022,Adults & Health,London Care Plc,Home Care - Private Contractors Payment,100.59,0,COMMERCIAL SUPPLIER,
01-12-2022,Adults & Health,London Care Plc,Home Care - Private Contractors Payment,301.77,0,COMMERCIAL SUPPLIER,
01-12-2022,Adults & Health,London Care Plc,Home Care - Private Contractors Payment,19.16,0,COMMERCIAL SUPPLIER,
01-12-2022,Adults & Health,London Care Plc,Home Care - Private Contractors Payment,28.74,0,COMMERCIAL SUPPLIER,
01-12-2022,Adults & Health,London Care Plc,Home Care - Private Contractors Payment,138.91,0,COMMERCIAL SUPPLIER,
01-12-2022,Adults & Health,London Care Plc,Home Care - Private Contractors Payment,301.77,0,COMMERCIAL SUPPLIER,
01-12-2022,Adults & Health,London Care Plc,Home Care - Private Contractors Payment,19.16,0,COMMERCIAL SUPPLIER,
01-12-2022,Adults & Health,London Care Plc,Daycare - Private Contractors Payment,57.48,0,COMMERCIAL SUPPLIER,
01-12-2022,Adults & Health,London Care Plc,Home Care - Private Contractors Payment,67.06,0,COMMERCIAL SUPPLIER,
01-12-2022,Adults & Health,London Care Plc,Home Care - Private Contractors Payment,167.65,0,COMMERCIAL SUPPLIER,
01-12-2022,Adults & Health,London Care Plc,Home Care - Private Contractors Payment,19.16,0,COMMERCIAL SUPPLIER,
01-12-2022,Adults & Health,London Care Plc,Home Care - Private Contractors Payment,38.32,0,COMMERCIAL SUPPLIER,
01-12-2022,Adults & Health,London Care Plc,Home Care - Private Contractors Payment,119.75,0,COMMERCIAL SUPPLIER,
01-12-2022,Adults & Health,London Care Plc,Home Care - Private Contractors Payment,201.18,0,COMMERCIAL SUPPLIER,
01-12-2022,Adults & Health,London Care Plc,Home Care - Private Contractors Payment,28.74,0,COMMERCIAL SUPPLIER,
01-12-2022,Adults & Health,London Care Plc,Daycare - Private Contractors Payment,268.24,0,COMMERCIAL SUPPLIER,
01-12-2022,Adults & Health,London Care Plc,Daycare - Private Contractors Payment,38.32,0,COMMERCIAL SUPPLIER,
01-12-2022,Adults & Health,London Care Plc,Daycare - Private Contractors Payment,38.32,0,COMMERCIAL SUPPLIER,
01-12-2022,Adults & Health,London Care Plc,Daycare - Private Contractors Payment,76.64,0,COMMERCIAL SUPPLIER,
01-12-2022,Adults & Health,London Care Plc,Home Care - Private Contractors Payment,100.59,0,COMMERCIAL SUPPLIER,
01-12-2022,Adults & Health,London Care Plc,Home Care - Private Contractors Payment,114.96,0,COMMERCIAL SUPPLIER,
01-12-2022,Adults & Health,London Care Plc,Home Care - Private Contractors Payment,134.12,0,COMMERCIAL SUPPLIER,
01-12-2022,Adults & Health,London Care Plc,Daycare - Private Contractors Payment,95.8,0,COMMERCIAL SUPPLIER,
01-12-2022,Adults & Health,London Care Plc,Respite Care - Private Contractors Payment,76.64,0,COMMERCIAL SUPPLIER,
01-12-2022,Adults & Health,London Care Plc,Daycare - Private Contractors Payment,57.48,0,COMMERCIAL SUPPLIER,
01-12-2022,Adults & Health,London Care Plc,Home Care - Private Contractors Payment,167.65,0,COMMERCIAL SUPPLIER,
01-12-2022,Adults & Health,London Care Plc,Home Care - Private Contractors Payment,201.18,0,COMMERCIAL SUPPLIER,
01-12-2022,Adults & Health,London Care Plc,Home Care - Private Contractors Payment,253.87,0,COMMERCIAL SUPPLIER,
01-12-2022,Adults & Health,London Care Plc,Home Care - Private Contractors Payment,167.65,0,COMMERCIAL SUPPLIER,
01-12-2022,Adults & Health,London Care Plc,Home Care - Private Contractors Payment,704.13,0,COMMERCIAL SUPPLIER,
01-12-2022,Adults & Health,London Care Plc,Daycare - Private Contractors Payment,38.32,0,COMMERCIAL SUPPLIER,
01-12-2022,Adults & Health,London Care Plc,Home Care - Private Contractors Payment,134.12,0,COMMERCIAL SUPPLIER,
01-12-2022,Adults & Health,London Care Plc,Home Care - Private Contractors Payment,28.74,0,COMMERCIAL SUPPLIER,
01-12-2022,Adults & Health,London Care Plc,Home Care - Private Contractors Payment,167.65,0,COMMERCIAL SUPPLIER,
01-12-2022,Adults & Health,London Care Plc,Home Care - Private Contractors Payment,86.22,0,COMMERCIAL SUPPLIER,
01-12-2022,Adults & Health,London Care Plc,Home Care - Private Contractors Payment,201.18,0,COMMERCIAL SUPPLIER,
01-12-2022,Adults & Health,London Care Plc,Respite Care - Private Contractors Payment,57.48,0,COMMERCIAL SUPPLIER,
01-12-2022,Adults & Health,London Care Plc,Daycare - Private Contractors Payment,268.24,0,COMMERCIAL SUPPLIER,
01-12-2022,Adults & Health,London Care Plc,Home Care - Private Contractors Payment,19.16,0,COMMERCIAL SUPPLIER,
01-12-2022,Adults & Health,London Care Plc,Home Care - Private Contractors Payment,19.16,0,COMMERCIAL SUPPLIER,
01-12-2022,Adults & Health,London Care Plc,Home Care - Private Contractors Payment,57.48,0,COMMERCIAL SUPPLIER,
01-12-2022,Adults & Health,London Care Plc,Daycare - Private Contractors Payment,1.59,0,COMMERCIAL SUPPLIER,
01-12-2022,Adults & Health,London Care Plc,Home Care - Private Contractors Payment,28.74,0,COMMERCIAL SUPPLIER,
01-12-2022,Adults & Health,London Care Plc,Home Care - Private Contractors Payment,368.83,0,COMMERCIAL SUPPLIER,
01-12-2022,Adults & Health,London Care Plc,Home Care - Private Contractors Payment,234.71,0,COMMERCIAL SUPPLIER,
01-12-2022,Adults & Health,London Care Plc,Home Care - Private Contractors Payment,19.16,0,COMMERCIAL SUPPLIER,
01-12-2022,Adults & Health,London Care Plc,Home Care - Private Contractors Payment,234.71,0,COMMERCIAL SUPPLIER,
01-12-2022,Adults & Health,London Care Plc,Home Care - Private Contractors Payment,737.66,0,COMMERCIAL SUPPLIER,
01-12-2022,Adults & Health,London Care Plc,Home Care - Private Contractors Payment,38.32,0,COMMERCIAL SUPPLIER,
01-12-2022,Adults & Health,London Care Plc,Home Care - Private Contractors Payment,28.74,0,COMMERCIAL SUPPLIER,
01-12-2022,Adults & Health,London Care Plc,Home Care - Private Contractors Payment,134.12,0,COMMERCIAL SUPPLIER,
01-12-2022,Adults & Health,London Care Plc,Home Care - Private Contractors Payment,335.3,0,COMMERCIAL SUPPLIER,
01-12-2022,Adults & Health,London Care Plc,Respite Care - Private Contractors Payment,38.32,0,COMMERCIAL SUPPLIER,
01-12-2022,Adults & Health,London Care Plc,Home Care - Private Contractors Payment,234.71,0,COMMERCIAL SUPPLIER,
01-12-2022,Adults & Health,London Care Plc,Home Care - Private Contractors Payment,129.33,0,COMMERCIAL SUPPLIER,
01-12-2022,Adults & Health,London Care Plc,Home Care - Private Contractors Payment,71.85,0,COMMERCIAL SUPPLIER,
01-12-2022,Adults & Health,London Care Plc,Daycare - Private Contractors Payment,114.96,0,COMMERCIAL SUPPLIER,
01-12-2022,Adults & Health,London Care Plc,Home Care - Private Contractors Payment,38.32,0,COMMERCIAL SUPPLIER,
01-12-2022,Adults & Health,London Care Plc,Home Care - Private Contractors Payment,167.65,0,COMMERCIAL SUPPLIER,
01-12-2022,Adults & Health,London Care Plc,Home Care - Private Contractors Payment,57.48,0,COMMERCIAL SUPPLIER,
01-12-2022,Adults & Health,London Care Plc,Home Care - Private Contractors Payment,57.48,0,COMMERCIAL SUPPLIER,
01-12-2022,Adults & Health,London Care Plc,Daycare - Private Contractors Payment,19.16,0,COMMERCIAL SUPPLIER,
01-12-2022,Adults & Health,London Care Plc,Home Care - Private Contractors Payment,172.44,0,COMMERCIAL SUPPLIER,
01-12-2022,Adults & Health,London Care Plc,Home Care - Private Contractors Payment,234.71,0,COMMERCIAL SUPPLIER,
01-12-2022,Adults & Health,London Care Plc,Home Care - Private Contractors Payment,81.43,0,COMMERCIAL SUPPLIER,
01-12-2022,Adults & Health,London Care Plc,Daycare - Private Contractors Payment,57.48,0,COMMERCIAL SUPPLIER,
01-12-2022,Adults & Health,London Care Plc,Daycare - Private Contractors Payment,67.06,0,COMMERCIAL SUPPLIER,
01-12-2022,Adults & Health,London Care Plc,Home Care - Private Contractors Payment,19.16,0,COMMERCIAL SUPPLIER,
01-12-2022,Adults & Health,London Care Plc,Home Care - Private Contractors Payment,296.98,0,COMMERCIAL SUPPLIER,
01-12-2022,Adults & Health,London Care Plc,Daycare - Private Contractors Payment,19.16,0,COMMERCIAL SUPPLIER,
01-12-2022,Adults & Health,London Care Plc,Home Care - Private Contractors Payment,502.95,0,COMMERCIAL SUPPLIER,
01-12-2022,Adults & Health,London Care Plc,Home Care - Private Contractors Payment,38.32,0,COMMERCIAL SUPPLIER,
01-12-2022,Adults & Health,London Care Plc,Home Care - Private Contractors Payment,67.06,0,COMMERCIAL SUPPLIER,
01-12-2022,Adults & Health,London Care Plc,Home Care - Private Contractors Payment,100.59,0,COMMERCIAL SUPPLIER,
01-12-2022,Adults & Health,London Care Plc,Home Care - Private Contractors Payment,100.59,0,COMMERCIAL SUPPLIER,
01-12-2022,Adults & Health,London Care Plc,Home Care - Private Contractors Payment,201.18,0,COMMERCIAL SUPPLIER,
01-12-2022,Adults & Health,London Care Plc,Daycare - Private Contractors Payment,57.48,0,COMMERCIAL SUPPLIER,
01-12-2022,Adults & Health,London Care Plc,Home Care - Private Contractors Payment,19.16,0,COMMERCIAL SUPPLIER,
01-12-2022,Adults & Health,London Care Plc,Daycare - Private Contractors Payment,28.74,0,COMMERCIAL SUPPLIER,
01-12-2022,Adults & Health,London Care Plc,Home Care - Private Contractors Payment,38.32,0,COMMERCIAL SUPPLIER,
01-12-2022,Adults & Health,London Care Plc,Home Care - Private Contractors Payment,19.16,0,COMMERCIAL SUPPLIER,
01-12-2022,Adults & Health,London Care Plc,Home Care - Private Contractors Payment,234.71,0,COMMERCIAL SUPPLIER,
01-12-2022,Adults & Health,London Care Plc,Home Care - Private Contractors Payment,38.32,0,COMMERCIAL SUPPLIER,
01-12-2022,Adults & Health,London Care Plc,Home Care - Private Contractors Payment,502.95,0,COMMERCIAL SUPPLIER,
01-12-2022,Adults & Health,London Care Plc,Home Care - Private Contractors Payment,177.23,0,COMMERCIAL SUPPLIER,
01-12-2022,Adults & Health,London Care Plc,Home Care - Private Contractors Payment,28.74,0,COMMERCIAL SUPPLIER,
01-12-2022,Adults & Health,London Care Plc,Daycare - Private Contractors Payment,28.74,0,COMMERCIAL SUPPLIER,
01-12-2022,Adults & Health,London Care Plc,Daycare - Private Contractors Payment,19.16,0,COMMERCIAL SUPPLIER,
01-12-2022,Adults & Health,London Care Plc,Home Care - Private Contractors Payment,58.42,0,COMMERCIAL SUPPLIER,
01-12-2022,Adults & Health,London Care Plc,Daycare - Private Contractors Payment,38.32,0,COMMERCIAL SUPPLIER,
01-12-2022,Adults & Health,London Care Plc,Reablement,134.12,0,COMMERCIAL SUPPLIER,
01-12-2022,Adults & Health,London Care Plc,Home Care - Private Contractors Payment,536.48,0,COMMERCIAL SUPPLIER,
01-12-2022,Adults & Health,London Care Plc,Home Care - Private Contractors Payment,268.24,0,COMMERCIAL SUPPLIER,
01-12-2022,Adults & Health,London Care Plc,Home Care - Private Contractors Payment,95.8,0,COMMERCIAL SUPPLIER,
01-12-2022,Adults & Health,London Care Plc,Home Care - Private Contractors Payment,28.74,0,COMMERCIAL SUPPLIER,
01-12-2022,Adults & Health,London Care Plc,Home Care - Private Contractors Payment,234.71,0,COMMERCIAL SUPPLIER,
01-12-2022,Adults & Health,London Care Plc,Home Care - Private Contractors Payment,95.8,0,COMMERCIAL SUPPLIER,
01-12-2022,Adults & Health,London Care Plc,Home Care - Private Contractors Payment,71.85,0,COMMERCIAL SUPPLIER,
01-12-2022,Adults & Health,London Care Plc,Daycare - Private Contractors Payment,76.64,0,COMMERCIAL SUPPLIER,
01-12-2022,Adults & Health,London Care Plc,Daycare - Private Contractors Payment,95.8,0,COMMERCIAL SUPPLIER,
01-12-2022,Adults & Health,London Care Plc,Home Care - Private Contractors Payment,167.65,0,COMMERCIAL SUPPLIER,
01-12-2022,Adults & Health,London Care Plc,Home Care - Private Contractors Payment,234.71,0,COMMERCIAL SUPPLIER,
01-12-2022,Adults & Health,London Care Plc,Home Care - Private Contractors Payment,100.59,0,COMMERCIAL SUPPLIER,
01-12-2022,Adults & Health,London Care Plc,Daycare - Private Contractors Payment,38.32,0,COMMERCIAL SUPPLIER,
01-12-2022,Adults & Health,London Care Plc,Home Care - Private Contractors Payment,38.32,0,COMMERCIAL SUPPLIER,
01-12-2022,Adults & Health,London Care Plc,Home Care - Private Contractors Payment,38.32,0,COMMERCIAL SUPPLIER,
01-12-2022,Adults & Health,London Care Plc,Home Care - Private Contractors Payment,201.18,0,COMMERCIAL SUPPLIER,
01-12-2022,Adults & Health,London Care Plc,Daycare - Private Contractors Payment,134.12,0,COMMERCIAL SUPPLIER,
01-12-2022,Adults & Health,London Care Plc,Home Care - Private Contractors Payment,19.16,0,COMMERCIAL SUPPLIER,
01-12-2022,Adults & Health,London Care Plc,Home Care - Private Contractors Payment,28.74,0,COMMERCIAL SUPPLIER,
01-12-2022,Adults & Health,London Care Plc,Home Care - Private Contractors Payment,28.74,0,COMMERCIAL SUPPLIER,
01-12-2022,Adults & Health,London Care Plc,Reablement,234.71,0,COMMERCIAL SUPPLIER,
01-12-2022,Adults & Health,London Care Plc,Home Care - Private Contractors Payment,38.32,0,COMMERCIAL SUPPLIER,
01-12-2022,Adults & Health,London Care Plc,Home Care - Private Contractors Payment,373.62,0,COMMERCIAL SUPPLIER,
01-12-2022,Adults & Health,London Care Plc,Home Care - Private Contractors Payment,167.65,0,COMMERCIAL SUPPLIER,
01-12-2022,Adults & Health,London Care Plc,Home Care - Private Contractors Payment,167.65,0,COMMERCIAL SUPPLIER,
01-12-2022,Adults & Health,London Care Plc,Home Care - Private Contractors Payment,201.18,0,COMMERCIAL SUPPLIER,
01-12-2022,Adults & Health,London Care Plc,Daycare - Private Contractors Payment,38.32,0,COMMERCIAL SUPPLIER,
01-12-2022,Adults & Health,London Care Plc,Home Care - Private Contractors Payment,752.66,0,COMMERCIAL SUPPLIER,
01-12-2022,Adults & Health,London Care Plc,Home Care - Private Contractors Payment,235.67,0,COMMERCIAL SUPPLIER,
01-12-2022,Adults & Health,London Care Plc,Home Care - Private Contractors Payment,38.32,0,COMMERCIAL SUPPLIER,
01-12-2022,Adults & Health,London Care Plc,Home Care - Private Contractors Payment,19.16,0,COMMERCIAL SUPPLIER,
01-12-2022,Adults & Health,London Care Plc,Home Care - Private Contractors Payment,19.16,0,COMMERCIAL SUPPLIER,
01-12-2022,Adults & Health,London Care Plc,Home Care - Private Contractors Payment,217.13,0,COMMERCIAL SUPPLIER,
01-12-2022,Adults & Health,London Care Plc,Home Care - Private Contractors Payment,38.32,0,COMMERCIAL SUPPLIER,
01-12-2022,Adults & Health,London Care Plc,Daycare - Private Contractors Payment,114.96,0,COMMERCIAL SUPPLIER,
01-12-2022,Adults & Health,London Care Plc,Home Care - Private Contractors Payment,28.74,0,COMMERCIAL SUPPLIER,
01-12-2022,Adults & Health,London Care Plc,Home Care - Private Contractors Payment,459.84,0,COMMERCIAL SUPPLIER,
01-12-2022,Adults & Health,London Care Plc,Home Care - Private Contractors Payment,0.64,0,COMMERCIAL SUPPLIER,
01-12-2022,Adults & Health,London Care Plc,Daycare - Private Contractors Payment,38.32,0,COMMERCIAL SUPPLIER,
01-12-2022,Adults & Health,London Care Plc,Home Care - Private Contractors Payment,435.89,0,COMMERCIAL SUPPLIER,
01-12-2022,Adults & Health,London Care Plc,Home Care - Private Contractors Payment,249.71,0,COMMERCIAL SUPPLIER,
01-12-2022,Adults & Health,London Care Plc,Daycare - Private Contractors Payment,57.48,0,COMMERCIAL SUPPLIER,
01-12-2022,Adults & Health,London Care Plc,Home Care - Private Contractors Payment,373.62,0,COMMERCIAL SUPPLIER,
01-12-2022,Adults & Health,London Care Plc,Home Care - Private Contractors Payment,110.17,0,COMMERCIAL SUPPLIER,
01-12-2022,Adults & Health,London Care Plc,Daycare - Private Contractors Payment,19.16,0,COMMERCIAL SUPPLIER,
01-12-2022,Adults & Health,London Care Plc,Home Care - Private Contractors Payment,205.64,0,COMMERCIAL SUPPLIER,
01-12-2022,Adults & Health,London Care Plc,Daycare - Private Contractors Payment,31.32,0,COMMERCIAL SUPPLIER,
01-12-2022,Adults & Health,London Care Plc,Daycare - Private Contractors Payment,28.74,0,COMMERCIAL SUPPLIER,
01-12-2022,Adults & Health,London Care Plc,Home Care - Private Contractors Payment,28.74,0,COMMERCIAL SUPPLIER,
01-12-2022,Adults & Health,London Care Plc,Home Care - Private Contractors Payment,234.71,0,COMMERCIAL SUPPLIER,
01-12-2022,Adults & Health,London Care Plc,Home Care - Private Contractors Payment,28.74,0,COMMERCIAL SUPPLIER,
01-12-2022,Adults & Health,London Care Plc,Respite Care - Private Contractors Payment,95.8,0,COMMERCIAL SUPPLIER,
01-12-2022,Adults & Health,London Care Plc,Home Care - Private Contractors Payment,416.73,0,COMMERCIAL SUPPLIER,
01-12-2022,Adults & Health,London Care Plc,Home Care - Private Contractors Payment,234.71,0,COMMERCIAL SUPPLIER,
01-12-2022,Adults & Health,London Care Plc,Daycare - Private Contractors Payment,28.74,0,COMMERCIAL SUPPLIER,
01-12-2022,Adults & Health,London Care Plc,Home Care - Private Contractors Payment,71.85,0,COMMERCIAL SUPPLIER,
01-12-2022,Adults & Health,London Care Plc,Home Care - Private Contractors Payment,296.98,0,COMMERCIAL SUPPLIER,
01-12-2022,Adults & Health,London Care Plc,Home Care - Private Contractors Payment,249.71,0,COMMERCIAL SUPPLIER,
01-12-2022,Adults & Health,London Care Plc,Daycare - Private Contractors Payment,47.9,0,COMMERCIAL SUPPLIER,
01-12-2022,Adults & Health,London Care Plc,Home Care - Private Contractors Payment,143.38,0,COMMERCIAL SUPPLIER,
01-12-2022,Adults & Health,London Care Plc,Daycare - Private Contractors Payment,19.16,0,COMMERCIAL SUPPLIER,
01-12-2022,Adults & Health,London Care Plc,Daycare - Private Contractors Payment,268.24,0,COMMERCIAL SUPPLIER,
01-12-2022,Adults & Health,London Care Plc,Home Care - Private Contractors Payment,134.12,0,COMMERCIAL SUPPLIER,
01-12-2022,Adults & Health,London Care Plc,Home Care - Private Contractors Payment,167.65,0,COMMERCIAL SUPPLIER,
01-12-2022,Adults & Health,London Care Plc,Home Care - Private Contractors Payment,234.71,0,COMMERCIAL SUPPLIER,
01-12-2022,Adults & Health,London Care Plc,Home Care - Private Contractors Payment,28.74,0,COMMERCIAL SUPPLIER,
01-12-2022,Adults & Health,London Care Plc,Home Care - Private Contractors Payment,268.24,0,COMMERCIAL SUPPLIER,
01-12-2022,Adults & Health,London Care Plc,Home Care - Private Contractors Payment,28.74,0,COMMERCIAL SUPPLIER,
01-12-2022,Adults & Health,London Care Plc,Home Care - Private Contractors Payment,234.71,0,COMMERCIAL SUPPLIER,
01-12-2022,Adults & Health,London Care Plc,Home Care - Private Contractors Payment,124.54,0,COMMERCIAL SUPPLIER,
01-12-2022,Adults & Health,London Care Plc,Home Care - Private Contractors Payment,301.77,0,COMMERCIAL SUPPLIER,
01-12-2022,Adults & Health,London Care Plc,Home Care - Private Contractors Payment,201.18,0,COMMERCIAL SUPPLIER,
01-12-2022,Adults & Health,London Care Plc,Home Care - Private Contractors Payment,100.59,0,COMMERCIAL SUPPLIER,
01-12-2022,Adults & Health,London Care Plc,Home Care - Private Contractors Payment,234.71,0,COMMERCIAL SUPPLIER,
01-12-2022,Adults & Health,London Care Plc,Home Care - Private Contractors Payment,134.12,0,COMMERCIAL SUPPLIER,
01-12-2022,Adults & Health,London Care Plc,Home Care - Private Contractors Payment,167.65,0,COMMERCIAL SUPPLIER,
01-12-2022,Adults & Health,London Care Plc,Daycare - Private Contractors Payment,95.8,0,COMMERCIAL SUPPLIER,
01-12-2022,Adults & Health,London Care Plc,Home Care - Private Contractors Payment,43.11,0,COMMERCIAL SUPPLIER,
01-12-2022,Adults & Health,London Care Plc,Home Care - Private Contractors Payment,19.16,0,COMMERCIAL SUPPLIER,
01-12-2022,Adults & Health,London Care Plc,Home Care - Private Contractors Payment,167.65,0,COMMERCIAL SUPPLIER,
01-12-2022,Adults & Health,London Care Plc,Home Care - Private Contractors Payment,67.06,0,COMMERCIAL SUPPLIER,
01-12-2022,Adults & Health,London Care Plc,Home Care - Private Contractors Payment,167.65,0,COMMERCIAL SUPPLIER,
01-12-2022,Adults & Health,London Care Plc,Home Care - Private Contractors Payment,234.71,0,COMMERCIAL SUPPLIER,
01-12-2022,Adults & Health,London Care Plc,Home Care - Private Contractors Payment,114.96,0,COMMERCIAL SUPPLIER,
01-12-2022,Adults & Health,London Care Plc,Home Care - Private Contractors Payment,134.12,0,COMMERCIAL SUPPLIER,
01-12-2022,Adults & Health,London Care Plc,Home Care - Private Contractors Payment,167.65,0,COMMERCIAL SUPPLIER,
01-12-2022,Adults & Health,London Care Plc,Home Care - Private Contractors Payment,234.71,0,COMMERCIAL SUPPLIER,
01-12-2022,Adults & Health,London Care Plc,Daycare - Private Contractors Payment,76.64,0,COMMERCIAL SUPPLIER,
01-12-2022,Adults & Health,London Care Plc,Daycare - Private Contractors Payment,76.64,0,COMMERCIAL SUPPLIER,
01-12-2022,Adults & Health,London Care Plc,Home Care - Private Contractors Payment,67.06,0,COMMERCIAL SUPPLIER,
01-12-2022,Adults & Health,London Care Plc,Reablement,134.12,0,COMMERCIAL SUPPLIER,
01-12-2022,Adults & Health,London Care Plc,Home Care - Private Contractors Payment,114.96,0,COMMERCIAL SUPPLIER,
01-12-2022,Adults & Health,London Care Plc,Daycare - Private Contractors Payment,28.1,0,COMMERCIAL SUPPLIER,
01-12-2022,Adults & Health,London Care Plc,Home Care - Private Contractors Payment,335.3,0,COMMERCIAL SUPPLIER,
01-12-2022,Adults & Health,London Care Plc,Home Care - Private Contractors Payment,76.64,0,COMMERCIAL SUPPLIER,
01-12-2022,Adults & Health,London Care Plc,Home Care - Private Contractors Payment,201.18,0,COMMERCIAL SUPPLIER,
01-12-2022,Adults & Health,London Care Plc,Home Care - Private Contractors Payment,201.18,0,COMMERCIAL SUPPLIER,
01-12-2022,Adults & Health,London Care Plc,Daycare - Private Contractors Payment,57.48,0,COMMERCIAL SUPPLIER,
01-12-2022,Adults & Health,London Care Plc,Home Care - Private Contractors Payment,234.71,0,COMMERCIAL SUPPLIER,
01-12-2022,Adults & Health,London Care Plc,Home Care - Private Contractors Payment,234.71,0,COMMERCIAL SUPPLIER,
01-12-2022,Adults & Health,London Care Plc,Home Care - Private Contractors Payment,38.32,0,COMMERCIAL SUPPLIER,
01-12-2022,Adults & Health,London Care Plc,Home Care - Private Contractors Payment,502.95,0,COMMERCIAL SUPPLIER,
01-12-2022,Adults & Health,London Care Plc,Daycare - Private Contractors Payment,57.48,0,COMMERCIAL SUPPLIER,
01-12-2022,Adults & Health,London Care Plc,Home Care - Private Contractors Payment,435.89,0,COMMERCIAL SUPPLIER,
01-12-2022,Adults & Health,London Care Plc,Home Care - Private Contractors Payment,19.16,0,COMMERCIAL SUPPLIER,
01-12-2022,Adults & Health,London Care Plc,Home Care - Private Contractors Payment,57.48,0,COMMERCIAL SUPPLIER,
01-12-2022,Adults & Health,London Care Plc,Home Care - Private Contractors Payment,335.3,0,COMMERCIAL SUPPLIER,
01-12-2022,Adults & Health,London Care Plc,Respite Care - Private Contractors Payment,76.64,0,COMMERCIAL SUPPLIER,
01-12-2022,Adults & Health,London Care Plc,Home Care - Private Contractors Payment,234.71,0,COMMERCIAL SUPPLIER,
01-12-2022,Adults & Health,London Care Plc,Home Care - Private Contractors Payment,249.71,0,COMMERCIAL SUPPLIER,
01-12-2022,Adults & Health,London Care Plc,Home Care - Private Contractors Payment,333.07,0,COMMERCIAL SUPPLIER,
01-12-2022,Adults & Health,London Care Plc,Home Care - Private Contractors Payment,708.92,0,COMMERCIAL SUPPLIER,
01-12-2022,Adults & Health,London Care Plc,Daycare - Private Contractors Payment,57.48,0,COMMERCIAL SUPPLIER,
01-12-2022,Adults & Health,London Care Plc,Home Care - Private Contractors Payment,114.96,0,COMMERCIAL SUPPLIER,
01-12-2022,Adults & Health,London Care Plc,Home Care - Private Contractors Payment,40.85,0,COMMERCIAL SUPPLIER,
01-12-2022,Adults & Health,London Care Plc,Daycare - Private Contractors Payment,28.74,0,COMMERCIAL SUPPLIER,
01-12-2022,Adults & Health,London Care Plc,Home Care - Private Contractors Payment,188.72,0,COMMERCIAL SUPPLIER,
01-12-2022,Adults & Health,London Care Plc,Home Care - Private Contractors Payment,101.23,0,COMMERCIAL SUPPLIER,
01-12-2022,Adults & Health,London Care Plc,Home Care - Private Contractors Payment,316.77,0,COMMERCIAL SUPPLIER,
01-12-2022,Adults & Health,London Care Plc,Daycare - Private Contractors Payment,57.48,0,COMMERCIAL SUPPLIER,
01-12-2022,Adults & Health,London Care Plc,Home Care - Private Contractors Payment,95.8,0,COMMERCIAL SUPPLIER,
01-12-2022,Adults & Health,London Care Plc,Home Care - Private Contractors Payment,201.18,0,COMMERCIAL SUPPLIER,
01-12-2022,Adults & Health,London Care Plc,Home Care - Private Contractors Payment,704.13,0,COMMERCIAL SUPPLIER,
01-12-2022,Adults & Health,London Care Plc,Home Care - Private Contractors Payment,373.62,0,COMMERCIAL SUPPLIER,
01-12-2022,Adults & Health,London Care Plc,Home Care - Private Contractors Payment,167.65,0,COMMERCIAL SUPPLIER,
01-12-2022,Adults & Health,London Care Plc,Home Care - Private Contractors Payment,201.18,0,COMMERCIAL SUPPLIER,
01-12-2022,Adults & Health,London Care Plc,Home Care - Private Contractors Payment,153.28,0,COMMERCIAL SUPPLIER,
01-12-2022,Adults & Health,London Care Plc,Home Care - Private Contractors Payment,52.69,0,COMMERCIAL SUPPLIER,
01-12-2022,Adults & Health,London Care Plc,Home Care - Private Contractors Payment,28.1,0,COMMERCIAL SUPPLIER,
01-12-2022,Adults & Health,London Care Plc,Home Care - Private Contractors Payment,336.26,0,COMMERCIAL SUPPLIER,
01-12-2022,Adults & Health,London Care Plc,Home Care - Private Contractors Payment,28.74,0,COMMERCIAL SUPPLIER,
01-12-2022,Adults & Health,London Care Plc,Home Care - Private Contractors Payment,12.77,0,COMMERCIAL SUPPLIER,
01-12-2022,Adults & Health,London Care Plc,Home Care - Private Contractors Payment,28.74,0,COMMERCIAL SUPPLIER,
01-12-2022,Adults & Health,London Care Plc,Home Care - Private Contractors Payment,182.02,0,COMMERCIAL SUPPLIER,
01-12-2022,Adults & Health,London Care Plc,Home Care - Private Contractors Payment,234.71,0,COMMERCIAL SUPPLIER,
01-12-2022,Adults & Health,London Care Plc,Daycare - Private Contractors Payment,57.48,0,COMMERCIAL SUPPLIER,
01-12-2022,Adults & Health,London Care Plc,Home Care - Private Contractors Payment,172.44,0,COMMERCIAL SUPPLIER,
01-12-2022,Adults & Health,London Care Plc,Home Care - Private Contractors Payment,134.12,0,COMMERCIAL SUPPLIER,
01-12-2022,Adults & Health,London Care Plc,Home Care - Private Contractors Payment,67.06,0,COMMERCIAL SUPPLIER,
01-12-2022,Adults & Health,London Care Plc,Daycare - Private Contractors Payment,38.32,0,COMMERCIAL SUPPLIER,
01-12-2022,Adults & Health,London Care Plc,Home Care - Private Contractors Payment,38.32,0,COMMERCIAL SUPPLIER,
01-12-2022,Adults & Health,London Care Plc,Home Care - Private Contractors Payment,28.74,0,COMMERCIAL SUPPLIER,
01-12-2022,Adults & Health,London Care Plc,Home Care - Private Contractors Payment,201.18,0,COMMERCIAL SUPPLIER,
01-12-2022,Adults & Health,London Care Plc,Home Care - Private Contractors Payment,38.32,0,COMMERCIAL SUPPLIER,
01-12-2022,Adults & Health,London Care Plc,Home Care - Private Contractors Payment,43.11,0,COMMERCIAL SUPPLIER,
01-12-2022,Adults & Health,London Care Plc,Home Care - Private Contractors Payment,19.16,0,COMMERCIAL SUPPLIER,
01-12-2022,Adults & Health,London Care Plc,Home Care - Private Contractors Payment,234.71,0,COMMERCIAL SUPPLIER,
01-12-2022,Adults & Health,London Care Plc,Home Care - Private Contractors Payment,143.7,0,COMMERCIAL SUPPLIER,
01-12-2022,Adults & Health,London Care Plc,Daycare - Private Contractors Payment,38.32,0,COMMERCIAL SUPPLIER,
01-12-2022,Adults & Health,London Care Plc,Home Care - Private Contractors Payment,67.06,0,COMMERCIAL SUPPLIER,
01-12-2022,Adults & Health,London Care Plc,Home Care - Private Contractors Payment,167.65,0,COMMERCIAL SUPPLIER,
01-12-2022,Adults & Health,London Care Plc,Home Care - Private Contractors Payment,43.11,0,COMMERCIAL SUPPLIER,
01-12-2022,Adults & Health,London Care Plc,Daycare - Private Contractors Payment,19.16,0,COMMERCIAL SUPPLIER,
01-12-2022,Adults & Health,London Care Plc,Home Care - Private Contractors Payment,100.59,0,COMMERCIAL SUPPLIER,
01-12-2022,Adults & Health,London Care Plc,Home Care - Private Contractors Payment,19.16,0,COMMERCIAL SUPPLIER,
01-12-2022,Adults & Health,London Care Plc,Home Care - Private Contractors Payment,38.32,0,COMMERCIAL SUPPLIER,
01-12-2022,Adults & Health,London Care Plc,Home Care - Private Contractors Payment,368.83,0,COMMERCIAL SUPPLIER,
01-12-2022,Adults & Health,London Care Plc,Home Care - Private Contractors Payment,234.71,0,COMMERCIAL SUPPLIER,
01-12-2022,Adults & Health,London Care Plc,Home Care - Private Contractors Payment,134.12,0,COMMERCIAL SUPPLIER,
01-12-2022,Adults & Health,London Care Plc,Home Care - Private Contractors Payment,234.71,0,COMMERCIAL SUPPLIER,
01-12-2022,Adults & Health,London Care Plc,Home Care - Private Contractors Payment,335.3,0,COMMERCIAL SUPPLIER,
01-12-2022,Adults & Health,London Care Plc,Home Care - Private Contractors Payment,335.3,0,COMMERCIAL SUPPLIER,
01-12-2022,Adults & Health,London Care Plc,Home Care - Private Contractors Payment,167.65,0,COMMERCIAL SUPPLIER,
01-12-2022,Adults & Health,London Care Plc,Home Care - Private Contractors Payment,124.54,0,COMMERCIAL SUPPLIER,
01-12-2022,Adults & Health,London Care Plc,Home Care - Private Contractors Payment,19.16,0,COMMERCIAL SUPPLIER,
01-12-2022,Adults & Health,London Care Plc,Reablement,47.9,0,COMMERCIAL SUPPLIER,
01-12-2022,Adults & Health,London Care Plc,Daycare - Private Contractors Payment,95.8,0,COMMERCIAL SUPPLIER,
01-12-2022,Adults & Health,London Care Plc,Daycare - Private Contractors Payment,76.64,0,COMMERCIAL SUPPLIER,
01-12-2022,Adults & Health,London Care Plc,Daycare - Private Contractors Payment,47.9,0,COMMERCIAL SUPPLIER,
01-12-2022,Adults & Health,London Care Plc,Daycare - Private Contractors Payment,114.96,0,COMMERCIAL SUPPLIER,
01-12-2022,Adults & Health,London Care Plc,Daycare - Private Contractors Payment,76.64,0,COMMERCIAL SUPPLIER,
01-12-2022,Adults & Health,London Care Plc,Home Care - Private Contractors Payment,440.68,0,COMMERCIAL SUPPLIER,
01-12-2022,Adults & Health,London Care Plc,Home Care - Private Contractors Payment,19.16,0,COMMERCIAL SUPPLIER,
01-12-2022,Adults & Health,London Care Plc,Home Care - Private Contractors Payment,38.32,0,COMMERCIAL SUPPLIER,
01-12-2022,Adults & Health,London Care Plc,Home Care - Private Contractors Payment,253.87,0,COMMERCIAL SUPPLIER,
01-12-2022,Adults & Health,London Care Plc,Home Care - Private Contractors Payment,737.66,0,COMMERCIAL SUPPLIER,
01-12-2022,Adults & Health,London Care Plc,Home Care - Private Contractors Payment,28.74,0,COMMERCIAL SUPPLIER,
01-12-2022,Adults & Health,London Care Plc,Daycare - Private Contractors Payment,38.32,0,COMMERCIAL SUPPLIER,
01-12-2022,Adults & Health,London Care Plc,Home Care - Private Contractors Payment,19.16,0,COMMERCIAL SUPPLIER,
01-12-2022,Adults & Health,London Care Plc,Home Care - Private Contractors Payment,57.48,0,COMMERCIAL SUPPLIER,
01-12-2022,Adults & Health,London Care Plc,Home Care - Private Contractors Payment,19.16,0,COMMERCIAL SUPPLIER,
01-12-2022,Adults & Health,London Care Plc,Home Care - Private Contractors Payment,76.64,0,COMMERCIAL SUPPLIER,
01-12-2022,Adults & Health,London Care Plc,Home Care - Private Contractors Payment,234.71,0,COMMERCIAL SUPPLIER,
01-12-2022,Adults & Health,London Care Plc,Daycare - Private Contractors Payment,19.16,0,COMMERCIAL SUPPLIER,
01-12-2022,Adults & Health,London Care Plc,Daycare - Private Contractors Payment,38.32,0,COMMERCIAL SUPPLIER,
01-12-2022,Adults & Health,London Care Plc,Home Care - Private Contractors Payment,81.43,0,COMMERCIAL SUPPLIER,
01-12-2022,Adults & Health,London Care Plc,Daycare - Private Contractors Payment,57.48,0,COMMERCIAL SUPPLIER,
01-12-2022,Adults & Health,London Care Plc,Home Care - Private Contractors Payment,201.18,0,COMMERCIAL SUPPLIER,
01-12-2022,Adults & Health,London Care Plc,Home Care - Private Contractors Payment,536.48,0,COMMERCIAL SUPPLIER,
01-12-2022,Adults & Health,London Care Plc,Home Care - Private Contractors Payment,43.11,0,COMMERCIAL SUPPLIER,
01-12-2022,Adults & Health,London Care Plc,Home Care - Private Contractors Payment,67.06,0,COMMERCIAL SUPPLIER,
01-12-2022,Adults & Health,London Care Plc,Home Care - Private Contractors Payment,28.74,0,COMMERCIAL SUPPLIER,
01-12-2022,Adults & Health,London Care Plc,Home Care - Private Contractors Payment,134.12,0,COMMERCIAL SUPPLIER,
01-12-2022,Adults & Health,London Care Plc,Home Care - Private Contractors Payment,234.71,0,COMMERCIAL SUPPLIER,
01-12-2022,Adults & Health,London Care Plc,Home Care - Private Contractors Payment,19.16,0,COMMERCIAL SUPPLIER,
01-12-2022,Adults & Health,London Care Plc,Home Care - Private Contractors Payment,100.59,0,COMMERCIAL SUPPLIER,
01-12-2022,Adults & Health,London Care Plc,Home Care - Private Contractors Payment,234.71,0,COMMERCIAL SUPPLIER,
01-12-2022,Adults & Health,London Care Plc,Home Care - Private Contractors Payment,19.16,0,COMMERCIAL SUPPLIER,
01-12-2022,Adults & Health,London Care Plc,Home Care - Private Contractors Payment,19.16,0,COMMERCIAL SUPPLIER,
01-12-2022,Adults & Health,London Care Plc,Home Care - Private Contractors Payment,201.18,0,COMMERCIAL SUPPLIER,
01-12-2022,Adults & Health,London Care Plc,Home Care - Private Contractors Payment,296.98,0,COMMERCIAL SUPPLIER,
01-12-2022,Adults & Health,London Care Plc,Daycare - Private Contractors Payment,38.32,0,COMMERCIAL SUPPLIER,
01-12-2022,Adults & Health,London Care Plc,Home Care - Private Contractors Payment,737.66,0,COMMERCIAL SUPPLIER,
01-12-2022,Adults & Health,London Care Plc,Home Care - Private Contractors Payment,201.18,0,COMMERCIAL SUPPLIER,
01-12-2022,Adults & Health,London Care Plc,Reablement,76.64,0,COMMERCIAL SUPPLIER,
01-12-2022,Adults & Health,London Care Plc,Home Care - Private Contractors Payment,67.06,0,COMMERCIAL SUPPLIER,
01-12-2022,Adults & Health,London Care Plc,Daycare - Private Contractors Payment,191.6,0,COMMERCIAL SUPPLIER,
01-12-2022,Adults & Health,London Care Plc,Home Care - Private Contractors Payment,28.74,0,COMMERCIAL SUPPLIER,
01-12-2022,Adults & Health,London Care Plc,Home Care - Private Contractors Payment,38.32,0,COMMERCIAL SUPPLIER,
01-12-2022,Adults & Health,London Care Plc,Home Care - Private Contractors Payment,335.3,0,COMMERCIAL SUPPLIER,
01-12-2022,Adults & Health,London Care Plc,Home Care - Private Contractors Payment,134.12,0,COMMERCIAL SUPPLIER,
01-12-2022,Adults & Health,London Care Plc,Home Care - Private Contractors Payment,114.96,0,COMMERCIAL SUPPLIER,
01-12-2022,Adults & Health,London Care Plc,Home Care - Private Contractors Payment,268.24,0,COMMERCIAL SUPPLIER,
01-12-2022,Adults & Health,London Care Plc,Home Care - Private Contractors Payment,234.71,0,COMMERCIAL SUPPLIER,
01-12-2022,Adults & Health,London Care Plc,Home Care - Private Contractors Payment,38.32,0,COMMERCIAL SUPPLIER,
01-12-2022,Adults & Health,London Care Plc,Home Care - Private Contractors Payment,134.12,0,COMMERCIAL SUPPLIER,
01-12-2022,Adults & Health,London Care Plc,Daycare - Private Contractors Payment,28.74,0,COMMERCIAL SUPPLIER,
01-12-2022,Adults & Health,London Care Plc,Home Care - Private Contractors Payment,19.16,0,COMMERCIAL SUPPLIER,
01-12-2022,Adults & Health,London Care Plc,Daycare - Private Contractors Payment,38.32,0,COMMERCIAL SUPPLIER,
01-12-2022,Adults & Health,London Care Plc,Home Care - Private Contractors Payment,268.24,0,COMMERCIAL SUPPLIER,
01-12-2022,Adults & Health,London Care Plc,Home Care - Private Contractors Payment,100.59,0,COMMERCIAL SUPPLIER,
01-12-2022,Adults & Health,London Care Plc,Home Care - Private Contractors Payment,71.85,0,COMMERCIAL SUPPLIER,
01-12-2022,Adults & Health,London Care Plc,Daycare - Private Contractors Payment,57.48,0,COMMERCIAL SUPPLIER,
01-12-2022,Adults & Health,London Care Plc,Home Care - Private Contractors Payment,33.53,0,COMMERCIAL SUPPLIER,
01-12-2022,Adults & Health,London Care Plc,Home Care - Private Contractors Payment,33.53,0,COMMERCIAL SUPPLIER,
01-12-2022,Adults & Health,London Care Plc,Home Care - Private Contractors Payment,167.25,0,COMMERCIAL SUPPLIER,
01-12-2022,Adults & Health,London Care Plc,Home Care - Private Contractors Payment,19.16,0,COMMERCIAL SUPPLIER,
01-12-2022,Adults & Health,London Care Plc,Home Care - Private Contractors Payment,19.16,0,COMMERCIAL SUPPLIER,
01-12-2022,Adults & Health,London Care Plc,Home Care - Private Contractors Payment,19.16,0,COMMERCIAL SUPPLIER,
01-12-2022,Adults & Health,London Care Plc,Home Care - Private Contractors Payment,76.64,0,COMMERCIAL SUPPLIER,
01-12-2022,Adults & Health,London Care Plc,Home Care - Private Contractors Payment,201.18,0,COMMERCIAL SUPPLIER,
01-12-2022,Adults & Health,London Care Plc,Home Care - Private Contractors Payment,52.69,0,COMMERCIAL SUPPLIER,
01-12-2022,Adults & Health,London Care Plc,Home Care - Private Contractors Payment,134.12,0,COMMERCIAL SUPPLIER,
01-12-2022,Adults & Health,London Care Plc,Home Care - Private Contractors Payment,14.37,0,COMMERCIAL SUPPLIER,
01-12-2022,Adults & Health,London Care Plc,Home Care - Private Contractors Payment,27.78,0,COMMERCIAL SUPPLIER,
01-12-2022,Adults & Health,London Care Plc,Reablement,47.9,0,COMMERCIAL SUPPLIER,
01-12-2022,Adults & Health,London Care Plc,Daycare - Private Contractors Payment,261.52,0,COMMERCIAL SUPPLIER,
01-12-2022,Adults & Health,London Care Plc,Daycare - Private Contractors Payment,34.8,0,COMMERCIAL SUPPLIER,
01-12-2022,Adults & Health,London Care Plc,Home Care - Private Contractors Payment,172.44,0,COMMERCIAL SUPPLIER,
01-12-2022,Adults & Health,London Care Plc,Daycare - Private Contractors Payment,134.12,0,COMMERCIAL SUPPLIER,
01-12-2022,Adults & Health,London Care Plc,Home Care - Private Contractors Payment,28.74,0,COMMERCIAL SUPPLIER,
01-12-2022,Adults & Health,London Care Plc,Home Care - Private Contractors Payment,65.78,0,COMMERCIAL SUPPLIER,
01-12-2022,Adults & Health,London Care Plc,Home Care - Private Contractors Payment,247.16,0,COMMERCIAL SUPPLIER,
01-12-2022,Adults & Health,London Care Plc,Home Care - Private Contractors Payment,239.5,0,COMMERCIAL SUPPLIER,
01-12-2022,Adults & Health,London Care Plc,Daycare - Private Contractors Payment,28.74,0,COMMERCIAL SUPPLIER,
01-12-2022,Adults & Health,London Care Plc,Home Care - Private Contractors Payment,182.02,0,COMMERCIAL SUPPLIER,
01-12-2022,Adults & Health,London Care Plc,Home Care - Private Contractors Payment,574.8,0,COMMERCIAL SUPPLIER,
01-12-2022,Adults & Health,London Care Plc,Daycare - Private Contractors Payment,57.48,0,COMMERCIAL SUPPLIER,
01-12-2022,Adults & Health,London Care Plc,Home Care - Private Contractors Payment,124.54,0,COMMERCIAL SUPPLIER,
01-12-2022,Adults & Health,London Care Plc,Reablement,19.16,0,COMMERCIAL SUPPLIER,
01-12-2022,Adults & Health,London Care Plc,Home Care - Private Contractors Payment,197.02,0,COMMERCIAL SUPPLIER,
01-12-2022,Adults & Health,London Care Plc,Home Care - Private Contractors Payment,172.44,0,COMMERCIAL SUPPLIER,
01-12-2022,Adults & Health,London Care Plc,Home Care - Private Contractors Payment,14.37,0,COMMERCIAL SUPPLIER,
01-12-2022,Adults & Health,London Care Plc,Home Care - Private Contractors Payment,404.25,0,COMMERCIAL SUPPLIER,
01-12-2022,Inclusive Economy & Housing,Adam Khan Architects,"Maintenance - Equipment, Furniture And Materials",8526.5,0,COMMERCIAL SUPPLIER,
01-12-2022,Adults & Health,Evolve & Adapt Community,Professional Services - General,33734.66,0,LOCAL AUTHORITY SERVICES,
01-12-2022,Adults & Health,Evolve & Adapt Community,Professional Services - General,33734.66,0,LOCAL AUTHORITY SERVICES,
01-12-2022,oneSource,Bytes Software Services Ltd,Ict Licences,223.5,0,NON COMMERCIAL SUPPLIER,
01-12-2022,oneSource,Bytes Software Services Ltd,Ict Licences,411.11,0,NON COMMERCIAL SUPPLIER,
01-12-2022,Environment and Sustainable Transport,Floglass Limited,"Purchase - Equipment, Furniture And Materials",220,0,COMMERCIAL SUPPLIER,
01-12-2022,Environment and Sustainable Transport,Floglass Limited,"Purchase - Equipment, Furniture And Materials",410,0,COMMERCIAL SUPPLIER,
01-12-2022,Environment and Sustainable Transport,Floglass Limited,"Purchase - Equipment, Furniture And Materials",410,0,COMMERCIAL SUPPLIER,
01-12-2022,Environment and Sustainable Transport,Bereavement Publications Ltd,"Advertising, Publicity And Marketing",2750,0,COMMERCIAL SUPPLIER,
01-12-2022,Adults & Health,Stannah Lift Services Ltd,Private Contractors Payment - Other,2398,0,CIS,
01-12-2022,Adults & Health,Aevus Ltd t/a Home Instead,Home Care - Private Contractors Payment,598.5,0,INDIVIDUALS,
01-12-2022,Adults & Health,Aevus Ltd t/a Home Instead,Home Care - Private Contractors Payment,598.5,0,INDIVIDUALS,
01-12-2022,Adults & Health,Aevus Ltd t/a Home Instead,Home Care - Private Contractors Payment,598.5,0,INDIVIDUALS,
01-12-2022,Adults & Health,Aevus Ltd t/a Home Instead,Home Care - Private Contractors Payment,399,0,INDIVIDUALS,
01-12-2022,Children and Young People,First Option Healthcare,Additional Placements - Third Party,456,0,NON COMMERCIAL SUPPLIER,
01-12-2022,oneSource,Daisy Corporate Services Trading Ltd,Land Line Telephone Costs,4995.47,0,COMMERCIAL SUPPLIER,
01-12-2022,oneSource,Daisy Corporate Services Trading Ltd,Land Line Telephone Costs,2120.29,0,COMMERCIAL SUPPLIER,
01-12-2022,Housing Revenue Account,Daisy Corporate Services Trading Ltd,Cyclical/Planned Maintenance - Mechanical And Electrical,321.04,0,COMMERCIAL SUPPLIER,
01-12-2022,oneSource,Daisy Corporate Services Trading Ltd,Land Line Telephone Costs,15323.05,0,COMMERCIAL SUPPLIER,
01-12-2022,Housing Revenue Account,Daisy Corporate Services Trading Ltd,Land Line Telephone Costs,3761.23,0,COMMERCIAL SUPPLIER,
01-12-2022,Environment and Sustainable Transport,E H Roberts-Penet Group Ltd,"Purchase - Equipment, Furniture And Materials",455,0,VENDOR,
01-12-2022,Environment and Sustainable Transport,E H Roberts-Penet Group Ltd,"Purchase - Equipment, Furniture And Materials",275,0,VENDOR,
01-12-2022,Environment and Sustainable Transport,E H Roberts-Penet Group Ltd,"Purchase - Equipment, Furniture And Materials",975.31,0,VENDOR,
01-12-2022,Environment and Sustainable Transport,E H Roberts-Penet Group Ltd,"Purchase - Equipment, Furniture And Materials",442.97,0,VENDOR,
01-12-2022,Dedicated Schools Budget,Jigsaw Occupational Therapy Ltd,Private Contractors Payment - Other,1782,0,COMMERCIAL SUPPLIER,
01-12-2022,Dedicated Schools Budget,Jigsaw Occupational Therapy Ltd,Occupational Health,1873.25,0,COMMERCIAL SUPPLIER,
01-12-2022,Environment and Sustainable Transport,Greener Solutions,Highway Services,168.8,0,VENDOR,
01-12-2022,Environment and Sustainable Transport,Greener Solutions,Highway Services,17.5,0,VENDOR,
01-12-2022,Environment and Sustainable Transport,Greener Solutions,Highway Services,25,0,VENDOR,
01-12-2022,Environment and Sustainable Transport,Greener Solutions,Highway Services,0.12,0,VENDOR,
01-12-2022,Environment and Sustainable Transport,Greener Solutions,Highway Services,0.09,0,VENDOR,
01-12-2022,Environment and Sustainable Transport,Greener Solutions,Highway Services,0.43,0,VENDOR,
01-12-2022,Environment and Sustainable Transport,Greener Solutions,Highway Services,0.16,0,VENDOR,
01-12-2022,Environment and Sustainable Transport,Greener Solutions,Highway Services,375,0,VENDOR,
01-12-2022,Environment and Sustainable Transport,Greener Solutions,Highway Services,71.7,0,VENDOR,
01-12-2022,Environment and Sustainable Transport,Greener Solutions,Highway Services,65.88,0,VENDOR,
01-12-2022,Environment and Sustainable Transport,Greener Solutions,Highway Services,215,0,VENDOR,
01-12-2022,Environment and Sustainable Transport,Greener Solutions,Highway Services,69.84,0,VENDOR,
01-12-2022,Environment and Sustainable Transport,Greener Solutions,Highway Services,142.5,0,VENDOR,
01-12-2022,Environment and Sustainable Transport,Greener Solutions,Highway Services,39.36,0,VENDOR,
01-12-2022,Environment and Sustainable Transport,Greener Solutions,Highway Services,111,0,VENDOR,
01-12-2022,Environment and Sustainable Transport,Greener Solutions,Highway Services,247,0,VENDOR,
01-12-2022,Environment and Sustainable Transport,Greener Solutions,Highway Services,67.92,0,VENDOR,
01-12-2022,Environment and Sustainable Transport,Greener Solutions,Highway Services,105,0,VENDOR,
01-12-2022,Adults & Health,Chosen Care Group Ltd,Home Care - Private Contractors Payment,1572.48,0,VENDOR,
01-12-2022,Adults & Health,Chosen Care Group Ltd,Home Care - Private Contractors Payment,1720.32,0,VENDOR,
01-12-2022,Adults & Health,Chosen Care Group Ltd,Home Care - Private Contractors Payment,1572.48,0,VENDOR,
01-12-2022,Adults & Health,Chosen Care Group Ltd,Home Care - Private Contractors Payment,1572.48,0,VENDOR,
01-12-2022,Adults & Health,Avenue Property Construction Limited,Private Contractors Payment - Other,6327.85,0,CIS,
01-12-2022,Adults & Health,Avenue Property Construction Limited,Private Contractors Payment - Other,36055,0,CIS,
01-12-2022,Adults & Health,Avenue Property Construction Limited,Private Contractors Payment - Other,5807.26,0,CIS,
01-12-2022,Environment and Sustainable Transport,Enterprise Flex-E-Rent,Client Transport,418.8,0,COMMERCIAL SUPPLIER,
01-12-2022,Environment and Sustainable Transport,Enterprise Flex-E-Rent,Client Transport,281.18,0,COMMERCIAL SUPPLIER,
01-12-2022,Environment and Sustainable Transport,Enterprise Flex-E-Rent,Client Transport,447.44,0,COMMERCIAL SUPPLIER,
01-12-2022,Environment and Sustainable Transport,Enterprise Flex-E-Rent,Client Transport,447.44,0,COMMERCIAL SUPPLIER,
01-12-2022,Environment and Sustainable Transport,Enterprise Flex-E-Rent,Client Transport,333.38,0,COMMERCIAL SUPPLIER,
01-12-2022,Environment and Sustainable Transport,Enterprise Flex-E-Rent,Client Transport,447.44,0,COMMERCIAL SUPPLIER,
01-12-2022,Environment and Sustainable Transport,Enterprise Flex-E-Rent,Client Transport,447.44,0,COMMERCIAL SUPPLIER,
01-12-2022,Environment and Sustainable Transport,Enterprise Flex-E-Rent,Client Transport,281.18,0,COMMERCIAL SUPPLIER,
01-12-2022,Environment and Sustainable Transport,Enterprise Flex-E-Rent,Client Transport,447.44,0,COMMERCIAL SUPPLIER,
01-12-2022,Environment and Sustainable Transport,Enterprise Flex-E-Rent,Client Transport,447.44,0,COMMERCIAL SUPPLIER,
01-12-2022,Environment and Sustainable Transport,Enterprise Flex-E-Rent,Client Transport,447.44,0,COMMERCIAL SUPPLIER,
01-12-2022,Environment and Sustainable Transport,Enterprise Flex-E-Rent,Client Transport,447.44,0,COMMERCIAL SUPPLIER,
01-12-2022,Environment and Sustainable Transport,Enterprise Flex-E-Rent,Client Transport,447.44,0,COMMERCIAL SUPPLIER,
01-12-2022,Environment and Sustainable Transport,Enterprise Flex-E-Rent,Client Transport,447.44,0,COMMERCIAL SUPPLIER,
01-12-2022,Environment and Sustainable Transport,Enterprise Flex-E-Rent,Client Transport,447.44,0,COMMERCIAL SUPPLIER,
01-12-2022,Environment and Sustainable Transport,Enterprise Flex-E-Rent,Client Transport,447.44,0,COMMERCIAL SUPPLIER,
01-12-2022,Environment and Sustainable Transport,Enterprise Flex-E-Rent,Client Transport,683.24,0,COMMERCIAL SUPPLIER,
01-12-2022,Environment and Sustainable Transport,Enterprise Flex-E-Rent,Client Transport,683.22,0,COMMERCIAL SUPPLIER,
01-12-2022,Environment and Sustainable Transport,Enterprise Flex-E-Rent,Client Transport,447.44,0,COMMERCIAL SUPPLIER,
01-12-2022,Environment and Sustainable Transport,Enterprise Flex-E-Rent,Client Transport,671.48,0,COMMERCIAL SUPPLIER,
01-12-2022,Environment and Sustainable Transport,Enterprise Flex-E-Rent,Client Transport,281.18,0,COMMERCIAL SUPPLIER,
01-12-2022,Environment and Sustainable Transport,Enterprise Flex-E-Rent,Client Transport,454.22,0,COMMERCIAL SUPPLIER,
01-12-2022,Environment and Sustainable Transport,Enterprise Flex-E-Rent,Client Transport,447.42,0,COMMERCIAL SUPPLIER,
01-12-2022,Environment and Sustainable Transport,Enterprise Flex-E-Rent,Client Transport,454.22,0,COMMERCIAL SUPPLIER,
01-12-2022,Environment and Sustainable Transport,Enterprise Flex-E-Rent,Client Transport,407.74,0,COMMERCIAL SUPPLIER,
01-12-2022,Environment and Sustainable Transport,Enterprise Flex-E-Rent,Client Transport,418.58,0,COMMERCIAL SUPPLIER,
01-12-2022,Children and Young People,Be Heard Ltd,Consultancy Fees,2000,0,VENDOR,
01-12-2022,Environment and Sustainable Transport,Fountaineers Ltd,Open Spaces Works,1800,0,COMMERCIAL SUPPLIER,
01-12-2022,oneSource,Bdi Securities,Security Services (Excluding Premises),1218.5,0,COMMERCIAL SUPPLIER,
01-12-2022,oneSource,Bdi Securities,Security Services (Excluding Premises),384,0,COMMERCIAL SUPPLIER,
01-12-2022,Housing Revenue Account,Hilbery Chaplin Surveyors Ltd,General Office Expenses,500,0,LOCAL AUTHORITY SERVICES,
01-12-2022,oneSource,Hilbery Chaplin Surveyors Ltd,General Office Expenses,1000,0,LOCAL AUTHORITY SERVICES,
01-12-2022,Marketing,Tiffinwalli CIC,Catering And Vending Supplies,365,0,NON COMMERCIAL SUPPLIER,
01-12-2022,Inclusive Economy & Housing,Enviro Technology Services Plc,"Purchase - Equipment, Furniture And Materials",36800,0,COMMERCIAL SUPPLIER,
01-12-2022,Inclusive Economy & Housing,Enviro Technology Services Plc,"Purchase - Equipment, Furniture And Materials",1000,0,COMMERCIAL SUPPLIER,
01-12-2022,Children and Young People,Be Heard Ltd,Consultancy Fees,2500,0,VENDOR,
01-12-2022,Adults & Health,Ascendit Lifts Limited,Private Contractors Payment - Other,18820,0,COMMERCIAL SUPPLIER,
01-12-2022,Adults & Health,Designserve Architectural And Project Management Services Ltd,Private Contractors Payment - Other,13691.25,0,COMMERCIAL SUPPLIER,
01-12-2022,Adults & Health,Designserve Architectural And Project Management Services Ltd,Private Contractors Payment - Other,1650.07,0,COMMERCIAL SUPPLIER,
01-12-2022,Adults & Health,Independent Living Alternatives,Home Care - Private Contractors Payment,2535.12,0,NON COMMERCIAL SUPPLIER,
01-12-2022,Adults & Health,Independent Living Alternatives,Home Care - Private Contractors Payment,2535.12,0,NON COMMERCIAL SUPPLIER,
01-12-2022,Adults & Health,Independent Living Alternatives,Home Care - Private Contractors Payment,2535.12,0,NON COMMERCIAL SUPPLIER,
01-12-2022,Adults & Health,Independent Living Alternatives,Home Care - Private Contractors Payment,2535.12,0,NON COMMERCIAL SUPPLIER,
01-12-2022,Adults & Health,Independent Living Alternatives,Home Care - Private Contractors Payment,658.56,0,NON COMMERCIAL SUPPLIER,
01-12-2022,Adults & Health,Dolphin Mobility Ltd,Private Contractors Payment - Other,7434,0,COMMERCIAL SUPPLIER,
01-12-2022,Adults & Health,Hope Superjobs Ltd,Daycare - Private Contractors Payment,30.24,0,COMMERCIAL SUPPLIER,
01-12-2022,Adults & Health,Hope Superjobs Ltd,Home Care - Private Contractors Payment,804.72,0,COMMERCIAL SUPPLIER,
01-12-2022,Adults & Health,Hope Superjobs Ltd,Daycare - Private Contractors Payment,287.4,0,COMMERCIAL SUPPLIER,
01-12-2022,Adults & Health,Hope Superjobs Ltd,Home Care - Private Contractors Payment,804.72,0,COMMERCIAL SUPPLIER,
01-12-2022,Environment and Sustainable Transport,Rushton Workwear Ltd,Highway Services,229.5,0,COMMERCIAL SUPPLIER,
01-12-2022,Environment and Sustainable Transport,Rushton Workwear Ltd,Highway Services,229.5,0,COMMERCIAL SUPPLIER,
01-12-2022,RMS,Glass System Ltd,Building Alterations And Materials,481.83,0,COMMERCIAL SUPPLIER,
01-12-2022,RMS,Glass System Ltd,Building Alterations And Materials,551.61,0,COMMERCIAL SUPPLIER,
01-12-2022,RMS,Glass System Ltd,Building Alterations And Materials,933.16,0,COMMERCIAL SUPPLIER,
01-12-2022,RMS,Glass System Ltd,Building Alterations And Materials,638.85,0,COMMERCIAL SUPPLIER,
01-12-2022,RMS,Glass System Ltd,Building Alterations And Materials,750.78,0,COMMERCIAL SUPPLIER,
01-12-2022,RMS,Glass System Ltd,Building Alterations And Materials,673.23,0,COMMERCIAL SUPPLIER,
01-12-2022,RMS,Glass System Ltd,Building Alterations And Materials,570.11,0,COMMERCIAL SUPPLIER,
01-12-2022,RMS,Glass System Ltd,Building Alterations And Materials,650.13,0,COMMERCIAL SUPPLIER,
01-12-2022,RMS,Glass System Ltd,Building Alterations And Materials,208.78,0,COMMERCIAL SUPPLIER,
01-12-2022,RMS,Travis Perkins Trading Company Ltd,Building Alterations And Materials,443.5,0,COMMERCIAL SUPPLIER,
01-12-2022,RMS,Travis Perkins Trading Company Ltd,Building Alterations And Materials,96.76,0,COMMERCIAL SUPPLIER,
01-12-2022,RMS,Travis Perkins Trading Company Ltd,Building Alterations And Materials,466.8,0,COMMERCIAL SUPPLIER,
01-12-2022,RMS,Travis Perkins Trading Company Ltd,Building Alterations And Materials,673.2,0,COMMERCIAL SUPPLIER,
01-12-2022,RMS,Travis Perkins Trading Company Ltd,Building Alterations And Materials,296.64,0,COMMERCIAL SUPPLIER,
01-12-2022,RMS,Travis Perkins Trading Company Ltd,Building Alterations And Materials,478.85,0,COMMERCIAL SUPPLIER,
01-12-2022,RMS,Travis Perkins Trading Company Ltd,Building Alterations And Materials,1742.4,0,COMMERCIAL SUPPLIER,
01-12-2022,RMS,Travis Perkins Trading Company Ltd,Building Alterations And Materials,1044,0,COMMERCIAL SUPPLIER,
01-12-2022,RMS,Travis Perkins Trading Company Ltd,Building Alterations And Materials,2613.6,0,COMMERCIAL SUPPLIER,
01-12-2022,RMS,Travis Perkins Trading Company Ltd,Building Alterations And Materials,274.83,0,COMMERCIAL SUPPLIER,
01-12-2022,RMS,Travis Perkins Trading Company Ltd,Building Alterations And Materials,564.76,0,COMMERCIAL SUPPLIER,
01-12-2022,RMS,Travis Perkins Trading Company Ltd,Building Alterations And Materials,507.6,0,COMMERCIAL SUPPLIER,
01-12-2022,RMS,Travis Perkins Trading Company Ltd,Building Alterations And Materials,104.4,0,COMMERCIAL SUPPLIER,
01-12-2022,RMS,Travis Perkins Trading Company Ltd,Building Alterations And Materials,148.5,0,COMMERCIAL SUPPLIER,
01-12-2022,RMS,Travis Perkins Trading Company Ltd,Building Alterations And Materials,44.7,0,COMMERCIAL SUPPLIER,
01-12-2022,RMS,Travis Perkins Trading Company Ltd,Building Alterations And Materials,29.6,0,COMMERCIAL SUPPLIER,
01-12-2022,RMS,Travis Perkins Trading Company Ltd,Building Alterations And Materials,1783.5,0,COMMERCIAL SUPPLIER,
01-12-2022,RMS,Travis Perkins Trading Company Ltd,Building Alterations And Materials,108.4,0,COMMERCIAL SUPPLIER,
01-12-2022,RMS,Travis Perkins Trading Company Ltd,Building Alterations And Materials,15.1,0,COMMERCIAL SUPPLIER,
01-12-2022,RMS,Travis Perkins Trading Company Ltd,Building Alterations And Materials,419.67,0,COMMERCIAL SUPPLIER,
01-12-2022,RMS,Travis Perkins Trading Company Ltd,Building Alterations And Materials,231.4,0,COMMERCIAL SUPPLIER,
01-12-2022,RMS,Travis Perkins Trading Company Ltd,Building Alterations And Materials,1262.25,0,COMMERCIAL SUPPLIER,
01-12-2022,RMS,Travis Perkins Trading Company Ltd,Building Alterations And Materials,240,0,COMMERCIAL SUPPLIER,
01-12-2022,RMS,Travis Perkins Trading Company Ltd,Building Alterations And Materials,638.48,0,COMMERCIAL SUPPLIER,
01-12-2022,RMS,Travis Perkins Trading Company Ltd,Building Alterations And Materials,50,0,COMMERCIAL SUPPLIER,
01-12-2022,RMS,Travis Perkins Trading Company Ltd,Building Alterations And Materials,1025.75,0,COMMERCIAL SUPPLIER,
01-12-2022,RMS,Travis Perkins Trading Company Ltd,Building Alterations And Materials,214.98,0,COMMERCIAL SUPPLIER,
01-12-2022,Adults & Health,Central and North West London NHS Foundation Trust,Professional Services - General,6020.15,0,NHS BODIES,
01-12-2022,Adults & Health,Central and North West London NHS Foundation Trust,Professional Services - General,447.15,0,NHS BODIES,
01-12-2022,Inclusive Economy & Housing,Sign Solutions (SLIA) Ltd,Translators And Interpreters,924.76,0,COMMERCIAL SUPPLIER,
01-12-2022,Resources,Jones Lang LaSalle Ltd,Facilities Management,408413.2,0,COMMERCIAL SUPPLIER,
01-12-2022,Resources,Jones Lang LaSalle Ltd,Facilities Management,167250,0,COMMERCIAL SUPPLIER,
01-12-2022,Adults & Health,Supreme Care Services Ltd,Daycare - Private Contractors Payment,19.16,0,COMMERCIAL SUPPLIER,
01-12-2022,Adults & Health,Supreme Care Services Ltd,Home Care - Private Contractors Payment,95.8,0,COMMERCIAL SUPPLIER,
01-12-2022,Adults & Health,Supreme Care Services Ltd,Home Care - Private Contractors Payment,100.59,0,COMMERCIAL SUPPLIER,
01-12-2022,Adults & Health,Supreme Care Services Ltd,Home Care - Private Contractors Payment,57.48,0,COMMERCIAL SUPPLIER,
01-12-2022,Adults & Health,Supreme Care Services Ltd,Home Care - Private Contractors Payment,57.48,0,COMMERCIAL SUPPLIER,
01-12-2022,Adults & Health,Supreme Care Services Ltd,Home Care - Private Contractors Payment,301.77,0,COMMERCIAL SUPPLIER,
01-12-2022,Adults & Health,Supreme Care Services Ltd,Home Care - Private Contractors Payment,28.74,0,COMMERCIAL SUPPLIER,
01-12-2022,Adults & Health,Supreme Care Services Ltd,Home Care - Private Contractors Payment,38.32,0,COMMERCIAL SUPPLIER,
01-12-2022,Adults & Health,Supreme Care Services Ltd,Home Care - Private Contractors Payment,201.18,0,COMMERCIAL SUPPLIER,
01-12-2022,Adults & Health,Supreme Care Services Ltd,Home Care - Private Contractors Payment,134.12,0,COMMERCIAL SUPPLIER,
01-12-2022,Adults & Health,Supreme Care Services Ltd,Home Care - Private Contractors Payment,43.11,0,COMMERCIAL SUPPLIER,
01-12-2022,Adults & Health,Supreme Care Services Ltd,Home Care - Private Contractors Payment,234.71,0,COMMERCIAL SUPPLIER,
01-12-2022,Adults & Health,Supreme Care Services Ltd,Home Care - Private Contractors Payment,19.16,0,COMMERCIAL SUPPLIER,
01-12-2022,Adults & Health,Supreme Care Services Ltd,Home Care - Private Contractors Payment,201.81,0,COMMERCIAL SUPPLIER,
01-12-2022,Adults & Health,Supreme Care Services Ltd,Respite Care - Private Contractors Payment,76.64,0,COMMERCIAL SUPPLIER,
01-12-2022,Adults & Health,Supreme Care Services Ltd,Home Care - Private Contractors Payment,249.71,0,COMMERCIAL SUPPLIER,
01-12-2022,Adults & Health,Supreme Care Services Ltd,Home Care - Private Contractors Payment,57.48,0,COMMERCIAL SUPPLIER,
01-12-2022,Adults & Health,Supreme Care Services Ltd,Home Care - Private Contractors Payment,53.32,0,COMMERCIAL SUPPLIER,
01-12-2022,Adults & Health,Supreme Care Services Ltd,Home Care - Private Contractors Payment,53.32,0,COMMERCIAL SUPPLIER,
01-12-2022,Adults & Health,Supreme Care Services Ltd,Reablement,-9.58,0,COMMERCIAL SUPPLIER,
01-12-2022,Adults & Health,Supreme Care Services Ltd,Home Care - Private Contractors Payment,57.48,0,COMMERCIAL SUPPLIER,
01-12-2022,Adults & Health,Supreme Care Services Ltd,Home Care - Private Contractors Payment,-457.6,0,COMMERCIAL SUPPLIER,
01-12-2022,Adults & Health,Supreme Care Services Ltd,Home Care - Private Contractors Payment,71.85,0,COMMERCIAL SUPPLIER,
01-12-2022,Adults & Health,Supreme Care Services Ltd,Home Care - Private Contractors Payment,670.6,0,COMMERCIAL SUPPLIER,
01-12-2022,Adults & Health,Supreme Care Services Ltd,Daycare - Private Contractors Payment,-221.62,0,COMMERCIAL SUPPLIER,
01-12-2022,Adults & Health,Supreme Care Services Ltd,Home Care - Private Contractors Payment,57.48,0,COMMERCIAL SUPPLIER,
01-12-2022,Adults & Health,Supreme Care Services Ltd,Home Care - Private Contractors Payment,38.32,0,COMMERCIAL SUPPLIER,
01-12-2022,Adults & Health,Supreme Care Services Ltd,Home Care - Private Contractors Payment,301.77,0,COMMERCIAL SUPPLIER,
01-12-2022,Adults & Health,Supreme Care Services Ltd,Home Care - Private Contractors Payment,19.16,0,COMMERCIAL SUPPLIER,
01-12-2022,Adults & Health,Supreme Care Services Ltd,Home Care - Private Contractors Payment,234.71,0,COMMERCIAL SUPPLIER,
01-12-2022,Adults & Health,Supreme Care Services Ltd,Home Care - Private Contractors Payment,301.77,0,COMMERCIAL SUPPLIER,
01-12-2022,Adults & Health,Supreme Care Services Ltd,Home Care - Private Contractors Payment,19.16,0,COMMERCIAL SUPPLIER,
01-12-2022,Adults & Health,Supreme Care Services Ltd,Home Care - Private Contractors Payment,186.81,0,COMMERCIAL SUPPLIER,
01-12-2022,Adults & Health,Supreme Care Services Ltd,Home Care - Private Contractors Payment,19.16,0,COMMERCIAL SUPPLIER,
01-12-2022,Adults & Health,Supreme Care Services Ltd,Home Care - Private Contractors Payment,100.92,0,COMMERCIAL SUPPLIER,
01-12-2022,Adults & Health,Supreme Care Services Ltd,Home Care - Private Contractors Payment,67.06,0,COMMERCIAL SUPPLIER,
01-12-2022,Adults & Health,Supreme Care Services Ltd,Home Care - Private Contractors Payment,72.48,0,COMMERCIAL SUPPLIER,
01-12-2022,Adults & Health,Supreme Care Services Ltd,Home Care - Private Contractors Payment,618.54,0,COMMERCIAL SUPPLIER,
01-12-2022,Adults & Health,Supreme Care Services Ltd,Home Care - Private Contractors Payment,216.18,0,COMMERCIAL SUPPLIER,
01-12-2022,Adults & Health,Supreme Care Services Ltd,Home Care - Private Contractors Payment,47.9,0,COMMERCIAL SUPPLIER,
01-12-2022,Adults & Health,Supreme Care Services Ltd,Home Care - Private Contractors Payment,301.77,0,COMMERCIAL SUPPLIER,
01-12-2022,Adults & Health,Supreme Care Services Ltd,Home Care - Private Contractors Payment,43.11,0,COMMERCIAL SUPPLIER,
01-12-2022,Adults & Health,Supreme Care Services Ltd,Home Care - Private Contractors Payment,19.16,0,COMMERCIAL SUPPLIER,
01-12-2022,Adults & Health,Supreme Care Services Ltd,Home Care - Private Contractors Payment,54.93,0,COMMERCIAL SUPPLIER,
01-12-2022,Adults & Health,Supreme Care Services Ltd,Home Care - Private Contractors Payment,153.28,0,COMMERCIAL SUPPLIER,
01-12-2022,Adults & Health,Supreme Care Services Ltd,Daycare - Private Contractors Payment,38.32,0,COMMERCIAL SUPPLIER,
01-12-2022,Adults & Health,Supreme Care Services Ltd,Home Care - Private Contractors Payment,43.11,0,COMMERCIAL SUPPLIER,
01-12-2022,Adults & Health,Supreme Care Services Ltd,Home Care - Private Contractors Payment,19.16,0,COMMERCIAL SUPPLIER,
01-12-2022,Adults & Health,Supreme Care Services Ltd,Home Care - Private Contractors Payment,57.48,0,COMMERCIAL SUPPLIER,
01-12-2022,Adults & Health,Supreme Care Services Ltd,Daycare - Private Contractors Payment,-29.06,0,COMMERCIAL SUPPLIER,
01-12-2022,Adults & Health,Supreme Care Services Ltd,Home Care - Private Contractors Payment,100.59,0,COMMERCIAL SUPPLIER,
01-12-2022,Adults & Health,Supreme Care Services Ltd,Daycare - Private Contractors Payment,28.74,0,COMMERCIAL SUPPLIER,
01-12-2022,Adults & Health,Supreme Care Services Ltd,Home Care - Private Contractors Payment,301.77,0,COMMERCIAL SUPPLIER,
01-12-2022,Adults & Health,Supreme Care Services Ltd,Home Care - Private Contractors Payment,234.71,0,COMMERCIAL SUPPLIER,
01-12-2022,Adults & Health,Supreme Care Services Ltd,Home Care - Private Contractors Payment,67.06,0,COMMERCIAL SUPPLIER,
01-12-2022,Adults & Health,Supreme Care Services Ltd,Home Care - Private Contractors Payment,268.24,0,COMMERCIAL SUPPLIER,
01-12-2022,Adults & Health,Supreme Care Services Ltd,Home Care - Private Contractors Payment,57.48,0,COMMERCIAL SUPPLIER,
01-12-2022,Adults & Health,Supreme Care Services Ltd,Home Care - Private Contractors Payment,335.3,0,COMMERCIAL SUPPLIER,
01-12-2022,Adults & Health,Supreme Care Services Ltd,Home Care - Private Contractors Payment,134.12,0,COMMERCIAL SUPPLIER,
01-12-2022,Adults & Health,Supreme Care Services Ltd,Home Care - Private Contractors Payment,201.18,0,COMMERCIAL SUPPLIER,
01-12-2022,Adults & Health,Supreme Care Services Ltd,Home Care - Private Contractors Payment,435.89,0,COMMERCIAL SUPPLIER,
01-12-2022,Adults & Health,Supreme Care Services Ltd,Home Care - Private Contractors Payment,19.16,0,COMMERCIAL SUPPLIER,
01-12-2022,Adults & Health,Supreme Care Services Ltd,Home Care - Private Contractors Payment,57.48,0,COMMERCIAL SUPPLIER,
01-12-2022,Adults & Health,Supreme Care Services Ltd,Home Care - Private Contractors Payment,100.59,0,COMMERCIAL SUPPLIER,
01-12-2022,Adults & Health,Supreme Care Services Ltd,Daycare - Private Contractors Payment,28.74,0,COMMERCIAL SUPPLIER,
01-12-2022,Adults & Health,Supreme Care Services Ltd,Daycare - Private Contractors Payment,38.32,0,COMMERCIAL SUPPLIER,
01-12-2022,Adults & Health,Supreme Care Services Ltd,Home Care - Private Contractors Payment,19.16,0,COMMERCIAL SUPPLIER,
01-12-2022,Adults & Health,Supreme Care Services Ltd,Home Care - Private Contractors Payment,95.8,0,COMMERCIAL SUPPLIER,
01-12-2022,Adults & Health,Supreme Care Services Ltd,Home Care - Private Contractors Payment,234.71,0,COMMERCIAL SUPPLIER,
01-12-2022,Adults & Health,Supreme Care Services Ltd,Home Care - Private Contractors Payment,670.6,0,COMMERCIAL SUPPLIER,
01-12-2022,Adults & Health,Supreme Care Services Ltd,Home Care - Private Contractors Payment,201.18,0,COMMERCIAL SUPPLIER,
01-12-2022,Adults & Health,Supreme Care Services Ltd,Home Care - Private Contractors Payment,149.12,0,COMMERCIAL SUPPLIER,
01-12-2022,Adults & Health,Supreme Care Services Ltd,Home Care - Private Contractors Payment,81.43,0,COMMERCIAL SUPPLIER,
01-12-2022,Adults & Health,Supreme Care Services Ltd,Home Care - Private Contractors Payment,335.3,0,COMMERCIAL SUPPLIER,
01-12-2022,Adults & Health,Supreme Care Services Ltd,Reablement,100.59,0,COMMERCIAL SUPPLIER,
01-12-2022,Adults & Health,Supreme Care Services Ltd,Home Care - Private Contractors Payment,134.12,0,COMMERCIAL SUPPLIER,
01-12-2022,Adults & Health,Supreme Care Services Ltd,Daycare - Private Contractors Payment,38.32,0,COMMERCIAL SUPPLIER,
01-12-2022,Adults & Health,Supreme Care Services Ltd,Home Care - Private Contractors Payment,234.71,0,COMMERCIAL SUPPLIER,
01-12-2022,Adults & Health,Supreme Care Services Ltd,Home Care - Private Contractors Payment,134.12,0,COMMERCIAL SUPPLIER,
01-12-2022,Adults & Health,Supreme Care Services Ltd,Home Care - Private Contractors Payment,186.81,0,COMMERCIAL SUPPLIER,
01-12-2022,Adults & Health,Supreme Care Services Ltd,Home Care - Private Contractors Payment,134.12,0,COMMERCIAL SUPPLIER,
01-12-2022,Adults & Health,Supreme Care Services Ltd,Home Care - Private Contractors Payment,201.18,0,COMMERCIAL SUPPLIER,
01-12-2022,Adults & Health,Supreme Care Services Ltd,Home Care - Private Contractors Payment,435.89,0,COMMERCIAL SUPPLIER,
01-12-2022,Adults & Health,Supreme Care Services Ltd,Home Care - Private Contractors Payment,100.59,0,COMMERCIAL SUPPLIER,
01-12-2022,Adults & Health,Supreme Care Services Ltd,Daycare - Private Contractors Payment,-128.69,0,COMMERCIAL SUPPLIER,
01-12-2022,Adults & Health,Supreme Care Services Ltd,Daycare - Private Contractors Payment,138.91,0,COMMERCIAL SUPPLIER,
01-12-2022,Adults & Health,Supreme Care Services Ltd,Home Care - Private Contractors Payment,28.74,0,COMMERCIAL SUPPLIER,
01-12-2022,Adults & Health,Supreme Care Services Ltd,Home Care - Private Contractors Payment,105.38,0,COMMERCIAL SUPPLIER,
01-12-2022,Adults & Health,Supreme Care Services Ltd,Home Care - Private Contractors Payment,1164.6,0,COMMERCIAL SUPPLIER,
01-12-2022,Adults & Health,Supreme Care Services Ltd,Home Care - Private Contractors Payment,301.77,0,COMMERCIAL SUPPLIER,
01-12-2022,Adults & Health,Supreme Care Services Ltd,Daycare - Private Contractors Payment,57.48,0,COMMERCIAL SUPPLIER,
01-12-2022,Adults & Health,Supreme Care Services Ltd,Home Care - Private Contractors Payment,100.59,0,COMMERCIAL SUPPLIER,
01-12-2022,Adults & Health,Supreme Care Services Ltd,Home Care - Private Contractors Payment,234.71,0,COMMERCIAL SUPPLIER,
01-12-2022,Adults & Health,Supreme Care Services Ltd,Home Care - Private Contractors Payment,38.32,0,COMMERCIAL SUPPLIER,
01-12-2022,Adults & Health,Supreme Care Services Ltd,Home Care - Private Contractors Payment,670.6,0,COMMERCIAL SUPPLIER,
01-12-2022,Adults & Health,Supreme Care Services Ltd,Home Care - Private Contractors Payment,435.89,0,COMMERCIAL SUPPLIER,
01-12-2022,Adults & Health,Supreme Care Services Ltd,Home Care - Private Contractors Payment,201.18,0,COMMERCIAL SUPPLIER,
01-12-2022,Adults & Health,Supreme Care Services Ltd,Home Care - Private Contractors Payment,134.12,0,COMMERCIAL SUPPLIER,
01-12-2022,Adults & Health,Supreme Care Services Ltd,Home Care - Private Contractors Payment,28.74,0,COMMERCIAL SUPPLIER,
01-12-2022,Adults & Health,Supreme Care Services Ltd,Home Care - Private Contractors Payment,134.12,0,COMMERCIAL SUPPLIER,
01-12-2022,Adults & Health,Supreme Care Services Ltd,Home Care - Private Contractors Payment,19.16,0,COMMERCIAL SUPPLIER,
01-12-2022,Adults & Health,Supreme Care Services Ltd,Home Care - Private Contractors Payment,1149.6,0,COMMERCIAL SUPPLIER,
01-12-2022,Adults & Health,Supreme Care Services Ltd,Home Care - Private Contractors Payment,38.32,0,COMMERCIAL SUPPLIER,
01-12-2022,Adults & Health,Supreme Care Services Ltd,Home Care - Private Contractors Payment,19.16,0,COMMERCIAL SUPPLIER,
01-12-2022,Adults & Health,Supreme Care Services Ltd,Daycare - Private Contractors Payment,76.64,0,COMMERCIAL SUPPLIER,
01-12-2022,Adults & Health,Supreme Care Services Ltd,Reablement,301.77,0,COMMERCIAL SUPPLIER,
01-12-2022,Adults & Health,Supreme Care Services Ltd,Daycare - Private Contractors Payment,76.64,0,COMMERCIAL SUPPLIER,
01-12-2022,Adults & Health,Supreme Care Services Ltd,Home Care - Private Contractors Payment,19.16,0,COMMERCIAL SUPPLIER,
01-12-2022,Adults & Health,Supreme Care Services Ltd,Home Care - Private Contractors Payment,167.65,0,COMMERCIAL SUPPLIER,
01-12-2022,Adults & Health,Supreme Care Services Ltd,Home Care - Private Contractors Payment,38.32,0,COMMERCIAL SUPPLIER,
01-12-2022,Adults & Health,Supreme Care Services Ltd,Daycare - Private Contractors Payment,19.16,0,COMMERCIAL SUPPLIER,
01-12-2022,Adults & Health,Supreme Care Services Ltd,Daycare - Private Contractors Payment,47.9,0,COMMERCIAL SUPPLIER,
01-12-2022,Adults & Health,Supreme Care Services Ltd,Home Care - Private Contractors Payment,38.32,0,COMMERCIAL SUPPLIER,
01-12-2022,Adults & Health,Supreme Care Services Ltd,Daycare - Private Contractors Payment,19.16,0,COMMERCIAL SUPPLIER,
01-12-2022,Adults & Health,Supreme Care Services Ltd,Home Care - Private Contractors Payment,57.48,0,COMMERCIAL SUPPLIER,
01-12-2022,Adults & Health,Supreme Care Services Ltd,Home Care - Private Contractors Payment,19.16,0,COMMERCIAL SUPPLIER,
01-12-2022,Adults & Health,Supreme Care Services Ltd,Daycare - Private Contractors Payment,76.64,0,COMMERCIAL SUPPLIER,
01-12-2022,Adults & Health,Supreme Care Services Ltd,Home Care - Private Contractors Payment,38.32,0,COMMERCIAL SUPPLIER,
01-12-2022,Adults & Health,Supreme Care Services Ltd,Home Care - Private Contractors Payment,38.32,0,COMMERCIAL SUPPLIER,
01-12-2022,Adults & Health,Supreme Care Services Ltd,Home Care - Private Contractors Payment,57.48,0,COMMERCIAL SUPPLIER,
01-12-2022,Adults & Health,Supreme Care Services Ltd,Home Care - Private Contractors Payment,201.18,0,COMMERCIAL SUPPLIER,
01-12-2022,Adults & Health,Supreme Care Services Ltd,Home Care - Private Contractors Payment,47.9,0,COMMERCIAL SUPPLIER,
01-12-2022,Adults & Health,Supreme Care Services Ltd,Home Care - Private Contractors Payment,95.8,0,COMMERCIAL SUPPLIER,
01-12-2022,Adults & Health,Supreme Care Services Ltd,Daycare - Private Contractors Payment,57.48,0,COMMERCIAL SUPPLIER,
01-12-2022,Adults & Health,Supreme Care Services Ltd,Daycare - Private Contractors Payment,19.16,0,COMMERCIAL SUPPLIER,
01-12-2022,Adults & Health,Supreme Care Services Ltd,Home Care - Private Contractors Payment,19.16,0,COMMERCIAL SUPPLIER,
01-12-2022,Adults & Health,Supreme Care Services Ltd,Daycare - Private Contractors Payment,114.96,0,COMMERCIAL SUPPLIER,
01-12-2022,Adults & Health,Supreme Care Services Ltd,Home Care - Private Contractors Payment,301.77,0,COMMERCIAL SUPPLIER,
01-12-2022,Adults & Health,Supreme Care Services Ltd,Respite Care - Private Contractors Payment,76.64,0,COMMERCIAL SUPPLIER,
01-12-2022,Adults & Health,Supreme Care Services Ltd,Home Care - Private Contractors Payment,57.48,0,COMMERCIAL SUPPLIER,
01-12-2022,Adults & Health,Supreme Care Services Ltd,Home Care - Private Contractors Payment,19.16,0,COMMERCIAL SUPPLIER,
01-12-2022,Adults & Health,Supreme Care Services Ltd,Home Care - Private Contractors Payment,19.16,0,COMMERCIAL SUPPLIER,
01-12-2022,Adults & Health,Supreme Care Services Ltd,Daycare - Private Contractors Payment,57.48,0,COMMERCIAL SUPPLIER,
01-12-2022,Adults & Health,Supreme Care Services Ltd,Daycare - Private Contractors Payment,19.16,0,COMMERCIAL SUPPLIER,
01-12-2022,Adults & Health,Supreme Care Services Ltd,Home Care - Private Contractors Payment,234.71,0,COMMERCIAL SUPPLIER,
01-12-2022,Adults & Health,Supreme Care Services Ltd,Daycare - Private Contractors Payment,57.48,0,COMMERCIAL SUPPLIER,
01-12-2022,Adults & Health,Supreme Care Services Ltd,Home Care - Private Contractors Payment,301.77,0,COMMERCIAL SUPPLIER,
01-12-2022,Adults & Health,Supreme Care Services Ltd,Home Care - Private Contractors Payment,268.24,0,COMMERCIAL SUPPLIER,
01-12-2022,Adults & Health,Supreme Care Services Ltd,Home Care - Private Contractors Payment,182.02,0,COMMERCIAL SUPPLIER,
01-12-2022,Adults & Health,Supreme Care Services Ltd,Home Care - Private Contractors Payment,57.48,0,COMMERCIAL SUPPLIER,
01-12-2022,Adults & Health,Supreme Care Services Ltd,Home Care - Private Contractors Payment,76.64,0,COMMERCIAL SUPPLIER,
01-12-2022,Adults & Health,Supreme Care Services Ltd,Home Care - Private Contractors Payment,234.71,0,COMMERCIAL SUPPLIER,
01-12-2022,Adults & Health,Supreme Care Services Ltd,Daycare - Private Contractors Payment,57.48,0,COMMERCIAL SUPPLIER,
01-12-2022,Adults & Health,Supreme Care Services Ltd,Daycare - Private Contractors Payment,57.48,0,COMMERCIAL SUPPLIER,
01-12-2022,Adults & Health,Supreme Care Services Ltd,Daycare - Private Contractors Payment,76.64,0,COMMERCIAL SUPPLIER,
01-12-2022,Adults & Health,Supreme Care Services Ltd,Home Care - Private Contractors Payment,143.7,0,COMMERCIAL SUPPLIER,
01-12-2022,Adults & Health,Supreme Care Services Ltd,Home Care - Private Contractors Payment,67.06,0,COMMERCIAL SUPPLIER,
01-12-2022,Adults & Health,Supreme Care Services Ltd,Home Care - Private Contractors Payment,38.32,0,COMMERCIAL SUPPLIER,
01-12-2022,Adults & Health,Supreme Care Services Ltd,Daycare - Private Contractors Payment,76.64,0,COMMERCIAL SUPPLIER,
01-12-2022,Adults & Health,Supreme Care Services Ltd,Daycare - Private Contractors Payment,38,0,COMMERCIAL SUPPLIER,
01-12-2022,Adults & Health,Supreme Care Services Ltd,Home Care - Private Contractors Payment,19.16,0,COMMERCIAL SUPPLIER,
01-12-2022,Adults & Health,Supreme Care Services Ltd,Home Care - Private Contractors Payment,19.16,0,COMMERCIAL SUPPLIER,
01-12-2022,Adults & Health,Supreme Care Services Ltd,Home Care - Private Contractors Payment,275.9,0,COMMERCIAL SUPPLIER,
01-12-2022,Adults & Health,Supreme Care Services Ltd,Home Care - Private Contractors Payment,57.48,0,COMMERCIAL SUPPLIER,
01-12-2022,Adults & Health,Supreme Care Services Ltd,Home Care - Private Contractors Payment,57.48,0,COMMERCIAL SUPPLIER,
01-12-2022,Adults & Health,Supreme Care Services Ltd,Home Care - Private Contractors Payment,134.12,0,COMMERCIAL SUPPLIER,
01-12-2022,Adults & Health,Supreme Care Services Ltd,Reablement,301.77,0,COMMERCIAL SUPPLIER,
01-12-2022,Adults & Health,Supreme Care Services Ltd,Home Care - Private Contractors Payment,201.18,0,COMMERCIAL SUPPLIER,
01-12-2022,Adults & Health,Supreme Care Services Ltd,Home Care - Private Contractors Payment,67.06,0,COMMERCIAL SUPPLIER,
01-12-2022,Adults & Health,Supreme Care Services Ltd,Daycare - Private Contractors Payment,76.64,0,COMMERCIAL SUPPLIER,
01-12-2022,Adults & Health,Supreme Care Services Ltd,Home Care - Private Contractors Payment,201.18,0,COMMERCIAL SUPPLIER,
01-12-2022,Adults & Health,Supreme Care Services Ltd,Home Care - Private Contractors Payment,47.9,0,COMMERCIAL SUPPLIER,
01-12-2022,Adults & Health,Supreme Care Services Ltd,Home Care - Private Contractors Payment,301.77,0,COMMERCIAL SUPPLIER,
01-12-2022,Adults & Health,Supreme Care Services Ltd,Daycare - Private Contractors Payment,38.32,0,COMMERCIAL SUPPLIER,
01-12-2022,Adults & Health,Supreme Care Services Ltd,Home Care - Private Contractors Payment,57.48,0,COMMERCIAL SUPPLIER,
01-12-2022,Adults & Health,Supreme Care Services Ltd,Home Care - Private Contractors Payment,268.24,0,COMMERCIAL SUPPLIER,
01-12-2022,Adults & Health,Supreme Care Services Ltd,Home Care - Private Contractors Payment,603.54,0,COMMERCIAL SUPPLIER,
01-12-2022,Adults & Health,Supreme Care Services Ltd,Daycare - Private Contractors Payment,153.28,0,COMMERCIAL SUPPLIER,
01-12-2022,Adults & Health,Supreme Care Services Ltd,Home Care - Private Contractors Payment,234.71,0,COMMERCIAL SUPPLIER,
01-12-2022,Adults & Health,Supreme Care Services Ltd,Home Care - Private Contractors Payment,603.54,0,COMMERCIAL SUPPLIER,
01-12-2022,Adults & Health,Supreme Care Services Ltd,Home Care - Private Contractors Payment,234.71,0,COMMERCIAL SUPPLIER,
01-12-2022,Adults & Health,Supreme Care Services Ltd,Home Care - Private Contractors Payment,435.89,0,COMMERCIAL SUPPLIER,
01-12-2022,Adults & Health,Supreme Care Services Ltd,Home Care - Private Contractors Payment,234.71,0,COMMERCIAL SUPPLIER,
01-12-2022,Adults & Health,Supreme Care Services Ltd,Home Care - Private Contractors Payment,19.16,0,COMMERCIAL SUPPLIER,
01-12-2022,Adults & Health,Supreme Care Services Ltd,Daycare - Private Contractors Payment,57.48,0,COMMERCIAL SUPPLIER,
01-12-2022,Adults & Health,Supreme Care Services Ltd,Daycare - Private Contractors Payment,134.12,0,COMMERCIAL SUPPLIER,
01-12-2022,Adults & Health,Supreme Care Services Ltd,Home Care - Private Contractors Payment,301.77,0,COMMERCIAL SUPPLIER,
01-12-2022,Adults & Health,Supreme Care Services Ltd,Home Care - Private Contractors Payment,167.65,0,COMMERCIAL SUPPLIER,
01-12-2022,Adults & Health,Supreme Care Services Ltd,Reablement,38.32,0,COMMERCIAL SUPPLIER,
01-12-2022,Adults & Health,Supreme Care Services Ltd,Home Care - Private Contractors Payment,57.48,0,COMMERCIAL SUPPLIER,
01-12-2022,Adults & Health,Supreme Care Services Ltd,Daycare - Private Contractors Payment,76.64,0,COMMERCIAL SUPPLIER,
01-12-2022,Adults & Health,Supreme Care Services Ltd,Home Care - Private Contractors Payment,268.24,0,COMMERCIAL SUPPLIER,
01-12-2022,Adults & Health,Supreme Care Services Ltd,Home Care - Private Contractors Payment,225.13,0,COMMERCIAL SUPPLIER,
01-12-2022,Adults & Health,Supreme Care Services Ltd,Respite Care - Private Contractors Payment,76.64,0,COMMERCIAL SUPPLIER,
01-12-2022,Adults & Health,Supreme Care Services Ltd,Daycare - Private Contractors Payment,134.12,0,COMMERCIAL SUPPLIER,
01-12-2022,Adults & Health,Supreme Care Services Ltd,Home Care - Private Contractors Payment,57.48,0,COMMERCIAL SUPPLIER,
01-12-2022,Adults & Health,Supreme Care Services Ltd,Respite Care - Private Contractors Payment,95.8,0,COMMERCIAL SUPPLIER,
01-12-2022,Adults & Health,Supreme Care Services Ltd,Daycare - Private Contractors Payment,-349.67,0,COMMERCIAL SUPPLIER,
01-12-2022,Adults & Health,Supreme Care Services Ltd,Daycare - Private Contractors Payment,19.16,0,COMMERCIAL SUPPLIER,
01-12-2022,Adults & Health,Supreme Care Services Ltd,Home Care - Private Contractors Payment,268.24,0,COMMERCIAL SUPPLIER,
01-12-2022,Adults & Health,Supreme Care Services Ltd,Home Care - Private Contractors Payment,182.02,0,COMMERCIAL SUPPLIER,
01-12-2022,Adults & Health,Supreme Care Services Ltd,Daycare - Private Contractors Payment,57.48,0,COMMERCIAL SUPPLIER,
01-12-2022,Adults & Health,Supreme Care Services Ltd,Daycare - Private Contractors Payment,57.48,0,COMMERCIAL SUPPLIER,
01-12-2022,Adults & Health,Supreme Care Services Ltd,Daycare - Private Contractors Payment,19.16,0,COMMERCIAL SUPPLIER,
01-12-2022,Adults & Health,Supreme Care Services Ltd,Home Care - Private Contractors Payment,19.16,0,COMMERCIAL SUPPLIER,
01-12-2022,Adults & Health,Supreme Care Services Ltd,Daycare - Private Contractors Payment,95.8,0,COMMERCIAL SUPPLIER,
01-12-2022,Adults & Health,Supreme Care Services Ltd,Daycare - Private Contractors Payment,38.32,0,COMMERCIAL SUPPLIER,
01-12-2022,Adults & Health,Supreme Care Services Ltd,Daycare - Private Contractors Payment,76.64,0,COMMERCIAL SUPPLIER,
01-12-2022,Adults & Health,Supreme Care Services Ltd,Home Care - Private Contractors Payment,19.16,0,COMMERCIAL SUPPLIER,
01-12-2022,Adults & Health,Supreme Care Services Ltd,Home Care - Private Contractors Payment,33.53,0,COMMERCIAL SUPPLIER,
01-12-2022,Adults & Health,Supreme Care Services Ltd,Daycare - Private Contractors Payment,76.64,0,COMMERCIAL SUPPLIER,
01-12-2022,Adults & Health,Supreme Care Services Ltd,Daycare - Private Contractors Payment,38.32,0,COMMERCIAL SUPPLIER,
01-12-2022,Adults & Health,Supreme Care Services Ltd,Daycare - Private Contractors Payment,19.16,0,COMMERCIAL SUPPLIER,
01-12-2022,Adults & Health,Supreme Care Services Ltd,Respite Care - Private Contractors Payment,153.28,0,COMMERCIAL SUPPLIER,
01-12-2022,Adults & Health,Supreme Care Services Ltd,Daycare - Private Contractors Payment,95.8,0,COMMERCIAL SUPPLIER,
01-12-2022,Adults & Health,Supreme Care Services Ltd,Home Care - Private Contractors Payment,0.96,0,COMMERCIAL SUPPLIER,
01-12-2022,Adults & Health,Supreme Care Services Ltd,Home Care - Private Contractors Payment,0,0,COMMERCIAL SUPPLIER,
01-12-2022,Adults & Health,Supreme Care Services Ltd,Home Care - Private Contractors Payment,57.48,0,COMMERCIAL SUPPLIER,
01-12-2022,Adults & Health,Supreme Care Services Ltd,Home Care - Private Contractors Payment,76.64,0,COMMERCIAL SUPPLIER,
01-12-2022,Adults & Health,Supreme Care Services Ltd,Home Care - Private Contractors Payment,19.16,0,COMMERCIAL SUPPLIER,
01-12-2022,Adults & Health,Supreme Care Services Ltd,Home Care - Private Contractors Payment,38.32,0,COMMERCIAL SUPPLIER,
01-12-2022,Adults & Health,Supreme Care Services Ltd,Home Care - Private Contractors Payment,38.32,0,COMMERCIAL SUPPLIER,
01-12-2022,Adults & Health,Supreme Care Services Ltd,Home Care - Private Contractors Payment,100.59,0,COMMERCIAL SUPPLIER,
01-12-2022,Adults & Health,Supreme Care Services Ltd,Reablement,301.77,0,COMMERCIAL SUPPLIER,
01-12-2022,Adults & Health,Supreme Care Services Ltd,Home Care - Private Contractors Payment,28.74,0,COMMERCIAL SUPPLIER,
01-12-2022,Adults & Health,Supreme Care Services Ltd,Home Care - Private Contractors Payment,19.16,0,COMMERCIAL SUPPLIER,
01-12-2022,Adults & Health,Supreme Care Services Ltd,Home Care - Private Contractors Payment,268.24,0,COMMERCIAL SUPPLIER,
01-12-2022,Adults & Health,Supreme Care Services Ltd,Home Care - Private Contractors Payment,19.16,0,COMMERCIAL SUPPLIER,
01-12-2022,Adults & Health,Supreme Care Services Ltd,Home Care - Private Contractors Payment,167.65,0,COMMERCIAL SUPPLIER,
01-12-2022,Adults & Health,Supreme Care Services Ltd,Daycare - Private Contractors Payment,64.2,0,COMMERCIAL SUPPLIER,
01-12-2022,Adults & Health,Supreme Care Services Ltd,Reablement,67.06,0,COMMERCIAL SUPPLIER,
01-12-2022,Adults & Health,Supreme Care Services Ltd,Home Care - Private Contractors Payment,234.71,0,COMMERCIAL SUPPLIER,
01-12-2022,Adults & Health,Supreme Care Services Ltd,Home Care - Private Contractors Payment,81.43,0,COMMERCIAL SUPPLIER,
01-12-2022,Adults & Health,Supreme Care Services Ltd,Daycare - Private Contractors Payment,76.64,0,COMMERCIAL SUPPLIER,
01-12-2022,Adults & Health,Supreme Care Services Ltd,Home Care - Private Contractors Payment,19.16,0,COMMERCIAL SUPPLIER,
01-12-2022,Adults & Health,Supreme Care Services Ltd,Home Care - Private Contractors Payment,19.16,0,COMMERCIAL SUPPLIER,
01-12-2022,Adults & Health,Supreme Care Services Ltd,Home Care - Private Contractors Payment,19.16,0,COMMERCIAL SUPPLIER,
01-12-2022,Adults & Health,Supreme Care Services Ltd,Reablement,14.37,0,COMMERCIAL SUPPLIER,
01-12-2022,Adults & Health,Supreme Care Services Ltd,Respite Care - Private Contractors Payment,76.64,0,COMMERCIAL SUPPLIER,
01-12-2022,Adults & Health,Supreme Care Services Ltd,Home Care - Private Contractors Payment,19.16,0,COMMERCIAL SUPPLIER,
01-12-2022,Adults & Health,Supreme Care Services Ltd,Home Care - Private Contractors Payment,234.71,0,COMMERCIAL SUPPLIER,
01-12-2022,Adults & Health,Supreme Care Services Ltd,Home Care - Private Contractors Payment,167.65,0,COMMERCIAL SUPPLIER,
01-12-2022,Adults & Health,Supreme Care Services Ltd,Home Care - Private Contractors Payment,95.8,0,COMMERCIAL SUPPLIER,
01-12-2022,Adults & Health,Supreme Care Services Ltd,Home Care - Private Contractors Payment,19.16,0,COMMERCIAL SUPPLIER,
01-12-2022,Adults & Health,Supreme Care Services Ltd,Home Care - Private Contractors Payment,95.8,0,COMMERCIAL SUPPLIER,
01-12-2022,Adults & Health,Supreme Care Services Ltd,Daycare - Private Contractors Payment,47.9,0,COMMERCIAL SUPPLIER,
01-12-2022,Adults & Health,Supreme Care Services Ltd,Home Care - Private Contractors Payment,19.16,0,COMMERCIAL SUPPLIER,
01-12-2022,Adults & Health,Supreme Care Services Ltd,Home Care - Private Contractors Payment,134.12,0,COMMERCIAL SUPPLIER,
01-12-2022,Adults & Health,Supreme Care Services Ltd,Home Care - Private Contractors Payment,435.89,0,COMMERCIAL SUPPLIER,
01-12-2022,Adults & Health,Supreme Care Services Ltd,Home Care - Private Contractors Payment,301.77,0,COMMERCIAL SUPPLIER,
01-12-2022,Adults & Health,Supreme Care Services Ltd,Home Care - Private Contractors Payment,38.32,0,COMMERCIAL SUPPLIER,
01-12-2022,Adults & Health,Supreme Care Services Ltd,Daycare - Private Contractors Payment,76.64,0,COMMERCIAL SUPPLIER,
01-12-2022,Adults & Health,Supreme Care Services Ltd,Home Care - Private Contractors Payment,268.24,0,COMMERCIAL SUPPLIER,
01-12-2022,Adults & Health,Supreme Care Services Ltd,Home Care - Private Contractors Payment,670.6,0,COMMERCIAL SUPPLIER,
01-12-2022,Adults & Health,Supreme Care Services Ltd,Home Care - Private Contractors Payment,19.16,0,COMMERCIAL SUPPLIER,
01-12-2022,Adults & Health,Supreme Care Services Ltd,Daycare - Private Contractors Payment,57.48,0,COMMERCIAL SUPPLIER,
01-12-2022,Adults & Health,Supreme Care Services Ltd,Home Care - Private Contractors Payment,19.16,0,COMMERCIAL SUPPLIER,
01-12-2022,Adults & Health,Supreme Care Services Ltd,Home Care - Private Contractors Payment,234.71,0,COMMERCIAL SUPPLIER,
01-12-2022,Adults & Health,Supreme Care Services Ltd,Daycare - Private Contractors Payment,38.32,0,COMMERCIAL SUPPLIER,
01-12-2022,Adults & Health,Supreme Care Services Ltd,Home Care - Private Contractors Payment,134.12,0,COMMERCIAL SUPPLIER,
01-12-2022,Adults & Health,Supreme Care Services Ltd,Home Care - Private Contractors Payment,28.74,0,COMMERCIAL SUPPLIER,
01-12-2022,Adults & Health,Supreme Care Services Ltd,Daycare - Private Contractors Payment,19.16,0,COMMERCIAL SUPPLIER,
01-12-2022,Adults & Health,Supreme Care Services Ltd,Home Care - Private Contractors Payment,114.96,0,COMMERCIAL SUPPLIER,
01-12-2022,Adults & Health,Supreme Care Services Ltd,Home Care - Private Contractors Payment,19.16,0,COMMERCIAL SUPPLIER,
01-12-2022,Adults & Health,Supreme Care Services Ltd,Home Care - Private Contractors Payment,19.16,0,COMMERCIAL SUPPLIER,
01-12-2022,Adults & Health,Supreme Care Services Ltd,Home Care - Private Contractors Payment,100.59,0,COMMERCIAL SUPPLIER,
01-12-2022,Adults & Health,Supreme Care Services Ltd,Home Care - Private Contractors Payment,19.16,0,COMMERCIAL SUPPLIER,
01-12-2022,Adults & Health,Supreme Care Services Ltd,Respite Care - Private Contractors Payment,76.64,0,COMMERCIAL SUPPLIER,
01-12-2022,Adults & Health,Supreme Care Services Ltd,Home Care - Private Contractors Payment,301.77,0,COMMERCIAL SUPPLIER,
01-12-2022,Adults & Health,Supreme Care Services Ltd,Home Care - Private Contractors Payment,167.65,0,COMMERCIAL SUPPLIER,
01-12-2022,Adults & Health,Supreme Care Services Ltd,Home Care - Private Contractors Payment,201.18,0,COMMERCIAL SUPPLIER,
01-12-2022,Adults & Health,Supreme Care Services Ltd,Home Care - Private Contractors Payment,301.77,0,COMMERCIAL SUPPLIER,
01-12-2022,Adults & Health,Supreme Care Services Ltd,Home Care - Private Contractors Payment,-172.44,0,COMMERCIAL SUPPLIER,
01-12-2022,Adults & Health,Supreme Care Services Ltd,Daycare - Private Contractors Payment,-150.42,0,COMMERCIAL SUPPLIER,
01-12-2022,Adults & Health,Supreme Care Services Ltd,Daycare - Private Contractors Payment,35.13,0,COMMERCIAL SUPPLIER,
01-12-2022,Adults & Health,Supreme Care Services Ltd,Home Care - Private Contractors Payment,268.24,0,COMMERCIAL SUPPLIER,
01-12-2022,Adults & Health,Supreme Care Services Ltd,Daycare - Private Contractors Payment,91.64,0,COMMERCIAL SUPPLIER,
01-12-2022,Adults & Health,Supreme Care Services Ltd,Home Care - Private Contractors Payment,38.32,0,COMMERCIAL SUPPLIER,
01-12-2022,Adults & Health,Supreme Care Services Ltd,Home Care - Private Contractors Payment,670.6,0,COMMERCIAL SUPPLIER,
01-12-2022,Adults & Health,Supreme Care Services Ltd,Home Care - Private Contractors Payment,300.17,0,COMMERCIAL SUPPLIER,
01-12-2022,Adults & Health,Supreme Care Services Ltd,Home Care - Private Contractors Payment,249.71,0,COMMERCIAL SUPPLIER,
01-12-2022,Adults & Health,Supreme Care Services Ltd,Daycare - Private Contractors Payment,149.12,0,COMMERCIAL SUPPLIER,
01-12-2022,Adults & Health,Supreme Care Services Ltd,Daycare - Private Contractors Payment,82.64,0,COMMERCIAL SUPPLIER,
01-12-2022,Adults & Health,Supreme Care Services Ltd,Home Care - Private Contractors Payment,134.12,0,COMMERCIAL SUPPLIER,
01-12-2022,Adults & Health,Supreme Care Services Ltd,Daycare - Private Contractors Payment,38.32,0,COMMERCIAL SUPPLIER,
01-12-2022,Adults & Health,Supreme Care Services Ltd,Home Care - Private Contractors Payment,603.54,0,COMMERCIAL SUPPLIER,
01-12-2022,Adults & Health,Supreme Care Services Ltd,Home Care - Private Contractors Payment,435.89,0,COMMERCIAL SUPPLIER,
01-12-2022,Adults & Health,Supreme Care Services Ltd,Daycare - Private Contractors Payment,134.12,0,COMMERCIAL SUPPLIER,
01-12-2022,Adults & Health,Supreme Care Services Ltd,Home Care - Private Contractors Payment,38.32,0,COMMERCIAL SUPPLIER,
01-12-2022,Adults & Health,Supreme Care Services Ltd,Daycare - Private Contractors Payment,76.64,0,COMMERCIAL SUPPLIER,
01-12-2022,Adults & Health,Supreme Care Services Ltd,Home Care - Private Contractors Payment,134.12,0,COMMERCIAL SUPPLIER,
01-12-2022,Adults & Health,Supreme Care Services Ltd,Home Care - Private Contractors Payment,301.77,0,COMMERCIAL SUPPLIER,
01-12-2022,Adults & Health,Supreme Care Services Ltd,Home Care - Private Contractors Payment,100.59,0,COMMERCIAL SUPPLIER,
01-12-2022,Adults & Health,Supreme Care Services Ltd,Home Care - Private Contractors Payment,19.16,0,COMMERCIAL SUPPLIER,
01-12-2022,Adults & Health,Supreme Care Services Ltd,Home Care - Private Contractors Payment,234.71,0,COMMERCIAL SUPPLIER,
01-12-2022,Adults & Health,Supreme Care Services Ltd,Home Care - Private Contractors Payment,38.32,0,COMMERCIAL SUPPLIER,
01-12-2022,Adults & Health,Supreme Care Services Ltd,Daycare - Private Contractors Payment,110.8,0,COMMERCIAL SUPPLIER,
01-12-2022,Adults & Health,Supreme Care Services Ltd,Home Care - Private Contractors Payment,19.16,0,COMMERCIAL SUPPLIER,
01-12-2022,Adults & Health,Supreme Care Services Ltd,Daycare - Private Contractors Payment,19.8,0,COMMERCIAL SUPPLIER,
01-12-2022,Adults & Health,Supreme Care Services Ltd,Home Care - Private Contractors Payment,143.7,0,COMMERCIAL SUPPLIER,
01-12-2022,Adults & Health,Supreme Care Services Ltd,Daycare - Private Contractors Payment,38.32,0,COMMERCIAL SUPPLIER,
01-12-2022,Adults & Health,Supreme Care Services Ltd,Home Care - Private Contractors Payment,19.16,0,COMMERCIAL SUPPLIER,
01-12-2022,Adults & Health,Supreme Care Services Ltd,Home Care - Private Contractors Payment,57.48,0,COMMERCIAL SUPPLIER,
01-12-2022,Adults & Health,Supreme Care Services Ltd,Home Care - Private Contractors Payment,435.89,0,COMMERCIAL SUPPLIER,
01-12-2022,Adults & Health,Supreme Care Services Ltd,Home Care - Private Contractors Payment,57.48,0,COMMERCIAL SUPPLIER,
01-12-2022,Adults & Health,Supreme Care Services Ltd,Home Care - Private Contractors Payment,771.19,0,COMMERCIAL SUPPLIER,
01-12-2022,Adults & Health,Supreme Care Services Ltd,Home Care - Private Contractors Payment,100.59,0,COMMERCIAL SUPPLIER,
01-12-2022,Adults & Health,Supreme Care Services Ltd,Home Care - Private Contractors Payment,43.11,0,COMMERCIAL SUPPLIER,
01-12-2022,Adults & Health,Supreme Care Services Ltd,Home Care - Private Contractors Payment,19.16,0,COMMERCIAL SUPPLIER,
01-12-2022,Adults & Health,Supreme Care Services Ltd,Home Care - Private Contractors Payment,19.16,0,COMMERCIAL SUPPLIER,
01-12-2022,Adults & Health,Supreme Care Services Ltd,Home Care - Private Contractors Payment,71.85,0,COMMERCIAL SUPPLIER,
01-12-2022,Adults & Health,Supreme Care Services Ltd,Daycare - Private Contractors Payment,19.16,0,COMMERCIAL SUPPLIER,
01-12-2022,Adults & Health,Supreme Care Services Ltd,Daycare - Private Contractors Payment,76.64,0,COMMERCIAL SUPPLIER,
01-12-2022,Adults & Health,Supreme Care Services Ltd,Home Care - Private Contractors Payment,397.57,0,COMMERCIAL SUPPLIER,
01-12-2022,Adults & Health,Supreme Care Services Ltd,Home Care - Private Contractors Payment,301.77,0,COMMERCIAL SUPPLIER,
01-12-2022,Adults & Health,Supreme Care Services Ltd,Daycare - Private Contractors Payment,38.32,0,COMMERCIAL SUPPLIER,
01-12-2022,Adults & Health,Supreme Care Services Ltd,Home Care - Private Contractors Payment,432.69,0,COMMERCIAL SUPPLIER,
01-12-2022,Adults & Health,Supreme Care Services Ltd,Home Care - Private Contractors Payment,19.16,0,COMMERCIAL SUPPLIER,
01-12-2022,Adults & Health,Supreme Care Services Ltd,Home Care - Private Contractors Payment,19.16,0,COMMERCIAL SUPPLIER,
01-12-2022,Adults & Health,Supreme Care Services Ltd,Home Care - Private Contractors Payment,38.32,0,COMMERCIAL SUPPLIER,
01-12-2022,Adults & Health,Supreme Care Services Ltd,Home Care - Private Contractors Payment,201.18,0,COMMERCIAL SUPPLIER,
01-12-2022,Adults & Health,Supreme Care Services Ltd,Home Care - Private Contractors Payment,43.11,0,COMMERCIAL SUPPLIER,
01-12-2022,Adults & Health,Supreme Care Services Ltd,Home Care - Private Contractors Payment,76.64,0,COMMERCIAL SUPPLIER,
01-12-2022,Adults & Health,Supreme Care Services Ltd,Daycare - Private Contractors Payment,134.12,0,COMMERCIAL SUPPLIER,
01-12-2022,Adults & Health,Supreme Care Services Ltd,Daycare - Private Contractors Payment,38.32,0,COMMERCIAL SUPPLIER,
01-12-2022,Adults & Health,Supreme Care Services Ltd,Respite Care - Private Contractors Payment,76.64,0,COMMERCIAL SUPPLIER,
01-12-2022,Adults & Health,Supreme Care Services Ltd,Daycare - Private Contractors Payment,19.16,0,COMMERCIAL SUPPLIER,
01-12-2022,Adults & Health,Supreme Care Services Ltd,Home Care - Private Contractors Payment,57.48,0,COMMERCIAL SUPPLIER,
01-12-2022,Adults & Health,Supreme Care Services Ltd,Home Care - Private Contractors Payment,38.32,0,COMMERCIAL SUPPLIER,
01-12-2022,Adults & Health,Supreme Care Services Ltd,Home Care - Private Contractors Payment,57.48,0,COMMERCIAL SUPPLIER,
01-12-2022,Adults & Health,Supreme Care Services Ltd,Home Care - Private Contractors Payment,234.71,0,COMMERCIAL SUPPLIER,
01-12-2022,Adults & Health,Supreme Care Services Ltd,Daycare - Private Contractors Payment,19.16,0,COMMERCIAL SUPPLIER,
01-12-2022,Adults & Health,Supreme Care Services Ltd,Home Care - Private Contractors Payment,268.24,0,COMMERCIAL SUPPLIER,
01-12-2022,Adults & Health,Supreme Care Services Ltd,Home Care - Private Contractors Payment,38.32,0,COMMERCIAL SUPPLIER,
01-12-2022,Adults & Health,Supreme Care Services Ltd,Daycare - Private Contractors Payment,67.06,0,COMMERCIAL SUPPLIER,
01-12-2022,Adults & Health,Supreme Care Services Ltd,Home Care - Private Contractors Payment,57.48,0,COMMERCIAL SUPPLIER,
01-12-2022,Adults & Health,Supreme Care Services Ltd,Home Care - Private Contractors Payment,201.18,0,COMMERCIAL SUPPLIER,
01-12-2022,Adults & Health,Supreme Care Services Ltd,Home Care - Private Contractors Payment,201.18,0,COMMERCIAL SUPPLIER,
01-12-2022,Adults & Health,Supreme Care Services Ltd,Home Care - Private Contractors Payment,469.42,0,COMMERCIAL SUPPLIER,
01-12-2022,Adults & Health,Supreme Care Services Ltd,Daycare - Private Contractors Payment,57.48,0,COMMERCIAL SUPPLIER,
01-12-2022,Adults & Health,Supreme Care Services Ltd,Respite Care - Private Contractors Payment,153.28,0,COMMERCIAL SUPPLIER,
01-12-2022,Adults & Health,Supreme Care Services Ltd,Home Care - Private Contractors Payment,38.32,0,COMMERCIAL SUPPLIER,
01-12-2022,Adults & Health,Supreme Care Services Ltd,Home Care - Private Contractors Payment,134.12,0,COMMERCIAL SUPPLIER,
01-12-2022,Adults & Health,Supreme Care Services Ltd,Home Care - Private Contractors Payment,19.16,0,COMMERCIAL SUPPLIER,
01-12-2022,Adults & Health,Supreme Care Services Ltd,Reablement,100.59,0,COMMERCIAL SUPPLIER,
01-12-2022,Adults & Health,Supreme Care Services Ltd,Home Care - Private Contractors Payment,76.64,0,COMMERCIAL SUPPLIER,
01-12-2022,Adults & Health,Supreme Care Services Ltd,Home Care - Private Contractors Payment,268.24,0,COMMERCIAL SUPPLIER,
01-12-2022,Adults & Health,Supreme Care Services Ltd,Home Care - Private Contractors Payment,57.48,0,COMMERCIAL SUPPLIER,
01-12-2022,Adults & Health,Supreme Care Services Ltd,Daycare - Private Contractors Payment,76.64,0,COMMERCIAL SUPPLIER,
01-12-2022,Adults & Health,Supreme Care Services Ltd,Home Care - Private Contractors Payment,182.02,0,COMMERCIAL SUPPLIER,
01-12-2022,Adults & Health,Supreme Care Services Ltd,Daycare - Private Contractors Payment,38.32,0,COMMERCIAL SUPPLIER,
01-12-2022,Adults & Health,Supreme Care Services Ltd,Home Care - Private Contractors Payment,19.16,0,COMMERCIAL SUPPLIER,
01-12-2022,Adults & Health,Supreme Care Services Ltd,Daycare - Private Contractors Payment,38.32,0,COMMERCIAL SUPPLIER,
01-12-2022,Adults & Health,Supreme Care Services Ltd,Home Care - Private Contractors Payment,301.77,0,COMMERCIAL SUPPLIER,
01-12-2022,Adults & Health,Supreme Care Services Ltd,Home Care - Private Contractors Payment,435.89,0,COMMERCIAL SUPPLIER,
01-12-2022,Adults & Health,Supreme Care Services Ltd,Home Care - Private Contractors Payment,603.54,0,COMMERCIAL SUPPLIER,
01-12-2022,Adults & Health,Supreme Care Services Ltd,Home Care - Private Contractors Payment,335.3,0,COMMERCIAL SUPPLIER,
01-12-2022,Adults & Health,Supreme Care Services Ltd,Home Care - Private Contractors Payment,67.06,0,COMMERCIAL SUPPLIER,
01-12-2022,Adults & Health,Supreme Care Services Ltd,Home Care - Private Contractors Payment,167.65,0,COMMERCIAL SUPPLIER,
01-12-2022,Adults & Health,Supreme Care Services Ltd,Respite Care - Private Contractors Payment,153.28,0,COMMERCIAL SUPPLIER,
01-12-2022,Adults & Health,Supreme Care Services Ltd,Home Care - Private Contractors Payment,167.65,0,COMMERCIAL SUPPLIER,
01-12-2022,Adults & Health,Supreme Care Services Ltd,Home Care - Private Contractors Payment,301.77,0,COMMERCIAL SUPPLIER,
01-12-2022,Adults & Health,Supreme Care Services Ltd,Home Care - Private Contractors Payment,38.32,0,COMMERCIAL SUPPLIER,
01-12-2022,Adults & Health,Supreme Care Services Ltd,Home Care - Private Contractors Payment,216.18,0,COMMERCIAL SUPPLIER,
01-12-2022,Adults & Health,Supreme Care Services Ltd,Home Care - Private Contractors Payment,38.32,0,COMMERCIAL SUPPLIER,
01-12-2022,Adults & Health,Supreme Care Services Ltd,Home Care - Private Contractors Payment,100.59,0,COMMERCIAL SUPPLIER,
01-12-2022,Adults & Health,Supreme Care Services Ltd,Home Care - Private Contractors Payment,19.16,0,COMMERCIAL SUPPLIER,
01-12-2022,Adults & Health,Supreme Care Services Ltd,Home Care - Private Contractors Payment,167.65,0,COMMERCIAL SUPPLIER,
01-12-2022,Adults & Health,Supreme Care Services Ltd,Home Care - Private Contractors Payment,38.32,0,COMMERCIAL SUPPLIER,
01-12-2022,Adults & Health,Supreme Care Services Ltd,Daycare - Private Contractors Payment,38.32,0,COMMERCIAL SUPPLIER,
01-12-2022,Adults & Health,Supreme Care Services Ltd,Home Care - Private Contractors Payment,100.59,0,COMMERCIAL SUPPLIER,
01-12-2022,Adults & Health,Supreme Care Services Ltd,Home Care - Private Contractors Payment,100.59,0,COMMERCIAL SUPPLIER,
01-12-2022,Adults & Health,Supreme Care Services Ltd,Home Care - Private Contractors Payment,67.06,0,COMMERCIAL SUPPLIER,
01-12-2022,Adults & Health,Supreme Care Services Ltd,Daycare - Private Contractors Payment,76.64,0,COMMERCIAL SUPPLIER,
01-12-2022,Adults & Health,Supreme Care Services Ltd,Home Care - Private Contractors Payment,76.64,0,COMMERCIAL SUPPLIER,
01-12-2022,Adults & Health,Supreme Care Services Ltd,Daycare - Private Contractors Payment,28.74,0,COMMERCIAL SUPPLIER,
01-12-2022,Adults & Health,Supreme Care Services Ltd,Home Care - Private Contractors Payment,38.32,0,COMMERCIAL SUPPLIER,
01-12-2022,Adults & Health,Supreme Care Services Ltd,Home Care - Private Contractors Payment,320.93,0,COMMERCIAL SUPPLIER,
01-12-2022,Adults & Health,Supreme Care Services Ltd,Home Care - Private Contractors Payment,435.89,0,COMMERCIAL SUPPLIER,
01-12-2022,Adults & Health,Supreme Care Services Ltd,Home Care - Private Contractors Payment,19.16,0,COMMERCIAL SUPPLIER,
01-12-2022,Adults & Health,Supreme Care Services Ltd,Home Care - Private Contractors Payment,143.7,0,COMMERCIAL SUPPLIER,
01-12-2022,Adults & Health,Supreme Care Services Ltd,Home Care - Private Contractors Payment,134.12,0,COMMERCIAL SUPPLIER,
01-12-2022,Adults & Health,Supreme Care Services Ltd,Home Care - Private Contractors Payment,38.32,0,COMMERCIAL SUPPLIER,
01-12-2022,Adults & Health,Supreme Care Services Ltd,Home Care - Private Contractors Payment,57.48,0,COMMERCIAL SUPPLIER,
01-12-2022,Adults & Health,Supreme Care Services Ltd,Home Care - Private Contractors Payment,167.65,0,COMMERCIAL SUPPLIER,
01-12-2022,Adults & Health,Supreme Care Services Ltd,Daycare - Private Contractors Payment,38.32,0,COMMERCIAL SUPPLIER,
01-12-2022,Adults & Health,Supreme Care Services Ltd,Home Care - Private Contractors Payment,301.77,0,COMMERCIAL SUPPLIER,
01-12-2022,Adults & Health,Supreme Care Services Ltd,Home Care - Private Contractors Payment,38.32,0,COMMERCIAL SUPPLIER,
01-12-2022,Adults & Health,Supreme Care Services Ltd,Home Care - Private Contractors Payment,95.8,0,COMMERCIAL SUPPLIER,
01-12-2022,Adults & Health,Supreme Care Services Ltd,Home Care - Private Contractors Payment,76.64,0,COMMERCIAL SUPPLIER,
01-12-2022,Adults & Health,Supreme Care Services Ltd,Home Care - Private Contractors Payment,19.16,0,COMMERCIAL SUPPLIER,
01-12-2022,Adults & Health,Supreme Care Services Ltd,Home Care - Private Contractors Payment,47.9,0,COMMERCIAL SUPPLIER,
01-12-2022,Adults & Health,Supreme Care Services Ltd,Home Care - Private Contractors Payment,435.89,0,COMMERCIAL SUPPLIER,
01-12-2022,Adults & Health,Supreme Care Services Ltd,Reablement,43.11,0,COMMERCIAL SUPPLIER,
01-12-2022,Adults & Health,Supreme Care Services Ltd,Home Care - Private Contractors Payment,19.16,0,COMMERCIAL SUPPLIER,
01-12-2022,Adults & Health,Supreme Care Services Ltd,Daycare - Private Contractors Payment,134.12,0,COMMERCIAL SUPPLIER,
01-12-2022,Adults & Health,Supreme Care Services Ltd,Home Care - Private Contractors Payment,19.16,0,COMMERCIAL SUPPLIER,
01-12-2022,Adults & Health,Supreme Care Services Ltd,Reablement,67.06,0,COMMERCIAL SUPPLIER,
01-12-2022,Adults & Health,Supreme Care Services Ltd,Home Care - Private Contractors Payment,38.32,0,COMMERCIAL SUPPLIER,
01-12-2022,Adults & Health,Supreme Care Services Ltd,Home Care - Private Contractors Payment,81.43,0,COMMERCIAL SUPPLIER,
01-12-2022,Adults & Health,Supreme Care Services Ltd,Home Care - Private Contractors Payment,234.71,0,COMMERCIAL SUPPLIER,
01-12-2022,Adults & Health,Supreme Care Services Ltd,Home Care - Private Contractors Payment,301.77,0,COMMERCIAL SUPPLIER,
01-12-2022,Adults & Health,Supreme Care Services Ltd,Daycare - Private Contractors Payment,57.48,0,COMMERCIAL SUPPLIER,
01-12-2022,Adults & Health,Supreme Care Services Ltd,Home Care - Private Contractors Payment,134.12,0,COMMERCIAL SUPPLIER,
01-12-2022,Adults & Health,Supreme Care Services Ltd,Daycare - Private Contractors Payment,134.12,0,COMMERCIAL SUPPLIER,
01-12-2022,Adults & Health,Supreme Care Services Ltd,Daycare - Private Contractors Payment,19.16,0,COMMERCIAL SUPPLIER,
01-12-2022,Adults & Health,Supreme Care Services Ltd,Home Care - Private Contractors Payment,134.12,0,COMMERCIAL SUPPLIER,
01-12-2022,Adults & Health,Supreme Care Services Ltd,Home Care - Private Contractors Payment,158.07,0,COMMERCIAL SUPPLIER,
01-12-2022,Adults & Health,Supreme Care Services Ltd,Daycare - Private Contractors Payment,57.48,0,COMMERCIAL SUPPLIER,
01-12-2022,Adults & Health,Supreme Care Services Ltd,Home Care - Private Contractors Payment,301.77,0,COMMERCIAL SUPPLIER,
01-12-2022,Adults & Health,Supreme Care Services Ltd,Home Care - Private Contractors Payment,38.32,0,COMMERCIAL SUPPLIER,
01-12-2022,Adults & Health,Supreme Care Services Ltd,Home Care - Private Contractors Payment,435.89,0,COMMERCIAL SUPPLIER,
01-12-2022,Adults & Health,Supreme Care Services Ltd,Home Care - Private Contractors Payment,167.65,0,COMMERCIAL SUPPLIER,
01-12-2022,Adults & Health,Supreme Care Services Ltd,Home Care - Private Contractors Payment,320.93,0,COMMERCIAL SUPPLIER,
01-12-2022,Adults & Health,Supreme Care Services Ltd,Home Care - Private Contractors Payment,38.32,0,COMMERCIAL SUPPLIER,
01-12-2022,Adults & Health,Supreme Care Services Ltd,Home Care - Private Contractors Payment,43.11,0,COMMERCIAL SUPPLIER,
01-12-2022,Adults & Health,Supreme Care Services Ltd,Home Care - Private Contractors Payment,19.16,0,COMMERCIAL SUPPLIER,
01-12-2022,Adults & Health,Supreme Care Services Ltd,Daycare - Private Contractors Payment,52.37,0,COMMERCIAL SUPPLIER,
01-12-2022,Adults & Health,Supreme Care Services Ltd,Daycare - Private Contractors Payment,82.07,0,COMMERCIAL SUPPLIER,
01-12-2022,Adults & Health,Supreme Care Services Ltd,Home Care - Private Contractors Payment,57.48,0,COMMERCIAL SUPPLIER,
01-12-2022,Adults & Health,Supreme Care Services Ltd,Daycare - Private Contractors Payment,76.64,0,COMMERCIAL SUPPLIER,
01-12-2022,Adults & Health,Supreme Care Services Ltd,Home Care - Private Contractors Payment,76.64,0,COMMERCIAL SUPPLIER,
01-12-2022,Adults & Health,Supreme Care Services Ltd,Daycare - Private Contractors Payment,19.16,0,COMMERCIAL SUPPLIER,
01-12-2022,Adults & Health,Supreme Care Services Ltd,Home Care - Private Contractors Payment,100.59,0,COMMERCIAL SUPPLIER,
01-12-2022,Adults & Health,Supreme Care Services Ltd,Respite Care - Private Contractors Payment,153.28,0,COMMERCIAL SUPPLIER,
01-12-2022,Adults & Health,Supreme Care Services Ltd,Home Care - Private Contractors Payment,19.16,0,COMMERCIAL SUPPLIER,
01-12-2022,Adults & Health,Supreme Care Services Ltd,Daycare - Private Contractors Payment,38.32,0,COMMERCIAL SUPPLIER,
01-12-2022,Adults & Health,Supreme Care Services Ltd,Home Care - Private Contractors Payment,167.65,0,COMMERCIAL SUPPLIER,
01-12-2022,Adults & Health,Supreme Care Services Ltd,Home Care - Private Contractors Payment,670.6,0,COMMERCIAL SUPPLIER,
01-12-2022,Adults & Health,Supreme Care Services Ltd,Home Care - Private Contractors Payment,19.16,0,COMMERCIAL SUPPLIER,
01-12-2022,Adults & Health,Supreme Care Services Ltd,Daycare - Private Contractors Payment,134.12,0,COMMERCIAL SUPPLIER,
01-12-2022,Adults & Health,Supreme Care Services Ltd,Home Care - Private Contractors Payment,301.77,0,COMMERCIAL SUPPLIER,
01-12-2022,Adults & Health,Supreme Care Services Ltd,Home Care - Private Contractors Payment,234.71,0,COMMERCIAL SUPPLIER,
01-12-2022,Adults & Health,Supreme Care Services Ltd,Home Care - Private Contractors Payment,234.71,0,COMMERCIAL SUPPLIER,
01-12-2022,Adults & Health,Supreme Care Services Ltd,Home Care - Private Contractors Payment,38.32,0,COMMERCIAL SUPPLIER,
01-12-2022,Adults & Health,Supreme Care Services Ltd,Home Care - Private Contractors Payment,57.48,0,COMMERCIAL SUPPLIER,
01-12-2022,Adults & Health,Supreme Care Services Ltd,Home Care - Private Contractors Payment,76.64,0,COMMERCIAL SUPPLIER,
01-12-2022,Adults & Health,Supreme Care Services Ltd,Home Care - Private Contractors Payment,100.59,0,COMMERCIAL SUPPLIER,
01-12-2022,Adults & Health,Supreme Care Services Ltd,Daycare - Private Contractors Payment,38.32,0,COMMERCIAL SUPPLIER,
01-12-2022,Adults & Health,Supreme Care Services Ltd,Home Care - Private Contractors Payment,268.24,0,COMMERCIAL SUPPLIER,
01-12-2022,Adults & Health,Supreme Care Services Ltd,Daycare - Private Contractors Payment,57.48,0,COMMERCIAL SUPPLIER,
01-12-2022,Adults & Health,Supreme Care Services Ltd,Home Care - Private Contractors Payment,301.77,0,COMMERCIAL SUPPLIER,
01-12-2022,Adults & Health,Supreme Care Services Ltd,Home Care - Private Contractors Payment,19.16,0,COMMERCIAL SUPPLIER,
01-12-2022,Adults & Health,Supreme Care Services Ltd,Home Care - Private Contractors Payment,19.16,0,COMMERCIAL SUPPLIER,
01-12-2022,Adults & Health,Supreme Care Services Ltd,Home Care - Private Contractors Payment,38.32,0,COMMERCIAL SUPPLIER,
01-12-2022,Adults & Health,Supreme Care Services Ltd,Home Care - Private Contractors Payment,268.24,0,COMMERCIAL SUPPLIER,
01-12-2022,Adults & Health,Supreme Care Services Ltd,Home Care - Private Contractors Payment,771.19,0,COMMERCIAL SUPPLIER,
01-12-2022,Adults & Health,Supreme Care Services Ltd,Home Care - Private Contractors Payment,201.18,0,COMMERCIAL SUPPLIER,
01-12-2022,Adults & Health,Supreme Care Services Ltd,Home Care - Private Contractors Payment,19.16,0,COMMERCIAL SUPPLIER,
01-12-2022,Adults & Health,Supreme Care Services Ltd,Home Care - Private Contractors Payment,301.77,0,COMMERCIAL SUPPLIER,
01-12-2022,Adults & Health,Supreme Care Services Ltd,Daycare - Private Contractors Payment,38.32,0,COMMERCIAL SUPPLIER,
01-12-2022,Adults & Health,Supreme Care Services Ltd,Home Care - Private Contractors Payment,95.8,0,COMMERCIAL SUPPLIER,
01-12-2022,Adults & Health,Supreme Care Services Ltd,Home Care - Private Contractors Payment,19.16,0,COMMERCIAL SUPPLIER,
01-12-2022,Adults & Health,Supreme Care Services Ltd,Daycare - Private Contractors Payment,76.64,0,COMMERCIAL SUPPLIER,
01-12-2022,Adults & Health,Supreme Care Services Ltd,Home Care - Private Contractors Payment,57.48,0,COMMERCIAL SUPPLIER,
01-12-2022,Adults & Health,Supreme Care Services Ltd,Home Care - Private Contractors Payment,38.32,0,COMMERCIAL SUPPLIER,
01-12-2022,Adults & Health,Supreme Care Services Ltd,Reablement,91.01,0,COMMERCIAL SUPPLIER,
01-12-2022,Adults & Health,Supreme Care Services Ltd,Daycare - Private Contractors Payment,76.64,0,COMMERCIAL SUPPLIER,
01-12-2022,Adults & Health,Supreme Care Services Ltd,Daycare - Private Contractors Payment,114.96,0,COMMERCIAL SUPPLIER,
01-12-2022,Adults & Health,Supreme Care Services Ltd,Daycare - Private Contractors Payment,19.16,0,COMMERCIAL SUPPLIER,
01-12-2022,Adults & Health,Supreme Care Services Ltd,Home Care - Private Contractors Payment,167.65,0,COMMERCIAL SUPPLIER,
01-12-2022,Adults & Health,Supreme Care Services Ltd,Home Care - Private Contractors Payment,301.77,0,COMMERCIAL SUPPLIER,
01-12-2022,Adults & Health,Supreme Care Services Ltd,Home Care - Private Contractors Payment,19.16,0,COMMERCIAL SUPPLIER,
01-12-2022,Adults & Health,Supreme Care Services Ltd,Home Care - Private Contractors Payment,268.24,0,COMMERCIAL SUPPLIER,
01-12-2022,Adults & Health,Supreme Care Services Ltd,Daycare - Private Contractors Payment,41.84,0,COMMERCIAL SUPPLIER,
01-12-2022,Adults & Health,Supreme Care Services Ltd,Home Care - Private Contractors Payment,244.29,0,COMMERCIAL SUPPLIER,
01-12-2022,Adults & Health,Supreme Care Services Ltd,Home Care - Private Contractors Payment,19.16,0,COMMERCIAL SUPPLIER,
01-12-2022,Adults & Health,Supreme Care Services Ltd,Home Care - Private Contractors Payment,71.85,0,COMMERCIAL SUPPLIER,
01-12-2022,Adults & Health,Supreme Care Services Ltd,Home Care - Private Contractors Payment,149.12,0,COMMERCIAL SUPPLIER,
01-12-2022,Adults & Health,Supreme Care Services Ltd,Daycare - Private Contractors Payment,82.06,0,COMMERCIAL SUPPLIER,
01-12-2022,Adults & Health,Supreme Care Services Ltd,Home Care - Private Contractors Payment,100.59,0,COMMERCIAL SUPPLIER,
01-12-2022,Adults & Health,Supreme Care Services Ltd,Home Care - Private Contractors Payment,19.16,0,COMMERCIAL SUPPLIER,
01-12-2022,Adults & Health,Supreme Care Services Ltd,Home Care - Private Contractors Payment,67.06,0,COMMERCIAL SUPPLIER,
01-12-2022,Adults & Health,Supreme Care Services Ltd,Home Care - Private Contractors Payment,603.54,0,COMMERCIAL SUPPLIER,
01-12-2022,Adults & Health,Supreme Care Services Ltd,Home Care - Private Contractors Payment,43.11,0,COMMERCIAL SUPPLIER,
01-12-2022,Adults & Health,Supreme Care Services Ltd,Home Care - Private Contractors Payment,167.65,0,COMMERCIAL SUPPLIER,
01-12-2022,Adults & Health,Supreme Care Services Ltd,Home Care - Private Contractors Payment,57.48,0,COMMERCIAL SUPPLIER,
01-12-2022,Adults & Health,Supreme Care Services Ltd,Home Care - Private Contractors Payment,435.89,0,COMMERCIAL SUPPLIER,
01-12-2022,Adults & Health,Supreme Care Services Ltd,Home Care - Private Contractors Payment,435.89,0,COMMERCIAL SUPPLIER,
01-12-2022,Adults & Health,Supreme Care Services Ltd,Home Care - Private Contractors Payment,603.54,0,COMMERCIAL SUPPLIER,
01-12-2022,Adults & Health,Supreme Care Services Ltd,Home Care - Private Contractors Payment,57.48,0,COMMERCIAL SUPPLIER,
01-12-2022,Adults & Health,Supreme Care Services Ltd,Home Care - Private Contractors Payment,43.11,0,COMMERCIAL SUPPLIER,
01-12-2022,Adults & Health,Supreme Care Services Ltd,Daycare - Private Contractors Payment,76.64,0,COMMERCIAL SUPPLIER,
01-12-2022,Adults & Health,Supreme Care Services Ltd,Daycare - Private Contractors Payment,95.8,0,COMMERCIAL SUPPLIER,
01-12-2022,Adults & Health,Supreme Care Services Ltd,Home Care - Private Contractors Payment,19.16,0,COMMERCIAL SUPPLIER,
01-12-2022,Adults & Health,Supreme Care Services Ltd,Daycare - Private Contractors Payment,95.8,0,COMMERCIAL SUPPLIER,
01-12-2022,Adults & Health,Supreme Care Services Ltd,Daycare - Private Contractors Payment,38.32,0,COMMERCIAL SUPPLIER,
01-12-2022,Adults & Health,Supreme Care Services Ltd,Respite Care - Private Contractors Payment,95.8,0,COMMERCIAL SUPPLIER,
01-12-2022,Adults & Health,Supreme Care Services Ltd,Home Care - Private Contractors Payment,182.65,0,COMMERCIAL SUPPLIER,
01-12-2022,Adults & Health,Supreme Care Services Ltd,Home Care - Private Contractors Payment,311.98,0,COMMERCIAL SUPPLIER,
01-12-2022,Adults & Health,Supreme Care Services Ltd,Home Care - Private Contractors Payment,771.19,0,COMMERCIAL SUPPLIER,
01-12-2022,Adults & Health,Supreme Care Services Ltd,Home Care - Private Contractors Payment,76.64,0,COMMERCIAL SUPPLIER,
01-12-2022,Adults & Health,Supreme Care Services Ltd,Daycare - Private Contractors Payment,22.64,0,COMMERCIAL SUPPLIER,
01-12-2022,Adults & Health,Supreme Care Services Ltd,Home Care - Private Contractors Payment,72.48,0,COMMERCIAL SUPPLIER,
01-12-2022,Adults & Health,Supreme Care Services Ltd,Home Care - Private Contractors Payment,167.65,0,COMMERCIAL SUPPLIER,
01-12-2022,Adults & Health,Supreme Care Services Ltd,Home Care - Private Contractors Payment,28.74,0,COMMERCIAL SUPPLIER,
01-12-2022,Adults & Health,Supreme Care Services Ltd,Daycare - Private Contractors Payment,72.48,0,COMMERCIAL SUPPLIER,
01-12-2022,Adults & Health,Supreme Care Services Ltd,Home Care - Private Contractors Payment,167.65,0,COMMERCIAL SUPPLIER,
01-12-2022,Adults & Health,Supreme Care Services Ltd,Home Care - Private Contractors Payment,249.71,0,COMMERCIAL SUPPLIER,
01-12-2022,Adults & Health,Supreme Care Services Ltd,Daycare - Private Contractors Payment,19.16,0,COMMERCIAL SUPPLIER,
01-12-2022,Adults & Health,Supreme Care Services Ltd,Home Care - Private Contractors Payment,172.44,0,COMMERCIAL SUPPLIER,
01-12-2022,Adults & Health,Supreme Care Services Ltd,Respite Care - Private Contractors Payment,76.64,0,COMMERCIAL SUPPLIER,
01-12-2022,Adults & Health,Supreme Care Services Ltd,Home Care - Private Contractors Payment,144.97,0,COMMERCIAL SUPPLIER,
01-12-2022,Adults & Health,Supreme Care Services Ltd,Home Care - Private Contractors Payment,42.79,0,COMMERCIAL SUPPLIER,
01-12-2022,Adults & Health,Supreme Care Services Ltd,Home Care - Private Contractors Payment,57.48,0,COMMERCIAL SUPPLIER,
01-12-2022,Adults & Health,Supreme Care Services Ltd,Daycare - Private Contractors Payment,40.55,0,COMMERCIAL SUPPLIER,
01-12-2022,Adults & Health,Supreme Care Services Ltd,Home Care - Private Contractors Payment,-14.37,0,COMMERCIAL SUPPLIER,
01-12-2022,Adults & Health,Supreme Care Services Ltd,Home Care - Private Contractors Payment,72.48,0,COMMERCIAL SUPPLIER,
01-12-2022,Adults & Health,Supreme Care Services Ltd,Daycare - Private Contractors Payment,-57.48,0,COMMERCIAL SUPPLIER,
01-12-2022,Adults & Health,Supreme Care Services Ltd,Daycare - Private Contractors Payment,134.12,0,COMMERCIAL SUPPLIER,
01-12-2022,Adults & Health,Supreme Care Services Ltd,Home Care - Private Contractors Payment,71.85,0,COMMERCIAL SUPPLIER,
01-12-2022,Adults & Health,Supreme Care Services Ltd,Home Care - Private Contractors Payment,100.59,0,COMMERCIAL SUPPLIER,
01-12-2022,Adults & Health,Supreme Care Services Ltd,Respite Care - Private Contractors Payment,76.64,0,COMMERCIAL SUPPLIER,
01-12-2022,Adults & Health,Supreme Care Services Ltd,Home Care - Private Contractors Payment,301.77,0,COMMERCIAL SUPPLIER,
01-12-2022,Adults & Health,Supreme Care Services Ltd,Home Care - Private Contractors Payment,38.32,0,COMMERCIAL SUPPLIER,
01-12-2022,Adults & Health,Supreme Care Services Ltd,Home Care - Private Contractors Payment,38.32,0,COMMERCIAL SUPPLIER,
01-12-2022,Adults & Health,Supreme Care Services Ltd,Home Care - Private Contractors Payment,268.24,0,COMMERCIAL SUPPLIER,
01-12-2022,Adults & Health,Supreme Care Services Ltd,Home Care - Private Contractors Payment,268.24,0,COMMERCIAL SUPPLIER,
01-12-2022,Adults & Health,Supreme Care Services Ltd,Home Care - Private Contractors Payment,301.77,0,COMMERCIAL SUPPLIER,
01-12-2022,Adults & Health,Supreme Care Services Ltd,Daycare - Private Contractors Payment,38.32,0,COMMERCIAL SUPPLIER,
01-12-2022,Adults & Health,Supreme Care Services Ltd,Home Care - Private Contractors Payment,234.71,0,COMMERCIAL SUPPLIER,
01-12-2022,Adults & Health,Supreme Care Services Ltd,Home Care - Private Contractors Payment,301.77,0,COMMERCIAL SUPPLIER,
01-12-2022,Adults & Health,Supreme Care Services Ltd,Home Care - Private Contractors Payment,19.16,0,COMMERCIAL SUPPLIER,
01-12-2022,Adults & Health,Supreme Care Services Ltd,Home Care - Private Contractors Payment,57.48,0,COMMERCIAL SUPPLIER,
01-12-2022,Adults & Health,Supreme Care Services Ltd,Daycare - Private Contractors Payment,53.32,0,COMMERCIAL SUPPLIER,
01-12-2022,Adults & Health,Supreme Care Services Ltd,Daycare - Private Contractors Payment,57.48,0,COMMERCIAL SUPPLIER,
01-12-2022,Adults & Health,Supreme Care Services Ltd,Home Care - Private Contractors Payment,38.32,0,COMMERCIAL SUPPLIER,
01-12-2022,Adults & Health,Supreme Care Services Ltd,Home Care - Private Contractors Payment,47.9,0,COMMERCIAL SUPPLIER,
01-12-2022,Adults & Health,Supreme Care Services Ltd,Home Care - Private Contractors Payment,268.24,0,COMMERCIAL SUPPLIER,
01-12-2022,Adults & Health,Supreme Care Services Ltd,Home Care - Private Contractors Payment,167.65,0,COMMERCIAL SUPPLIER,
01-12-2022,Adults & Health,Supreme Care Services Ltd,Home Care - Private Contractors Payment,167.65,0,COMMERCIAL SUPPLIER,
01-12-2022,Adults & Health,Supreme Care Services Ltd,Home Care - Private Contractors Payment,81.43,0,COMMERCIAL SUPPLIER,
01-12-2022,Adults & Health,Supreme Care Services Ltd,Daycare - Private Contractors Payment,114.96,0,COMMERCIAL SUPPLIER,
01-12-2022,Adults & Health,Supreme Care Services Ltd,Home Care - Private Contractors Payment,167.65,0,COMMERCIAL SUPPLIER,
01-12-2022,Adults & Health,Supreme Care Services Ltd,Home Care - Private Contractors Payment,134.12,0,COMMERCIAL SUPPLIER,
01-12-2022,Adults & Health,Supreme Care Services Ltd,Home Care - Private Contractors Payment,19.16,0,COMMERCIAL SUPPLIER,
01-12-2022,Adults & Health,Supreme Care Services Ltd,Home Care - Private Contractors Payment,76,0,COMMERCIAL SUPPLIER,
01-12-2022,Adults & Health,Supreme Care Services Ltd,Home Care - Private Contractors Payment,19.16,0,COMMERCIAL SUPPLIER,
01-12-2022,Adults & Health,Supreme Care Services Ltd,Home Care - Private Contractors Payment,435.89,0,COMMERCIAL SUPPLIER,
01-12-2022,Adults & Health,Supreme Care Services Ltd,Home Care - Private Contractors Payment,469.42,0,COMMERCIAL SUPPLIER,
01-12-2022,Adults & Health,Supreme Care Services Ltd,Home Care - Private Contractors Payment,38.32,0,COMMERCIAL SUPPLIER,
01-12-2022,Adults & Health,Supreme Care Services Ltd,Home Care - Private Contractors Payment,397.57,0,COMMERCIAL SUPPLIER,
01-12-2022,Adults & Health,Supreme Care Services Ltd,Home Care - Private Contractors Payment,182.02,0,COMMERCIAL SUPPLIER,
01-12-2022,Adults & Health,Supreme Care Services Ltd,Daycare - Private Contractors Payment,79.52,0,COMMERCIAL SUPPLIER,
01-12-2022,Adults & Health,Supreme Care Services Ltd,Daycare - Private Contractors Payment,53.32,0,COMMERCIAL SUPPLIER,
01-12-2022,Adults & Health,Supreme Care Services Ltd,Home Care - Private Contractors Payment,130.92,0,COMMERCIAL SUPPLIER,
01-12-2022,Adults & Health,Supreme Care Services Ltd,Daycare - Private Contractors Payment,34.16,0,COMMERCIAL SUPPLIER,
01-12-2022,Adults & Health,Supreme Care Services Ltd,Reablement,316.77,0,COMMERCIAL SUPPLIER,
01-12-2022,Adults & Health,Supreme Care Services Ltd,Home Care - Private Contractors Payment,435.89,0,COMMERCIAL SUPPLIER,
01-12-2022,Adults & Health,Supreme Care Services Ltd,Home Care - Private Contractors Payment,-186.81,0,COMMERCIAL SUPPLIER,
01-12-2022,Adults & Health,Supreme Care Services Ltd,Daycare - Private Contractors Payment,22.04,0,COMMERCIAL SUPPLIER,
01-12-2022,Adults & Health,Supreme Care Services Ltd,Home Care - Private Contractors Payment,38.32,0,COMMERCIAL SUPPLIER,
01-12-2022,Adults & Health,Supreme Care Services Ltd,Home Care - Private Contractors Payment,19.16,0,COMMERCIAL SUPPLIER,
01-12-2022,Adults & Health,Supreme Care Services Ltd,Home Care - Private Contractors Payment,435.89,0,COMMERCIAL SUPPLIER,
01-12-2022,Adults & Health,Supreme Care Services Ltd,Home Care - Private Contractors Payment,-225.13,0,COMMERCIAL SUPPLIER,
01-12-2022,Adults & Health,Supreme Care Services Ltd,Home Care - Private Contractors Payment,16.92,0,COMMERCIAL SUPPLIER,
01-12-2022,Adults & Health,Supreme Care Services Ltd,Home Care - Private Contractors Payment,38.32,0,COMMERCIAL SUPPLIER,
01-12-2022,Adults & Health,Supreme Care Services Ltd,Daycare - Private Contractors Payment,28.74,0,COMMERCIAL SUPPLIER,
01-12-2022,Adults & Health,Supreme Care Services Ltd,Home Care - Private Contractors Payment,38.32,0,COMMERCIAL SUPPLIER,
01-12-2022,Adults & Health,Supreme Care Services Ltd,Daycare - Private Contractors Payment,57.48,0,COMMERCIAL SUPPLIER,
01-12-2022,Adults & Health,Supreme Care Services Ltd,Daycare - Private Contractors Payment,38.32,0,COMMERCIAL SUPPLIER,
01-12-2022,Adults & Health,Supreme Care Services Ltd,Home Care - Private Contractors Payment,19.16,0,COMMERCIAL SUPPLIER,
01-12-2022,Adults & Health,Supreme Care Services Ltd,Home Care - Private Contractors Payment,234.71,0,COMMERCIAL SUPPLIER,
01-12-2022,Adults & Health,Supreme Care Services Ltd,Home Care - Private Contractors Payment,603.54,0,COMMERCIAL SUPPLIER,
01-12-2022,Adults & Health,Supreme Care Services Ltd,Home Care - Private Contractors Payment,201.18,0,COMMERCIAL SUPPLIER,
01-12-2022,Adults & Health,Supreme Care Services Ltd,Home Care - Private Contractors Payment,234.71,0,COMMERCIAL SUPPLIER,
01-12-2022,Adults & Health,Supreme Care Services Ltd,Home Care - Private Contractors Payment,71.85,0,COMMERCIAL SUPPLIER,
01-12-2022,Adults & Health,Supreme Care Services Ltd,Daycare - Private Contractors Payment,153.28,0,COMMERCIAL SUPPLIER,
01-12-2022,Adults & Health,Supreme Care Services Ltd,Home Care - Private Contractors Payment,153.28,0,COMMERCIAL SUPPLIER,
01-12-2022,Adults & Health,Supreme Care Services Ltd,Home Care - Private Contractors Payment,378.41,0,COMMERCIAL SUPPLIER,
01-12-2022,Adults & Health,Supreme Care Services Ltd,Home Care - Private Contractors Payment,81.43,0,COMMERCIAL SUPPLIER,
01-12-2022,Adults & Health,Supreme Care Services Ltd,Home Care - Private Contractors Payment,311.35,0,COMMERCIAL SUPPLIER,
01-12-2022,Adults & Health,Supreme Care Services Ltd,Home Care - Private Contractors Payment,301.77,0,COMMERCIAL SUPPLIER,
01-12-2022,Adults & Health,Supreme Care Services Ltd,Home Care - Private Contractors Payment,268.24,0,COMMERCIAL SUPPLIER,
01-12-2022,Adults & Health,Supreme Care Services Ltd,Home Care - Private Contractors Payment,167.65,0,COMMERCIAL SUPPLIER,
01-12-2022,Adults & Health,Supreme Care Services Ltd,Home Care - Private Contractors Payment,38.32,0,COMMERCIAL SUPPLIER,
01-12-2022,Adults & Health,Supreme Care Services Ltd,Home Care - Private Contractors Payment,38.32,0,COMMERCIAL SUPPLIER,
01-12-2022,Adults & Health,Supreme Care Services Ltd,Home Care - Private Contractors Payment,57.48,0,COMMERCIAL SUPPLIER,
01-12-2022,Adults & Health,Supreme Care Services Ltd,Home Care - Private Contractors Payment,38.32,0,COMMERCIAL SUPPLIER,
01-12-2022,Adults & Health,Supreme Care Services Ltd,Home Care - Private Contractors Payment,167.65,0,COMMERCIAL SUPPLIER,
01-12-2022,Adults & Health,Supreme Care Services Ltd,Home Care - Private Contractors Payment,19.16,0,COMMERCIAL SUPPLIER,
01-12-2022,Adults & Health,Supreme Care Services Ltd,Home Care - Private Contractors Payment,71.85,0,COMMERCIAL SUPPLIER,
01-12-2022,Adults & Health,Supreme Care Services Ltd,Home Care - Private Contractors Payment,71.85,0,COMMERCIAL SUPPLIER,
01-12-2022,Adults & Health,Supreme Care Services Ltd,Daycare - Private Contractors Payment,19.16,0,COMMERCIAL SUPPLIER,
01-12-2022,Adults & Health,Supreme Care Services Ltd,Home Care - Private Contractors Payment,134.12,0,COMMERCIAL SUPPLIER,
01-12-2022,Adults & Health,Supreme Care Services Ltd,Home Care - Private Contractors Payment,62.27,0,COMMERCIAL SUPPLIER,
01-12-2022,Adults & Health,Supreme Care Services Ltd,Home Care - Private Contractors Payment,313.9,0,COMMERCIAL SUPPLIER,
01-12-2022,Adults & Health,Supreme Care Services Ltd,Home Care - Private Contractors Payment,268.24,0,COMMERCIAL SUPPLIER,
01-12-2022,Adults & Health,Supreme Care Services Ltd,Daycare - Private Contractors Payment,91.64,0,COMMERCIAL SUPPLIER,
01-12-2022,Adults & Health,Supreme Care Services Ltd,Daycare - Private Contractors Payment,91.64,0,COMMERCIAL SUPPLIER,
01-12-2022,Adults & Health,Supreme Care Services Ltd,Home Care - Private Contractors Payment,19.16,0,COMMERCIAL SUPPLIER,
01-12-2022,Adults & Health,Supreme Care Services Ltd,Home Care - Private Contractors Payment,38.32,0,COMMERCIAL SUPPLIER,
01-12-2022,Adults & Health,Supreme Care Services Ltd,Home Care - Private Contractors Payment,34.16,0,COMMERCIAL SUPPLIER,
01-12-2022,Adults & Health,Supreme Care Services Ltd,Home Care - Private Contractors Payment,143.7,0,COMMERCIAL SUPPLIER,
01-12-2022,Adults & Health,Supreme Care Services Ltd,Home Care - Private Contractors Payment,38.32,0,COMMERCIAL SUPPLIER,
01-12-2022,Adults & Health,Supreme Care Services Ltd,Home Care - Private Contractors Payment,249.71,0,COMMERCIAL SUPPLIER,
01-12-2022,Adults & Health,Supreme Care Services Ltd,Daycare - Private Contractors Payment,129.96,0,COMMERCIAL SUPPLIER,
01-12-2022,Adults & Health,Supreme Care Services Ltd,Daycare - Private Contractors Payment,72.48,0,COMMERCIAL SUPPLIER,
01-12-2022,Adults & Health,Supreme Care Services Ltd,Home Care - Private Contractors Payment,134.12,0,COMMERCIAL SUPPLIER,
01-12-2022,Adults & Health,Supreme Care Services Ltd,Daycare - Private Contractors Payment,53.32,0,COMMERCIAL SUPPLIER,
01-12-2022,Adults & Health,Supreme Care Services Ltd,Reablement,86.85,0,COMMERCIAL SUPPLIER,
01-12-2022,Adults & Health,Supreme Care Services Ltd,Daycare - Private Contractors Payment,33.53,0,COMMERCIAL SUPPLIER,
01-12-2022,Adults & Health,Supreme Care Services Ltd,Home Care - Private Contractors Payment,201.18,0,COMMERCIAL SUPPLIER,
01-12-2022,Adults & Health,Supreme Care Services Ltd,Home Care - Private Contractors Payment,-71.85,0,COMMERCIAL SUPPLIER,
01-12-2022,Adults & Health,Supreme Care Services Ltd,Home Care - Private Contractors Payment,368.83,0,COMMERCIAL SUPPLIER,
01-12-2022,Adults & Health,Supreme Care Services Ltd,Home Care - Private Contractors Payment,34.16,0,COMMERCIAL SUPPLIER,
01-12-2022,Adults & Health,Supreme Care Services Ltd,Home Care - Private Contractors Payment,38.32,0,COMMERCIAL SUPPLIER,
01-12-2022,Adults & Health,Supreme Care Services Ltd,Home Care - Private Contractors Payment,19.16,0,COMMERCIAL SUPPLIER,
01-12-2022,Adults & Health,Supreme Care Services Ltd,Daycare - Private Contractors Payment,19.16,0,COMMERCIAL SUPPLIER,
01-12-2022,Adults & Health,Supreme Care Services Ltd,Home Care - Private Contractors Payment,301.77,0,COMMERCIAL SUPPLIER,
01-12-2022,Adults & Health,Supreme Care Services Ltd,Home Care - Private Contractors Payment,603.54,0,COMMERCIAL SUPPLIER,
01-12-2022,Adults & Health,Supreme Care Services Ltd,Daycare - Private Contractors Payment,149.12,0,COMMERCIAL SUPPLIER,
01-12-2022,Adults & Health,Supreme Care Services Ltd,Home Care - Private Contractors Payment,76.64,0,COMMERCIAL SUPPLIER,
01-12-2022,Adults & Health,Supreme Care Services Ltd,Home Care - Private Contractors Payment,301.77,0,COMMERCIAL SUPPLIER,
01-12-2022,Adults & Health,Supreme Care Services Ltd,Home Care - Private Contractors Payment,38.32,0,COMMERCIAL SUPPLIER,
01-12-2022,Adults & Health,Supreme Care Services Ltd,Home Care - Private Contractors Payment,182.02,0,COMMERCIAL SUPPLIER,
01-12-2022,Adults & Health,Supreme Care Services Ltd,Home Care - Private Contractors Payment,134.12,0,COMMERCIAL SUPPLIER,
01-12-2022,Adults & Health,Supreme Care Services Ltd,Home Care - Private Contractors Payment,19.16,0,COMMERCIAL SUPPLIER,
01-12-2022,Adults & Health,Supreme Care Services Ltd,Home Care - Private Contractors Payment,100.59,0,COMMERCIAL SUPPLIER,
01-12-2022,Adults & Health,Supreme Care Services Ltd,Respite Care - Private Contractors Payment,95.8,0,COMMERCIAL SUPPLIER,
01-12-2022,Adults & Health,Supreme Care Services Ltd,Daycare - Private Contractors Payment,38.32,0,COMMERCIAL SUPPLIER,
01-12-2022,Adults & Health,Supreme Care Services Ltd,Home Care - Private Contractors Payment,57.48,0,COMMERCIAL SUPPLIER,
01-12-2022,Adults & Health,Supreme Care Services Ltd,Home Care - Private Contractors Payment,268.24,0,COMMERCIAL SUPPLIER,
01-12-2022,Adults & Health,Supreme Care Services Ltd,Daycare - Private Contractors Payment,72.48,0,COMMERCIAL SUPPLIER,
01-12-2022,Adults & Health,Supreme Care Services Ltd,Home Care - Private Contractors Payment,30.01,0,COMMERCIAL SUPPLIER,
01-12-2022,Adults & Health,Supreme Care Services Ltd,Home Care - Private Contractors Payment,134.12,0,COMMERCIAL SUPPLIER,
01-12-2022,Adults & Health,Supreme Care Services Ltd,Daycare - Private Contractors Payment,91.64,0,COMMERCIAL SUPPLIER,
01-12-2022,Adults & Health,Supreme Care Services Ltd,Home Care - Private Contractors Payment,450.89,0,COMMERCIAL SUPPLIER,
01-12-2022,Adults & Health,Supreme Care Services Ltd,Home Care - Private Contractors Payment,19.16,0,COMMERCIAL SUPPLIER,
01-12-2022,Adults & Health,Supreme Care Services Ltd,Home Care - Private Contractors Payment,28.74,0,COMMERCIAL SUPPLIER,
01-12-2022,Adults & Health,Supreme Care Services Ltd,Home Care - Private Contractors Payment,-57.48,0,COMMERCIAL SUPPLIER,
01-12-2022,Adults & Health,Supreme Care Services Ltd,Home Care - Private Contractors Payment,435.89,0,COMMERCIAL SUPPLIER,
01-12-2022,Adults & Health,Supreme Care Services Ltd,Home Care - Private Contractors Payment,19.16,0,COMMERCIAL SUPPLIER,
01-12-2022,Adults & Health,Supreme Care Services Ltd,Daycare - Private Contractors Payment,38.32,0,COMMERCIAL SUPPLIER,
01-12-2022,Adults & Health,Supreme Care Services Ltd,Home Care - Private Contractors Payment,201.18,0,COMMERCIAL SUPPLIER,
01-12-2022,Adults & Health,Supreme Care Services Ltd,Home Care - Private Contractors Payment,67.06,0,COMMERCIAL SUPPLIER,
01-12-2022,Adults & Health,Supreme Care Services Ltd,Home Care - Private Contractors Payment,100.59,0,COMMERCIAL SUPPLIER,
01-12-2022,Adults & Health,Supreme Care Services Ltd,Home Care - Private Contractors Payment,43.11,0,COMMERCIAL SUPPLIER,
01-12-2022,Adults & Health,Supreme Care Services Ltd,Daycare - Private Contractors Payment,32.25,0,COMMERCIAL SUPPLIER,
01-12-2022,Adults & Health,Supreme Care Services Ltd,Daycare - Private Contractors Payment,72.48,0,COMMERCIAL SUPPLIER,
01-12-2022,Adults & Health,Supreme Care Services Ltd,Daycare - Private Contractors Payment,19.16,0,COMMERCIAL SUPPLIER,
01-12-2022,Adults & Health,Supreme Care Services Ltd,Daycare - Private Contractors Payment,38.32,0,COMMERCIAL SUPPLIER,
01-12-2022,Adults & Health,Supreme Care Services Ltd,Home Care - Private Contractors Payment,320.93,0,COMMERCIAL SUPPLIER,
01-12-2022,Adults & Health,Supreme Care Services Ltd,Daycare - Private Contractors Payment,134.12,0,COMMERCIAL SUPPLIER,
01-12-2022,Adults & Health,Supreme Care Services Ltd,Daycare - Private Contractors Payment,38.32,0,COMMERCIAL SUPPLIER,
01-12-2022,Adults & Health,Supreme Care Services Ltd,Home Care - Private Contractors Payment,100.59,0,COMMERCIAL SUPPLIER,
01-12-2022,Adults & Health,Supreme Care Services Ltd,Home Care - Private Contractors Payment,335.3,0,COMMERCIAL SUPPLIER,
01-12-2022,Adults & Health,Supreme Care Services Ltd,Home Care - Private Contractors Payment,153.28,0,COMMERCIAL SUPPLIER,
01-12-2022,Adults & Health,Supreme Care Services Ltd,Home Care - Private Contractors Payment,301.77,0,COMMERCIAL SUPPLIER,
01-12-2022,Adults & Health,Supreme Care Services Ltd,Home Care - Private Contractors Payment,38.32,0,COMMERCIAL SUPPLIER,
01-12-2022,Adults & Health,Supreme Care Services Ltd,Home Care - Private Contractors Payment,134.12,0,COMMERCIAL SUPPLIER,
01-12-2022,Adults & Health,Supreme Care Services Ltd,Home Care - Private Contractors Payment,268.24,0,COMMERCIAL SUPPLIER,
01-12-2022,Adults & Health,Supreme Care Services Ltd,Daycare - Private Contractors Payment,38.32,0,COMMERCIAL SUPPLIER,
01-12-2022,Adults & Health,Supreme Care Services Ltd,Home Care - Private Contractors Payment,431.1,0,COMMERCIAL SUPPLIER,
01-12-2022,Adults & Health,Supreme Care Services Ltd,Daycare - Private Contractors Payment,19.8,0,COMMERCIAL SUPPLIER,
01-12-2022,Adults & Health,Supreme Care Services Ltd,Home Care - Private Contractors Payment,38.32,0,COMMERCIAL SUPPLIER,
01-12-2022,Adults & Health,Supreme Care Services Ltd,Home Care - Private Contractors Payment,301.77,0,COMMERCIAL SUPPLIER,
01-12-2022,Adults & Health,Supreme Care Services Ltd,Daycare - Private Contractors Payment,-8.63,0,COMMERCIAL SUPPLIER,
01-12-2022,Adults & Health,Supreme Care Services Ltd,Home Care - Private Contractors Payment,38.32,0,COMMERCIAL SUPPLIER,
01-12-2022,Adults & Health,Supreme Care Services Ltd,Home Care - Private Contractors Payment,320.93,0,COMMERCIAL SUPPLIER,
01-12-2022,Adults & Health,Supreme Care Services Ltd,Home Care - Private Contractors Payment,138.91,0,COMMERCIAL SUPPLIER,
01-12-2022,Adults & Health,Supreme Care Services Ltd,Daycare - Private Contractors Payment,35.13,0,COMMERCIAL SUPPLIER,
01-12-2022,Adults & Health,Supreme Care Services Ltd,Daycare - Private Contractors Payment,76.64,0,COMMERCIAL SUPPLIER,
01-12-2022,Adults & Health,Supreme Care Services Ltd,Home Care - Private Contractors Payment,19.16,0,COMMERCIAL SUPPLIER,
01-12-2022,Adults & Health,Supreme Care Services Ltd,Reablement,57.48,0,COMMERCIAL SUPPLIER,
01-12-2022,Adults & Health,Supreme Care Services Ltd,Home Care - Private Contractors Payment,33.53,0,COMMERCIAL SUPPLIER,
01-12-2022,Adults & Health,Supreme Care Services Ltd,Daycare - Private Contractors Payment,76.64,0,COMMERCIAL SUPPLIER,
01-12-2022,Adults & Health,Supreme Care Services Ltd,Home Care - Private Contractors Payment,167.65,0,COMMERCIAL SUPPLIER,
01-12-2022,Adults & Health,Supreme Care Services Ltd,Home Care - Private Contractors Payment,167.65,0,COMMERCIAL SUPPLIER,
01-12-2022,Adults & Health,Supreme Care Services Ltd,Home Care - Private Contractors Payment,100.59,0,COMMERCIAL SUPPLIER,
01-12-2022,Adults & Health,Supreme Care Services Ltd,Daycare - Private Contractors Payment,38.32,0,COMMERCIAL SUPPLIER,
01-12-2022,Adults & Health,Supreme Care Services Ltd,Home Care - Private Contractors Payment,38.32,0,COMMERCIAL SUPPLIER,
01-12-2022,Adults & Health,Supreme Care Services Ltd,Home Care - Private Contractors Payment,469.42,0,COMMERCIAL SUPPLIER,
01-12-2022,Adults & Health,Supreme Care Services Ltd,Daycare - Private Contractors Payment,76.64,0,COMMERCIAL SUPPLIER,
01-12-2022,Adults & Health,Supreme Care Services Ltd,Home Care - Private Contractors Payment,57.48,0,COMMERCIAL SUPPLIER,
01-12-2022,Adults & Health,Supreme Care Services Ltd,Home Care - Private Contractors Payment,57.48,0,COMMERCIAL SUPPLIER,
01-12-2022,Adults & Health,Supreme Care Services Ltd,Home Care - Private Contractors Payment,34.16,0,COMMERCIAL SUPPLIER,
01-12-2022,Adults & Health,Supreme Care Services Ltd,Home Care - Private Contractors Payment,283.24,0,COMMERCIAL SUPPLIER,
01-12-2022,Adults & Health,Supreme Care Services Ltd,Home Care - Private Contractors Payment,301.77,0,COMMERCIAL SUPPLIER,
01-12-2022,Adults & Health,Supreme Care Services Ltd,Home Care - Private Contractors Payment,-189.05,0,COMMERCIAL SUPPLIER,
01-12-2022,Adults & Health,Supreme Care Services Ltd,Home Care - Private Contractors Payment,91.01,0,COMMERCIAL SUPPLIER,
01-12-2022,Adults & Health,Supreme Care Services Ltd,Home Care - Private Contractors Payment,57.48,0,COMMERCIAL SUPPLIER,
01-12-2022,Adults & Health,Supreme Care Services Ltd,Respite Care - Private Contractors Payment,95.8,0,COMMERCIAL SUPPLIER,
01-12-2022,Adults & Health,Supreme Care Services Ltd,Home Care - Private Contractors Payment,301.77,0,COMMERCIAL SUPPLIER,
01-12-2022,Adults & Health,Supreme Care Services Ltd,Home Care - Private Contractors Payment,38.32,0,COMMERCIAL SUPPLIER,
01-12-2022,Adults & Health,Supreme Care Services Ltd,Home Care - Private Contractors Payment,19.16,0,COMMERCIAL SUPPLIER,
01-12-2022,Adults & Health,Supreme Care Services Ltd,Daycare - Private Contractors Payment,34.16,0,COMMERCIAL SUPPLIER,
01-12-2022,Adults & Health,Supreme Care Services Ltd,Home Care - Private Contractors Payment,12.14,0,COMMERCIAL SUPPLIER,
01-12-2022,Adults & Health,Supreme Care Services Ltd,Daycare - Private Contractors Payment,38.32,0,COMMERCIAL SUPPLIER,
01-12-2022,Adults & Health,Supreme Care Services Ltd,Home Care - Private Contractors Payment,67.06,0,COMMERCIAL SUPPLIER,
01-12-2022,Adults & Health,Supreme Care Services Ltd,Home Care - Private Contractors Payment,19.16,0,COMMERCIAL SUPPLIER,
01-12-2022,Adults & Health,Supreme Care Services Ltd,Home Care - Private Contractors Payment,301.77,0,COMMERCIAL SUPPLIER,
01-12-2022,Adults & Health,Supreme Care Services Ltd,Home Care - Private Contractors Payment,100.59,0,COMMERCIAL SUPPLIER,
01-12-2022,Adults & Health,Supreme Care Services Ltd,Home Care - Private Contractors Payment,19.16,0,COMMERCIAL SUPPLIER,
01-12-2022,Adults & Health,Supreme Care Services Ltd,Home Care - Private Contractors Payment,67.06,0,COMMERCIAL SUPPLIER,
01-12-2022,Adults & Health,Supreme Care Services Ltd,Home Care - Private Contractors Payment,19.16,0,COMMERCIAL SUPPLIER,
01-12-2022,Adults & Health,Supreme Care Services Ltd,Home Care - Private Contractors Payment,38.32,0,COMMERCIAL SUPPLIER,
01-12-2022,Adults & Health,Supreme Care Services Ltd,Home Care - Private Contractors Payment,38.32,0,COMMERCIAL SUPPLIER,
01-12-2022,Adults & Health,Supreme Care Services Ltd,Home Care - Private Contractors Payment,301.77,0,COMMERCIAL SUPPLIER,
01-12-2022,Adults & Health,Supreme Care Services Ltd,Home Care - Private Contractors Payment,19.16,0,COMMERCIAL SUPPLIER,
01-12-2022,Adults & Health,Supreme Care Services Ltd,Home Care - Private Contractors Payment,167.65,0,COMMERCIAL SUPPLIER,
01-12-2022,Adults & Health,Supreme Care Services Ltd,Home Care - Private Contractors Payment,263.45,0,COMMERCIAL SUPPLIER,
01-12-2022,Adults & Health,Supreme Care Services Ltd,Home Care - Private Contractors Payment,134.12,0,COMMERCIAL SUPPLIER,
01-12-2022,Adults & Health,Supreme Care Services Ltd,Reablement,100.59,0,COMMERCIAL SUPPLIER,
01-12-2022,Adults & Health,Supreme Care Services Ltd,Daycare - Private Contractors Payment,57.48,0,COMMERCIAL SUPPLIER,
01-12-2022,Adults & Health,Supreme Care Services Ltd,Home Care - Private Contractors Payment,19.16,0,COMMERCIAL SUPPLIER,
01-12-2022,Adults & Health,Supreme Care Services Ltd,Home Care - Private Contractors Payment,28.74,0,COMMERCIAL SUPPLIER,
01-12-2022,Adults & Health,Supreme Care Services Ltd,Home Care - Private Contractors Payment,76.64,0,COMMERCIAL SUPPLIER,
01-12-2022,Adults & Health,Supreme Care Services Ltd,Home Care - Private Contractors Payment,57.48,0,COMMERCIAL SUPPLIER,
01-12-2022,Adults & Health,Supreme Care Services Ltd,Home Care - Private Contractors Payment,100.59,0,COMMERCIAL SUPPLIER,
01-12-2022,Adults & Health,Supreme Care Services Ltd,Daycare - Private Contractors Payment,28.74,0,COMMERCIAL SUPPLIER,
01-12-2022,Adults & Health,Supreme Care Services Ltd,Home Care - Private Contractors Payment,57.48,0,COMMERCIAL SUPPLIER,
01-12-2022,Adults & Health,Supreme Care Services Ltd,Home Care - Private Contractors Payment,134.12,0,COMMERCIAL SUPPLIER,
01-12-2022,Adults & Health,Supreme Care Services Ltd,Reablement,43.11,0,COMMERCIAL SUPPLIER,
01-12-2022,Adults & Health,Supreme Care Services Ltd,Home Care - Private Contractors Payment,201.18,0,COMMERCIAL SUPPLIER,
01-12-2022,Adults & Health,Supreme Care Services Ltd,Home Care - Private Contractors Payment,67.06,0,COMMERCIAL SUPPLIER,
01-12-2022,Adults & Health,Supreme Care Services Ltd,Daycare - Private Contractors Payment,67.06,0,COMMERCIAL SUPPLIER,
01-12-2022,Adults & Health,Supreme Care Services Ltd,Daycare - Private Contractors Payment,57.48,0,COMMERCIAL SUPPLIER,
01-12-2022,Adults & Health,Supreme Care Services Ltd,Home Care - Private Contractors Payment,57.48,0,COMMERCIAL SUPPLIER,
01-12-2022,Adults & Health,Supreme Care Services Ltd,Home Care - Private Contractors Payment,435.89,0,COMMERCIAL SUPPLIER,
01-12-2022,Adults & Health,Supreme Care Services Ltd,Home Care - Private Contractors Payment,469.42,0,COMMERCIAL SUPPLIER,
01-12-2022,Adults & Health,Supreme Care Services Ltd,Home Care - Private Contractors Payment,234.71,0,COMMERCIAL SUPPLIER,
01-12-2022,Adults & Health,Supreme Care Services Ltd,Home Care - Private Contractors Payment,134.12,0,COMMERCIAL SUPPLIER,
01-12-2022,Adults & Health,Supreme Care Services Ltd,Home Care - Private Contractors Payment,38.32,0,COMMERCIAL SUPPLIER,
01-12-2022,Adults & Health,Supreme Care Services Ltd,Home Care - Private Contractors Payment,603.54,0,COMMERCIAL SUPPLIER,
01-12-2022,Adults & Health,Supreme Care Services Ltd,Home Care - Private Contractors Payment,19.16,0,COMMERCIAL SUPPLIER,
01-12-2022,Adults & Health,Supreme Care Services Ltd,Daycare - Private Contractors Payment,134.12,0,COMMERCIAL SUPPLIER,
01-12-2022,Adults & Health,Supreme Care Services Ltd,Home Care - Private Contractors Payment,19.16,0,COMMERCIAL SUPPLIER,
01-12-2022,Adults & Health,Supreme Care Services Ltd,Home Care - Private Contractors Payment,368.83,0,COMMERCIAL SUPPLIER,
01-12-2022,Adults & Health,Supreme Care Services Ltd,Home Care - Private Contractors Payment,134.12,0,COMMERCIAL SUPPLIER,
01-12-2022,Adults & Health,Supreme Care Services Ltd,Daycare - Private Contractors Payment,28.74,0,COMMERCIAL SUPPLIER,
01-12-2022,Adults & Health,Supreme Care Services Ltd,Daycare - Private Contractors Payment,19.16,0,COMMERCIAL SUPPLIER,
01-12-2022,Adults & Health,Supreme Care Services Ltd,Home Care - Private Contractors Payment,446.1,0,COMMERCIAL SUPPLIER,
01-12-2022,Adults & Health,Supreme Care Services Ltd,Daycare - Private Contractors Payment,67.06,0,COMMERCIAL SUPPLIER,
01-12-2022,Adults & Health,Supreme Care Services Ltd,Home Care - Private Contractors Payment,301.77,0,COMMERCIAL SUPPLIER,
01-12-2022,Adults & Health,Supreme Care Services Ltd,Home Care - Private Contractors Payment,67.06,0,COMMERCIAL SUPPLIER,
01-12-2022,Adults & Health,Supreme Care Services Ltd,Daycare - Private Contractors Payment,76.64,0,COMMERCIAL SUPPLIER,
01-12-2022,Adults & Health,Supreme Care Services Ltd,Home Care - Private Contractors Payment,201.18,0,COMMERCIAL SUPPLIER,
01-12-2022,Adults & Health,Supreme Care Services Ltd,Daycare - Private Contractors Payment,134.12,0,COMMERCIAL SUPPLIER,
01-12-2022,Adults & Health,Supreme Care Services Ltd,Home Care - Private Contractors Payment,67.06,0,COMMERCIAL SUPPLIER,
01-12-2022,Adults & Health,Supreme Care Services Ltd,Reablement,43.11,0,COMMERCIAL SUPPLIER,
01-12-2022,Adults & Health,Supreme Care Services Ltd,Home Care - Private Contractors Payment,-474.21,0,COMMERCIAL SUPPLIER,
01-12-2022,Adults & Health,Supreme Care Services Ltd,Daycare - Private Contractors Payment,71.84,0,COMMERCIAL SUPPLIER,
01-12-2022,Adults & Health,Supreme Care Services Ltd,Daycare - Private Contractors Payment,-191.6,0,COMMERCIAL SUPPLIER,
01-12-2022,Adults & Health,Supreme Care Services Ltd,Home Care - Private Contractors Payment,167.65,0,COMMERCIAL SUPPLIER,
01-12-2022,Adults & Health,Supreme Care Services Ltd,Daycare - Private Contractors Payment,57.48,0,COMMERCIAL SUPPLIER,
01-12-2022,Adults & Health,Supreme Care Services Ltd,Home Care - Private Contractors Payment,43.11,0,COMMERCIAL SUPPLIER,
01-12-2022,Adults & Health,Supreme Care Services Ltd,Home Care - Private Contractors Payment,43.11,0,COMMERCIAL SUPPLIER,
01-12-2022,Adults & Health,Supreme Care Services Ltd,Home Care - Private Contractors Payment,95.8,0,COMMERCIAL SUPPLIER,
01-12-2022,Adults & Health,Supreme Care Services Ltd,Home Care - Private Contractors Payment,100.59,0,COMMERCIAL SUPPLIER,
01-12-2022,Adults & Health,Supreme Care Services Ltd,Home Care - Private Contractors Payment,771.19,0,COMMERCIAL SUPPLIER,
01-12-2022,Adults & Health,Supreme Care Services Ltd,Home Care - Private Contractors Payment,134.12,0,COMMERCIAL SUPPLIER,
01-12-2022,Adults & Health,Supreme Care Services Ltd,Home Care - Private Contractors Payment,43.11,0,COMMERCIAL SUPPLIER,
01-12-2022,Adults & Health,Supreme Care Services Ltd,Home Care - Private Contractors Payment,71.85,0,COMMERCIAL SUPPLIER,
01-12-2022,Adults & Health,Supreme Care Services Ltd,Daycare - Private Contractors Payment,76.64,0,COMMERCIAL SUPPLIER,
01-12-2022,Adults & Health,Supreme Care Services Ltd,Home Care - Private Contractors Payment,100.59,0,COMMERCIAL SUPPLIER,
01-12-2022,Adults & Health,Supreme Care Services Ltd,Daycare - Private Contractors Payment,134.12,0,COMMERCIAL SUPPLIER,
01-12-2022,Adults & Health,Supreme Care Services Ltd,Home Care - Private Contractors Payment,43.11,0,COMMERCIAL SUPPLIER,
01-12-2022,Adults & Health,Supreme Care Services Ltd,Daycare - Private Contractors Payment,19.16,0,COMMERCIAL SUPPLIER,
01-12-2022,Adults & Health,Supreme Care Services Ltd,Home Care - Private Contractors Payment,38.32,0,COMMERCIAL SUPPLIER,
01-12-2022,Adults & Health,Supreme Care Services Ltd,Home Care - Private Contractors Payment,167.65,0,COMMERCIAL SUPPLIER,
01-12-2022,Adults & Health,Supreme Care Services Ltd,Home Care - Private Contractors Payment,435.89,0,COMMERCIAL SUPPLIER,
01-12-2022,Adults & Health,Supreme Care Services Ltd,Home Care - Private Contractors Payment,603.54,0,COMMERCIAL SUPPLIER,
01-12-2022,Adults & Health,Supreme Care Services Ltd,Home Care - Private Contractors Payment,182.02,0,COMMERCIAL SUPPLIER,
01-12-2022,Adults & Health,Supreme Care Services Ltd,Home Care - Private Contractors Payment,28.74,0,COMMERCIAL SUPPLIER,
01-12-2022,Adults & Health,Supreme Care Services Ltd,Home Care - Private Contractors Payment,100.59,0,COMMERCIAL SUPPLIER,
01-12-2022,Adults & Health,Supreme Care Services Ltd,Home Care - Private Contractors Payment,100.59,0,COMMERCIAL SUPPLIER,
01-12-2022,Adults & Health,Supreme Care Services Ltd,Home Care - Private Contractors Payment,19.16,0,COMMERCIAL SUPPLIER,
01-12-2022,Adults & Health,Supreme Care Services Ltd,Home Care - Private Contractors Payment,115.59,0,COMMERCIAL SUPPLIER,
01-12-2022,Adults & Health,Supreme Care Services Ltd,Home Care - Private Contractors Payment,-747.24,0,COMMERCIAL SUPPLIER,
01-12-2022,Adults & Health,Supreme Care Services Ltd,Daycare - Private Contractors Payment,53.32,0,COMMERCIAL SUPPLIER,
01-12-2022,Adults & Health,Supreme Care Services Ltd,Home Care - Private Contractors Payment,34.16,0,COMMERCIAL SUPPLIER,
01-12-2022,Adults & Health,Supreme Care Services Ltd,Home Care - Private Contractors Payment,316.77,0,COMMERCIAL SUPPLIER,
01-12-2022,Adults & Health,Supreme Care Services Ltd,Home Care - Private Contractors Payment,76.64,0,COMMERCIAL SUPPLIER,
01-12-2022,Adults & Health,Supreme Care Services Ltd,Home Care - Private Contractors Payment,268.24,0,COMMERCIAL SUPPLIER,
01-12-2022,Adults & Health,Supreme Care Services Ltd,Home Care - Private Contractors Payment,19.16,0,COMMERCIAL SUPPLIER,
01-12-2022,Adults & Health,Supreme Care Services Ltd,Daycare - Private Contractors Payment,76.64,0,COMMERCIAL SUPPLIER,
01-12-2022,Adults & Health,Supreme Care Services Ltd,Home Care - Private Contractors Payment,603.54,0,COMMERCIAL SUPPLIER,
01-12-2022,Adults & Health,Supreme Care Services Ltd,Home Care - Private Contractors Payment,368.83,0,COMMERCIAL SUPPLIER,
01-12-2022,Adults & Health,Supreme Care Services Ltd,Home Care - Private Contractors Payment,134.12,0,COMMERCIAL SUPPLIER,
01-12-2022,Adults & Health,Supreme Care Services Ltd,Home Care - Private Contractors Payment,19.16,0,COMMERCIAL SUPPLIER,
01-12-2022,Adults & Health,Supreme Care Services Ltd,Daycare - Private Contractors Payment,153.28,0,COMMERCIAL SUPPLIER,
01-12-2022,Adults & Health,Supreme Care Services Ltd,Home Care - Private Contractors Payment,670.6,0,COMMERCIAL SUPPLIER,
01-12-2022,Adults & Health,Supreme Care Services Ltd,Home Care - Private Contractors Payment,234.71,0,COMMERCIAL SUPPLIER,
01-12-2022,Adults & Health,Supreme Care Services Ltd,Home Care - Private Contractors Payment,19.16,0,COMMERCIAL SUPPLIER,
01-12-2022,Adults & Health,Supreme Care Services Ltd,Daycare - Private Contractors Payment,38.32,0,COMMERCIAL SUPPLIER,
01-12-2022,Adults & Health,Supreme Care Services Ltd,Home Care - Private Contractors Payment,38.32,0,COMMERCIAL SUPPLIER,
01-12-2022,Adults & Health,Supreme Care Services Ltd,Home Care - Private Contractors Payment,57.48,0,COMMERCIAL SUPPLIER,
01-12-2022,Adults & Health,Supreme Care Services Ltd,Home Care - Private Contractors Payment,234.71,0,COMMERCIAL SUPPLIER,
01-12-2022,Adults & Health,Supreme Care Services Ltd,Home Care - Private Contractors Payment,134.12,0,COMMERCIAL SUPPLIER,
01-12-2022,Adults & Health,Supreme Care Services Ltd,Home Care - Private Contractors Payment,57.48,0,COMMERCIAL SUPPLIER,
01-12-2022,Adults & Health,Supreme Care Services Ltd,Home Care - Private Contractors Payment,201.18,0,COMMERCIAL SUPPLIER,
01-12-2022,Adults & Health,Supreme Care Services Ltd,Home Care - Private Contractors Payment,234.71,0,COMMERCIAL SUPPLIER,
01-12-2022,Adults & Health,Supreme Care Services Ltd,Home Care - Private Contractors Payment,1149.6,0,COMMERCIAL SUPPLIER,
01-12-2022,Adults & Health,Supreme Care Services Ltd,Home Care - Private Contractors Payment,57.48,0,COMMERCIAL SUPPLIER,
